Workbook

Sheet Source
C3: https://zyxbuyfeed.thearorareport.com/
A4: Portfolio | B4: SYMBOL | C4: Name | D4: Industry2 | E4: 52 week low | F4: 52 week high | G4: Previous | H4: Current
A5: ZYX Signal Limited | B5: AAL | D5: =_FV(Table3[[#This Row],[Name]],"Industry") -> Passenger Transportation Services | E5: =_FV(Table3[[#This Row],[Name]],"52 week low",TRUE) -> 8.25 | F5: =_FV(Table3[[#This Row],[Name]],"52 week high",TRUE) -> 22.8 | G5: =_FV(Table3[[#This Row],[Name]],"Previous close",TRUE) -> 22.15 | H5: =_FV(Table3[[#This Row],[Name]],"Price") -> 22.615
A6: ZYX Core Portfolio | B6: AAPL | D6: =_FV(Table3[[#This Row],[Name]],"Industry") -> Computers, Phones & Household Electronics | E6: =_FV(Table3[[#This Row],[Name]],"52 week low",TRUE) -> 53.1525 | F6: =_FV(Table3[[#This Row],[Name]],"52 week high",TRUE) -> 145.09 | G6: =_FV(Table3[[#This Row],[Name]],"Previous close",TRUE) -> 121.96 | H6: =_FV(Table3[[#This Row],[Name]],"Price") -> 119.65
A7: ZYX Signal Limited | B7: AAPL | D7: =_FV(Table3[[#This Row],[Name]],"Industry") -> Computers, Phones & Household Electronics | E7: =_FV(Table3[[#This Row],[Name]],"52 week low",TRUE) -> 53.1525 | F7: =_FV(Table3[[#This Row],[Name]],"52 week high",TRUE) -> 145.09 | G7: =_FV(Table3[[#This Row],[Name]],"Previous close",TRUE) -> 121.96 | H7: =_FV(Table3[[#This Row],[Name]],"Price") -> 119.65
A8: ZYX Signal Limited | B8: ABNB | D8: =_FV(Table3[[#This Row],[Name]],"Industry") -> Software & IT Services | E8: =_FV(Table3[[#This Row],[Name]],"52 week low",TRUE) -> 121.5 | F8: =_FV(Table3[[#This Row],[Name]],"52 week high",TRUE) -> 219.94 | G8: =_FV(Table3[[#This Row],[Name]],"Previous close",TRUE) -> 197.87 | H8: =_FV(Table3[[#This Row],[Name]],"Price") -> 196
A9: ZYX Signal Limited | B9: ACAC | D9: =_FV(Table3[[#This Row],[Name]],"Industry") -> Holding Companies | E9: =_FV(Table3[[#This Row],[Name]],"52 week low",TRUE) -> 9.72 | F9: =_FV(Table3[[#This Row],[Name]],"52 week high",TRUE) -> 13.2 | G9: =_FV(Table3[[#This Row],[Name]],"Previous close",TRUE) -> 10.51 | H9: =_FV(Table3[[#This Row],[Name]],"Price") -> 10.2707
A10: ZYX Signal Limited | B10: AFRM | D10: =_FV(Table3[[#This Row],[Name]],"Industry") -> Software & IT Services | E10: =_FV(Table3[[#This Row],[Name]],"52 week low",TRUE) -> 70.05 | F10: =_FV(Table3[[#This Row],[Name]],"52 week high",TRUE) -> 146.9 | G10: =_FV(Table3[[#This Row],[Name]],"Previous close",TRUE) -> 81.25 | H10: =_FV(Table3[[#This Row],[Name]],"Price") -> 78.22
A11: ZYX Signal Limited | B11: AI | D11: =_FV(Table3[[#This Row],[Name]],"Industry") -> Software & IT Services | E11: =_FV(Table3[[#This Row],[Name]],"52 week low",TRUE) -> 77 | F11: =_FV(Table3[[#This Row],[Name]],"52 week high",TRUE) -> 183.9 | G11: =_FV(Table3[[#This Row],[Name]],"Previous close",TRUE) -> 86.47 | H11: =_FV(Table3[[#This Row],[Name]],"Price") -> 85.325
A12: ZYX Core Portfolio | B12: AIG | D12: =_FV(Table3[[#This Row],[Name]],"Industry") -> Insurance | E12: =_FV(Table3[[#This Row],[Name]],"52 week low",TRUE) -> 16.07 | F12: =_FV(Table3[[#This Row],[Name]],"52 week high",TRUE) -> 48.92 | G12: =_FV(Table3[[#This Row],[Name]],"Previous close",TRUE) -> 48.01 | H12: =_FV(Table3[[#This Row],[Name]],"Price") -> 48.435
A13: ZYX Core Portfolio | B13: AMAT | D13: =_FV(Table3[[#This Row],[Name]],"Industry") -> Semiconductors & Semiconductor Equipment | E13: =_FV(Table3[[#This Row],[Name]],"52 week low",TRUE) -> 36.64 | F13: =_FV(Table3[[#This Row],[Name]],"52 week high",TRUE) -> 124.5 | G13: =_FV(Table3[[#This Row],[Name]],"Previous close",TRUE) -> 117.19 | H13: =_FV(Table3[[#This Row],[Name]],"Price") -> 115.7199
A14: ZYX Signal Limited | B14: AMAT | D14: =_FV(Table3[[#This Row],[Name]],"Industry") -> Semiconductors & Semiconductor Equipment | E14: =_FV(Table3[[#This Row],[Name]],"52 week low",TRUE) -> 36.64 | F14: =_FV(Table3[[#This Row],[Name]],"52 week high",TRUE) -> 124.5 | G14: =_FV(Table3[[#This Row],[Name]],"Previous close",TRUE) -> 117.19 | H14: =_FV(Table3[[#This Row],[Name]],"Price") -> 115.7199
A15: ZYX Signal Limited | B15: AMCX | D15: =_FV(Table3[[#This Row],[Name]],"Industry") -> Media & Publishing | E15: =_FV(Table3[[#This Row],[Name]],"52 week low",TRUE) -> 19.62 | F15: =_FV(Table3[[#This Row],[Name]],"52 week high",TRUE) -> 75.15 | G15: =_FV(Table3[[#This Row],[Name]],"Previous close",TRUE) -> 73.6 | H15: =_FV(Table3[[#This Row],[Name]],"Price") -> 75.12
A16: ZYX Core Portfolio | B16: AMZN | D16: =_FV(Table3[[#This Row],[Name]],"Industry") -> Diversified Retail | E16: =_FV(Table3[[#This Row],[Name]],"52 week low",TRUE) -> 1626.0318 | F16: =_FV(Table3[[#This Row],[Name]],"52 week high",TRUE) -> 3552.25 | G16: =_FV(Table3[[#This Row],[Name]],"Previous close",TRUE) -> 3113.5901 | H16: =_FV(Table3[[#This Row],[Name]],"Price") -> 3081.88
A17: ZYX Pot | B17: APHA | D17: =_FV(Table3[[#This Row],[Name]],"Industry") -> Pharmaceuticals | E17: =_FV(Table3[[#This Row],[Name]],"52 week low",TRUE) -> 1.95 | F17: =_FV(Table3[[#This Row],[Name]],"52 week high",TRUE) -> 32.29 | G17: =_FV(Table3[[#This Row],[Name]],"Previous close",TRUE) -> 19.86 | H17: =_FV(Table3[[#This Row],[Name]],"Price") -> 19.1
A18: Motley Fool | B18: APPN | D18: =_FV(Table3[[#This Row],[Name]],"Industry") -> Software & IT Services | E18: =_FV(Table3[[#This Row],[Name]],"52 week low",TRUE) -> 29.07 | F18: =_FV(Table3[[#This Row],[Name]],"52 week high",TRUE) -> 260 | G18: =_FV(Table3[[#This Row],[Name]],"Previous close",TRUE) -> 173.92 | H18: =_FV(Table3[[#This Row],[Name]],"Price") -> 169.53
A19: ZYX Signal Limited | B19: APT | D19: =_FV(Table3[[#This Row],[Name]],"Industry") -> Healthcare Equipment & Supplies | E19: =_FV(Table3[[#This Row],[Name]],"52 week low",TRUE) -> 8.56 | F19: =_FV(Table3[[#This Row],[Name]],"52 week high",TRUE) -> 25.55 | G19: =_FV(Table3[[#This Row],[Name]],"Previous close",TRUE) -> 10.43 | H19: =_FV(Table3[[#This Row],[Name]],"Price") -> 10.4
A20: ZYX Signal Limited | B20: APXT | D20: =_FV(Table3[[#This Row],[Name]],"Industry") -> Holding Companies | E20: =_FV(Table3[[#This Row],[Name]],"52 week low",TRUE) -> 9.125 | F20: =_FV(Table3[[#This Row],[Name]],"52 week high",TRUE) -> 17.9 | G20: =_FV(Table3[[#This Row],[Name]],"Previous close",TRUE) -> 12.76 | H20: =_FV(Table3[[#This Row],[Name]],"Price") -> 12.56
A21: ZYX Pot | B21: ARNA | D21: =_FV(Table3[[#This Row],[Name]],"Industry") -> Biotechnology & Medical Research | E21: =_FV(Table3[[#This Row],[Name]],"52 week low",TRUE) -> 32.95 | F21: =_FV(Table3[[#This Row],[Name]],"52 week high",TRUE) -> 90.19 | G21: =_FV(Table3[[#This Row],[Name]],"Previous close",TRUE) -> 75.66 | H21: =_FV(Table3[[#This Row],[Name]],"Price") -> 75.9
A22: ZYX Core Portfolio | B22: ARRY | D22: =_FV(Table3[[#This Row],[Name]],"Industry") -> Renewable Energy | E22: =_FV(Table3[[#This Row],[Name]],"52 week low",TRUE) -> 29.05 | F22: =_FV(Table3[[#This Row],[Name]],"52 week high",TRUE) -> 54.78 | G22: =_FV(Table3[[#This Row],[Name]],"Previous close",TRUE) -> 35.07 | H22: =_FV(Table3[[#This Row],[Name]],"Price") -> 34.56
A23: ZYX Signal Limited | B23: ASAN | D23: =_FV(Table3[[#This Row],[Name]],"Industry") -> Software & IT Services | E23: =_FV(Table3[[#This Row],[Name]],"52 week low",TRUE) -> 20.57 | F23: =_FV(Table3[[#This Row],[Name]],"52 week high",TRUE) -> 43.72 | G23: =_FV(Table3[[#This Row],[Name]],"Previous close",TRUE) -> 33.94 | H23: =_FV(Table3[[#This Row],[Name]],"Price") -> 32.2
A24: ZYX Core Portfolio | B24: BABA | D24: =_FV(Table3[[#This Row],[Name]],"Industry") -> Software & IT Services | E24: =_FV(Table3[[#This Row],[Name]],"52 week low",TRUE) -> 169.95 | F24: =_FV(Table3[[#This Row],[Name]],"52 week high",TRUE) -> 319.32 | G24: =_FV(Table3[[#This Row],[Name]],"Previous close",TRUE) -> 240.8 | H24: =_FV(Table3[[#This Row],[Name]],"Price") -> 232.15
A25: ZYX Core Portfolio | B25: BAC | D25: =_FV(Table3[[#This Row],[Name]],"Industry") -> Banking Services | E25: =_FV(Table3[[#This Row],[Name]],"52 week low",TRUE) -> 17.95 | F25: =_FV(Table3[[#This Row],[Name]],"52 week high",TRUE) -> 38.1766 | G25: =_FV(Table3[[#This Row],[Name]],"Previous close",TRUE) -> 37.24 | H25: =_FV(Table3[[#This Row],[Name]],"Price") -> 37.82
A26: ZYX Signal Limited | B26: BFT | D26: =_FV(Table3[[#This Row],[Name]],"Industry") -> Holding Companies | E26: =_FV(Table3[[#This Row],[Name]],"52 week low",TRUE) -> 9.595 | F26: =_FV(Table3[[#This Row],[Name]],"52 week high",TRUE) -> 19.5662 | G26: =_FV(Table3[[#This Row],[Name]],"Previous close",TRUE) -> 14.92 | H26: =_FV(Table3[[#This Row],[Name]],"Price") -> 15.05
A27: ZYX Electric Cars | B27: BLNK | D27: =_FV(Table3[[#This Row],[Name]],"Industry") -> Electrical Utilities & IPPs | E27: =_FV(Table3[[#This Row],[Name]],"52 week low",TRUE) -> 1.25 | F27: =_FV(Table3[[#This Row],[Name]],"52 week high",TRUE) -> 64.5 | G27: =_FV(Table3[[#This Row],[Name]],"Previous close",TRUE) -> 41.4 | H27: =_FV(Table3[[#This Row],[Name]],"Price") -> 39.345
A28: ZYX Signal Limited | B28: BMBL | C28: BMBL | D28: =_FV(Table3[[#This Row],[Name]],"Industry") ->  | E28: =_FV(Table3[[#This Row],[Name]],"52 week low",TRUE) ->  | F28: =_FV(Table3[[#This Row],[Name]],"52 week high",TRUE) ->  | G28: =_FV(Table3[[#This Row],[Name]],"Previous close",TRUE) ->  | H28: 70.31
A29: ZYX Core Portfolio | B29: BMY | D29: =_FV(Table3[[#This Row],[Name]],"Industry") -> Pharmaceuticals | E29: =_FV(Table3[[#This Row],[Name]],"52 week low",TRUE) -> 45.76 | F29: =_FV(Table3[[#This Row],[Name]],"52 week high",TRUE) -> 67.1599 | G29: =_FV(Table3[[#This Row],[Name]],"Previous close",TRUE) -> 60.35 | H29: =_FV(Table3[[#This Row],[Name]],"Price") -> 60.755
A30: ZYX Signal Limited | B30: BNGO | D30: =_FV(Table3[[#This Row],[Name]],"Industry") -> Healthcare Equipment & Supplies | E30: =_FV(Table3[[#This Row],[Name]],"52 week low",TRUE) -> 0.25 | F30: =_FV(Table3[[#This Row],[Name]],"52 week high",TRUE) -> 15.69 | G30: =_FV(Table3[[#This Row],[Name]],"Previous close",TRUE) -> 9.53 | H30: =_FV(Table3[[#This Row],[Name]],"Price") -> 9.15
A31: ZYX Core Portfolio | B31: BSX | D31: =_FV(Table3[[#This Row],[Name]],"Industry") -> Healthcare Equipment & Supplies | E31: =_FV(Table3[[#This Row],[Name]],"52 week low",TRUE) -> 24.1 | F31: =_FV(Table3[[#This Row],[Name]],"52 week high",TRUE) -> 42.37 | G31: =_FV(Table3[[#This Row],[Name]],"Previous close",TRUE) -> 38.65 | H31: =_FV(Table3[[#This Row],[Name]],"Price") -> 38.74
A32: ZYX Trade Around | B32: CAPA | D32: =_FV(Table3[[#This Row],[Name]],"Industry") -> Holding Companies | E32: =_FV(Table3[[#This Row],[Name]],"52 week low",TRUE) -> 9.88 | F32: =_FV(Table3[[#This Row],[Name]],"52 week high",TRUE) -> 25 | G32: =_FV(Table3[[#This Row],[Name]],"Previous close",TRUE) -> 13.64 | H32: =_FV(Table3[[#This Row],[Name]],"Price") -> 13.2
A33: ZYX Signal Limited | B33: CAPA | D33: =_FV(Table3[[#This Row],[Name]],"Industry") -> Holding Companies | E33: =_FV(Table3[[#This Row],[Name]],"52 week low",TRUE) -> 9.88 | F33: =_FV(Table3[[#This Row],[Name]],"52 week high",TRUE) -> 25 | G33: =_FV(Table3[[#This Row],[Name]],"Previous close",TRUE) -> 13.64 | H33: =_FV(Table3[[#This Row],[Name]],"Price") -> 13.2
A34: ZYX Core Portfolio | B34: CCL | D34: =_FV(Table3[[#This Row],[Name]],"Industry") -> Hotels & Entertainment Services | E34: =_FV(Table3[[#This Row],[Name]],"52 week low",TRUE) -> 7.8 | F34: =_FV(Table3[[#This Row],[Name]],"52 week high",TRUE) -> 29.59 | G34: =_FV(Table3[[#This Row],[Name]],"Previous close",TRUE) -> 27.47 | H34: =_FV(Table3[[#This Row],[Name]],"Price") -> 27.925
A35: ZYX Signal Limited | B35: CERT | D35: =_FV(Table3[[#This Row],[Name]],"Industry") -> Software & IT Services | E35: =_FV(Table3[[#This Row],[Name]],"52 week low",TRUE) -> 24.9 | F35: =_FV(Table3[[#This Row],[Name]],"52 week high",TRUE) -> 41.79 | G35: =_FV(Table3[[#This Row],[Name]],"Previous close",TRUE) -> 27 | H35: =_FV(Table3[[#This Row],[Name]],"Price") -> 26.83
A36: ZYX Pot | B36: CGC | D36: =_FV(Table3[[#This Row],[Name]],"Industry") -> Pharmaceuticals | E36: =_FV(Table3[[#This Row],[Name]],"52 week low",TRUE) -> 9 | F36: =_FV(Table3[[#This Row],[Name]],"52 week high",TRUE) -> 56.4965 | G36: =_FV(Table3[[#This Row],[Name]],"Previous close",TRUE) -> 34.28 | H36: =_FV(Table3[[#This Row],[Name]],"Price") -> 33.2199
A37: ZYX Core Portfolio | B37: CGC | D37: =_FV(Table3[[#This Row],[Name]],"Industry") -> Pharmaceuticals | E37: =_FV(Table3[[#This Row],[Name]],"52 week low",TRUE) -> 9 | F37: =_FV(Table3[[#This Row],[Name]],"52 week high",TRUE) -> 56.4965 | G37: =_FV(Table3[[#This Row],[Name]],"Previous close",TRUE) -> 34.28 | H37: =_FV(Table3[[#This Row],[Name]],"Price") -> 33.2199
A38: ZYX Core Portfolio | B38: CIEN | D38: =_FV(Table3[[#This Row],[Name]],"Industry") -> Communications & Networking | E38: =_FV(Table3[[#This Row],[Name]],"52 week low",TRUE) -> 30.58 | F38: =_FV(Table3[[#This Row],[Name]],"52 week high",TRUE) -> 61.515 | G38: =_FV(Table3[[#This Row],[Name]],"Previous close",TRUE) -> 53.26 | H38: =_FV(Table3[[#This Row],[Name]],"Price") -> 53.5
A39: ZYX Core Portfolio | B39: CLF | D39: =_FV(Table3[[#This Row],[Name]],"Industry") -> Metals & Mining | E39: =_FV(Table3[[#This Row],[Name]],"52 week low",TRUE) -> 2.63 | F39: =_FV(Table3[[#This Row],[Name]],"52 week high",TRUE) -> 18.77 | G39: =_FV(Table3[[#This Row],[Name]],"Previous close",TRUE) -> 16.9 | H39: =_FV(Table3[[#This Row],[Name]],"Price") -> 17.08
A40: ZYX Electric Cars | B40: CLII | D40: =_FV(Table3[[#This Row],[Name]],"Industry") -> Holding Companies | E40: =_FV(Table3[[#This Row],[Name]],"52 week low",TRUE) -> 9.746 | F40: =_FV(Table3[[#This Row],[Name]],"52 week high",TRUE) -> 24.34 | G40: =_FV(Table3[[#This Row],[Name]],"Previous close",TRUE) -> 14.36 | H40: =_FV(Table3[[#This Row],[Name]],"Price") -> 13.95
A41: ZYX Signal Limited | B41: CLVS | D41: =_FV(Table3[[#This Row],[Name]],"Industry") -> Biotechnology & Medical Research | E41: =_FV(Table3[[#This Row],[Name]],"52 week low",TRUE) -> 3.62 | F41: =_FV(Table3[[#This Row],[Name]],"52 week high",TRUE) -> 11.1 | G41: =_FV(Table3[[#This Row],[Name]],"Previous close",TRUE) -> 6.25 | H41: =_FV(Table3[[#This Row],[Name]],"Price") -> 6.0589
A42: ZYX Core Portfolio | B42: CNC | D42: =_FV(Table3[[#This Row],[Name]],"Industry") -> Healthcare Providers & Services | E42: =_FV(Table3[[#This Row],[Name]],"52 week low",TRUE) -> 43.96 | F42: =_FV(Table3[[#This Row],[Name]],"52 week high",TRUE) -> 74.7 | G42: =_FV(Table3[[#This Row],[Name]],"Previous close",TRUE) -> 61.89 | H42: =_FV(Table3[[#This Row],[Name]],"Price") -> 62.11
A43: ZYX Signal Limited | B43: COIN | C43: COIN | D43: =_FV(Table3[[#This Row],[Name]],"Industry") ->  | E43: =_FV(Table3[[#This Row],[Name]],"52 week low",TRUE) ->  | F43: =_FV(Table3[[#This Row],[Name]],"52 week high",TRUE) ->  | G43: =_FV(Table3[[#This Row],[Name]],"Previous close",TRUE) ->  | H43: =_FV(Table3[[#This Row],[Name]],"Price") -> 
A44: ZYX Pot | B44: CRLBF | D44: =_FV(Table3[[#This Row],[Name]],"Industry") -> Pharmaceuticals | E44: =_FV(Table3[[#This Row],[Name]],"52 week low",TRUE) -> 1.94 | F44: =_FV(Table3[[#This Row],[Name]],"52 week high",TRUE) -> 17.4911 | G44: =_FV(Table3[[#This Row],[Name]],"Previous close",TRUE) -> 13.4278 | H44: =_FV(Table3[[#This Row],[Name]],"Price") -> 13.2525
A45: ZYX Pot | B45: CRON | D45: =_FV(Table3[[#This Row],[Name]],"Industry") -> Pharmaceuticals | E45: =_FV(Table3[[#This Row],[Name]],"52 week low",TRUE) -> 4 | F45: =_FV(Table3[[#This Row],[Name]],"52 week high",TRUE) -> 15.83 | G45: =_FV(Table3[[#This Row],[Name]],"Previous close",TRUE) -> 10.48 | H45: =_FV(Table3[[#This Row],[Name]],"Price") -> 10.14
A46: ZYX Pot | B46: CURLF | D46: =_FV(Table3[[#This Row],[Name]],"Industry") -> Pharmaceuticals | E46: =_FV(Table3[[#This Row],[Name]],"52 week low",TRUE) -> 2.54 | F46: =_FV(Table3[[#This Row],[Name]],"52 week high",TRUE) -> 18.38 | G46: =_FV(Table3[[#This Row],[Name]],"Previous close",TRUE) -> 15.6 | H46: =_FV(Table3[[#This Row],[Name]],"Price") -> 15.53
A47: ZYX Signal Limited | B47: DASH | D47: =_FV(Table3[[#This Row],[Name]],"Industry") -> Software & IT Services | E47: =_FV(Table3[[#This Row],[Name]],"52 week low",TRUE) -> 130 | F47: =_FV(Table3[[#This Row],[Name]],"52 week high",TRUE) -> 256.09 | G47: =_FV(Table3[[#This Row],[Name]],"Previous close",TRUE) -> 144.97 | H47: =_FV(Table3[[#This Row],[Name]],"Price") -> 141.44
A48: ZYX Core Portfolio | B48: DIS | D48: =_FV(Table3[[#This Row],[Name]],"Industry") -> Media & Publishing | E48: =_FV(Table3[[#This Row],[Name]],"52 week low",TRUE) -> 79.07 | F48: =_FV(Table3[[#This Row],[Name]],"52 week high",TRUE) -> 203.02 | G48: =_FV(Table3[[#This Row],[Name]],"Previous close",TRUE) -> 196.75 | H48: =_FV(Table3[[#This Row],[Name]],"Price") -> 195.62
A49: ZYX Signal Limited | B49: DIS | D49: =_FV(Table3[[#This Row],[Name]],"Industry") -> Media & Publishing | E49: =_FV(Table3[[#This Row],[Name]],"52 week low",TRUE) -> 79.07 | F49: =_FV(Table3[[#This Row],[Name]],"52 week high",TRUE) -> 203.02 | G49: =_FV(Table3[[#This Row],[Name]],"Previous close",TRUE) -> 196.75 | H49: =_FV(Table3[[#This Row],[Name]],"Price") -> 195.62
A50: ZYX Signal Limited | B50: DNN | D50: =_FV(Table3[[#This Row],[Name]],"Industry") -> Uranium | E50: =_FV(Table3[[#This Row],[Name]],"52 week low",TRUE) -> 0.19 | F50: =_FV(Table3[[#This Row],[Name]],"52 week high",TRUE) -> 1.805 | G50: =_FV(Table3[[#This Row],[Name]],"Previous close",TRUE) -> 1.04 | H50: =_FV(Table3[[#This Row],[Name]],"Price") -> 1.055
A51: ZYX Core Portfolio | B51: EA | D51: =_FV(Table3[[#This Row],[Name]],"Industry") -> Software & IT Services | E51: =_FV(Table3[[#This Row],[Name]],"52 week low",TRUE) -> 85.69 | F51: =_FV(Table3[[#This Row],[Name]],"52 week high",TRUE) -> 150.3 | G51: =_FV(Table3[[#This Row],[Name]],"Previous close",TRUE) -> 131.34 | H51: =_FV(Table3[[#This Row],[Name]],"Price") -> 130.39
A52: Motley Fool | B52: ESTC | D52: =_FV(Table3[[#This Row],[Name]],"Industry") -> Software & IT Services | E52: =_FV(Table3[[#This Row],[Name]],"52 week low",TRUE) -> 39.01 | F52: =_FV(Table3[[#This Row],[Name]],"52 week high",TRUE) -> 176.49 | G52: =_FV(Table3[[#This Row],[Name]],"Previous close",TRUE) -> 118.67 | H52: =_FV(Table3[[#This Row],[Name]],"Price") -> 116.39
A53: ZYX Signal Limited | B53: EVRG | D53: =_FV(Table3[[#This Row],[Name]],"Industry") -> Electrical Utilities & IPPs | E53: =_FV(Table3[[#This Row],[Name]],"52 week low",TRUE) -> 42.0101 | F53: =_FV(Table3[[#This Row],[Name]],"52 week high",TRUE) -> 65.43 | G53: =_FV(Table3[[#This Row],[Name]],"Previous close",TRUE) -> 56.76 | H53: =_FV(Table3[[#This Row],[Name]],"Price") -> 57.21
A54: ZYX Signal Limited | B54: EXPC | D54: =_FV(Table3[[#This Row],[Name]],"Industry") -> Holding Companies | E54: =_FV(Table3[[#This Row],[Name]],"52 week low",TRUE) -> 9.28 | F54: =_FV(Table3[[#This Row],[Name]],"52 week high",TRUE) -> 19.88 | G54: =_FV(Table3[[#This Row],[Name]],"Previous close",TRUE) -> 13.4 | H54: =_FV(Table3[[#This Row],[Name]],"Price") -> 12.72
A55: ZYX Signal Limited | B55: F | D55: =_FV(Table3[[#This Row],[Name]],"Industry") -> Automobiles & Auto Parts | E55: =_FV(Table3[[#This Row],[Name]],"52 week low",TRUE) -> 3.96 | F55: =_FV(Table3[[#This Row],[Name]],"52 week high",TRUE) -> 13.0594 | G55: =_FV(Table3[[#This Row],[Name]],"Previous close",TRUE) -> 12.81 | H55: =_FV(Table3[[#This Row],[Name]],"Price") -> 12.915
A56: ZYX Core Portfolio | B56: FB | D56: =_FV(Table3[[#This Row],[Name]],"Industry") -> Software & IT Services | E56: =_FV(Table3[[#This Row],[Name]],"52 week low",TRUE) -> 137.1006 | F56: =_FV(Table3[[#This Row],[Name]],"52 week high",TRUE) -> 304.67 | G56: =_FV(Table3[[#This Row],[Name]],"Previous close",TRUE) -> 273.88 | H56: =_FV(Table3[[#This Row],[Name]],"Price") -> 267.26
A57: ZYX Electric Cars | B57: FCEL | D57: =_FV(Table3[[#This Row],[Name]],"Industry") -> Renewable Energy | E57: =_FV(Table3[[#This Row],[Name]],"52 week low",TRUE) -> 1 | F57: =_FV(Table3[[#This Row],[Name]],"52 week high",TRUE) -> 29.4396 | G57: =_FV(Table3[[#This Row],[Name]],"Previous close",TRUE) -> 18.36 | H57: =_FV(Table3[[#This Row],[Name]],"Price") -> 17.53
A58: ZYX Core Portfolio | B58: FCX | D58: =_FV(Table3[[#This Row],[Name]],"Industry") -> Metals & Mining | E58: =_FV(Table3[[#This Row],[Name]],"52 week low",TRUE) -> 4.82 | F58: =_FV(Table3[[#This Row],[Name]],"52 week high",TRUE) -> 39.1 | G58: =_FV(Table3[[#This Row],[Name]],"Previous close",TRUE) -> 37.47 | H58: =_FV(Table3[[#This Row],[Name]],"Price") -> 37.1
A59: ZYX Core Portfolio | B59: FFXDF | D59: =_FV(Table3[[#This Row],[Name]],"Industry") -> Holding Companies | E59: =_FV(Table3[[#This Row],[Name]],"52 week low",TRUE) -> 5.3706 | F59: =_FV(Table3[[#This Row],[Name]],"52 week high",TRUE) -> 13.26 | G59: =_FV(Table3[[#This Row],[Name]],"Previous close",TRUE) -> 12.494 | H59: =_FV(Table3[[#This Row],[Name]],"Price") -> 12.548
A60: Motley Fool | B60: FSLY | D60: =_FV(Table3[[#This Row],[Name]],"Industry") -> Software & IT Services | E60: =_FV(Table3[[#This Row],[Name]],"52 week low",TRUE) -> 10.63 | F60: =_FV(Table3[[#This Row],[Name]],"52 week high",TRUE) -> 136.5 | G60: =_FV(Table3[[#This Row],[Name]],"Previous close",TRUE) -> 75.44 | H60: =_FV(Table3[[#This Row],[Name]],"Price") -> 73.25
A61: ZYX Core Portfolio | B61: GAN | D61: =_FV(Table3[[#This Row],[Name]],"Industry") -> Software & IT Services | E61: =_FV(Table3[[#This Row],[Name]],"52 week low",TRUE) -> 0.65 | F61: =_FV(Table3[[#This Row],[Name]],"52 week high",TRUE) -> 3.35 | G61: =_FV(Table3[[#This Row],[Name]],"Previous close",TRUE) -> 2.9 | H61: =_FV(Table3[[#This Row],[Name]],"Price") -> 2.85
A62: ZYX Signal Limited | B62: GBT | D62: =_FV(Table3[[#This Row],[Name]],"Industry") -> Biotechnology & Medical Research | E62: =_FV(Table3[[#This Row],[Name]],"52 week low",TRUE) -> 36.49 | F62: =_FV(Table3[[#This Row],[Name]],"52 week high",TRUE) -> 83.69 | G62: =_FV(Table3[[#This Row],[Name]],"Previous close",TRUE) -> 42.9 | H62: =_FV(Table3[[#This Row],[Name]],"Price") -> 43.12
A63: ZYX Electric Cars | B63: GEVO | D63: =_FV(Table3[[#This Row],[Name]],"Industry") -> Renewable Energy | E63: =_FV(Table3[[#This Row],[Name]],"52 week low",TRUE) -> 0.46 | F63: =_FV(Table3[[#This Row],[Name]],"52 week high",TRUE) -> 15.57 | G63: =_FV(Table3[[#This Row],[Name]],"Previous close",TRUE) -> 9.65 | H63: =_FV(Table3[[#This Row],[Name]],"Price") -> 9.52
A64: ZYX Signal Limited | B64: GIK | D64: =_FV(Table3[[#This Row],[Name]],"Industry") -> Holding Companies | E64: =_FV(Table3[[#This Row],[Name]],"52 week low",TRUE) -> 9.794 | F64: =_FV(Table3[[#This Row],[Name]],"52 week high",TRUE) -> 17.36 | G64: =_FV(Table3[[#This Row],[Name]],"Previous close",TRUE) -> 11.57 | H64: =_FV(Table3[[#This Row],[Name]],"Price") -> 12.28
A65: ZYX Core Portfolio | B65: GILD | D65: =_FV(Table3[[#This Row],[Name]],"Industry") -> Biotechnology & Medical Research | E65: =_FV(Table3[[#This Row],[Name]],"52 week low",TRUE) -> 56.56 | F65: =_FV(Table3[[#This Row],[Name]],"52 week high",TRUE) -> 85.97 | G65: =_FV(Table3[[#This Row],[Name]],"Previous close",TRUE) -> 62.38 | H65: =_FV(Table3[[#This Row],[Name]],"Price") -> 62.26
A66: ZYX Signal Limited | B66: GLUU | D66: =_FV(Table3[[#This Row],[Name]],"Industry") -> Software & IT Services | E66: =_FV(Table3[[#This Row],[Name]],"52 week low",TRUE) -> 3.98 | F66: =_FV(Table3[[#This Row],[Name]],"52 week high",TRUE) -> 12.95 | G66: =_FV(Table3[[#This Row],[Name]],"Previous close",TRUE) -> 12.47 | H66: =_FV(Table3[[#This Row],[Name]],"Price") -> 12.435
A67: ZYX Core Portfolio | B67: GOOG | D67: =_FV(Table3[[#This Row],[Name]],"Industry") -> Software & IT Services | E67: =_FV(Table3[[#This Row],[Name]],"52 week low",TRUE) -> 1013.5361 | F67: =_FV(Table3[[#This Row],[Name]],"52 week high",TRUE) -> 2152.68 | G67: =_FV(Table3[[#This Row],[Name]],"Previous close",TRUE) -> 2114.77 | H67: =_FV(Table3[[#This Row],[Name]],"Price") -> 2075.83
A68: ZYX Pot | B68: GRWG | D68: =_FV(Table3[[#This Row],[Name]],"Industry") -> Chemicals | E68: =_FV(Table3[[#This Row],[Name]],"52 week low",TRUE) -> 2.62 | F68: =_FV(Table3[[#This Row],[Name]],"52 week high",TRUE) -> 67.75 | G68: =_FV(Table3[[#This Row],[Name]],"Previous close",TRUE) -> 48.74 | H68: =_FV(Table3[[#This Row],[Name]],"Price") -> 46.88
A69: ZYX Pot | B69: GTBIF | D69: =_FV(Table3[[#This Row],[Name]],"Industry") -> Pharmaceuticals | E69: =_FV(Table3[[#This Row],[Name]],"52 week low",TRUE) -> 3.6934 | F69: =_FV(Table3[[#This Row],[Name]],"52 week high",TRUE) -> 39.11 | G69: =_FV(Table3[[#This Row],[Name]],"Previous close",TRUE) -> 32.75 | H69: =_FV(Table3[[#This Row],[Name]],"Price") -> 31.5401
A70: ZYX Pot | B70: GWPH | D70: =_FV(Table3[[#This Row],[Name]],"Industry") -> Biotechnology & Medical Research | E70: =_FV(Table3[[#This Row],[Name]],"52 week low",TRUE) -> 67.98 | F70: =_FV(Table3[[#This Row],[Name]],"52 week high",TRUE) -> 217.5 | G70: =_FV(Table3[[#This Row],[Name]],"Previous close",TRUE) -> 215.01 | H70: =_FV(Table3[[#This Row],[Name]],"Price") -> 215.16
A71: ZYX Core Portfolio | B71: HDGE | D71: =_FV(Table3[[#This Row],[Name]],"Industry") ->  | E71: =_FV(Table3[[#This Row],[Name]],"52 week low",TRUE) -> 24.83 | F71: =_FV(Table3[[#This Row],[Name]],"52 week high",TRUE) -> 79.5 | G71: =_FV(Table3[[#This Row],[Name]],"Previous close",TRUE) -> 24.84 | H71: =_FV(Table3[[#This Row],[Name]],"Price") -> 24.971
A72: ZYX Signal Limited | B72: HMPT | C72: HMPT | D72: =_FV(Table3[[#This Row],[Name]],"Industry") ->  | E72: =_FV(Table3[[#This Row],[Name]],"52 week low",TRUE) ->  | F72: =_FV(Table3[[#This Row],[Name]],"52 week high",TRUE) ->  | G72: =_FV(Table3[[#This Row],[Name]],"Previous close",TRUE) ->  | H72: 11.94
A73: ZYX Core Portfolio | B73: HOLX | D73: =_FV(Table3[[#This Row],[Name]],"Industry") -> Healthcare Equipment & Supplies | E73: =_FV(Table3[[#This Row],[Name]],"52 week low",TRUE) -> 26.49 | F73: =_FV(Table3[[#This Row],[Name]],"52 week high",TRUE) -> 85 | G73: =_FV(Table3[[#This Row],[Name]],"Previous close",TRUE) -> 71.03 | H73: =_FV(Table3[[#This Row],[Name]],"Price") -> 70.24
A74: ZYX Pot | B74: HYFM | D74: =_FV(Table3[[#This Row],[Name]],"Industry") -> Machinery, Equipment & Components | E74: =_FV(Table3[[#This Row],[Name]],"52 week low",TRUE) -> 41.59 | F74: =_FV(Table3[[#This Row],[Name]],"52 week high",TRUE) -> 95.48 | G74: =_FV(Table3[[#This Row],[Name]],"Previous close",TRUE) -> 58.42 | H74: =_FV(Table3[[#This Row],[Name]],"Price") -> 56.89
A75: ZYX Signal Limited | B75: JD | D75: =_FV(Table3[[#This Row],[Name]],"Industry") -> Diversified Retail | E75: =_FV(Table3[[#This Row],[Name]],"52 week low",TRUE) -> 32.7 | F75: =_FV(Table3[[#This Row],[Name]],"52 week high",TRUE) -> 108.29 | G75: =_FV(Table3[[#This Row],[Name]],"Previous close",TRUE) -> 90.01 | H75: =_FV(Table3[[#This Row],[Name]],"Price") -> 84.2026
A76: ZYX Core Portfolio | B76: JPM | D76: =_FV(Table3[[#This Row],[Name]],"Industry") -> Banking Services | E76: =_FV(Table3[[#This Row],[Name]],"52 week low",TRUE) -> 76.91 | F76: =_FV(Table3[[#This Row],[Name]],"52 week high",TRUE) -> 157.63 | G76: =_FV(Table3[[#This Row],[Name]],"Previous close",TRUE) -> 154.32 | H76: =_FV(Table3[[#This Row],[Name]],"Price") -> 156.6
A77: ZYX Core Portfolio | B77: KBH | D77: =_FV(Table3[[#This Row],[Name]],"Industry") -> Homebuilding & Construction Supplies | E77: =_FV(Table3[[#This Row],[Name]],"52 week low",TRUE) -> 9.82 | F77: =_FV(Table3[[#This Row],[Name]],"52 week high",TRUE) -> 45.59 | G77: =_FV(Table3[[#This Row],[Name]],"Previous close",TRUE) -> 44.43 | H77: =_FV(Table3[[#This Row],[Name]],"Price") -> 43.22
A78: ZYX Core Portfolio | B78: KKR | D78: =_FV(Table3[[#This Row],[Name]],"Industry") -> Investment Banking & Investment Services | E78: =_FV(Table3[[#This Row],[Name]],"52 week low",TRUE) -> 15.55 | F78: =_FV(Table3[[#This Row],[Name]],"52 week high",TRUE) -> 49.29 | G78: =_FV(Table3[[#This Row],[Name]],"Previous close",TRUE) -> 48.21 | H78: =_FV(Table3[[#This Row],[Name]],"Price") -> 47.92
A79: ZYX Signal Limited | B79: KSU | D79: =_FV(Table3[[#This Row],[Name]],"Industry") -> Freight & Logistics Services | E79: =_FV(Table3[[#This Row],[Name]],"52 week low",TRUE) -> 92.86 | F79: =_FV(Table3[[#This Row],[Name]],"52 week high",TRUE) -> 223.59 | G79: =_FV(Table3[[#This Row],[Name]],"Previous close",TRUE) -> 214.86 | H79: =_FV(Table3[[#This Row],[Name]],"Price") -> 215.19
A80: ZYX Electric Cars | B80: LAC | D80: =_FV(Table3[[#This Row],[Name]],"Industry") -> Metals & Mining | E80: =_FV(Table3[[#This Row],[Name]],"52 week low",TRUE) -> 1.92 | F80: =_FV(Table3[[#This Row],[Name]],"52 week high",TRUE) -> 28.75 | G80: =_FV(Table3[[#This Row],[Name]],"Previous close",TRUE) -> 17.37 | H80: =_FV(Table3[[#This Row],[Name]],"Price") -> 17.02
A81: ZYX Signal Limited | B81: LMNX | D81: =_FV(Table3[[#This Row],[Name]],"Industry") -> Healthcare Equipment & Supplies | E81: =_FV(Table3[[#This Row],[Name]],"52 week low",TRUE) -> 20.61 | F81: =_FV(Table3[[#This Row],[Name]],"52 week high",TRUE) -> 41.69 | G81: =_FV(Table3[[#This Row],[Name]],"Previous close",TRUE) -> 32.45 | H81: =_FV(Table3[[#This Row],[Name]],"Price") -> 32.05
A82: ZYX Core Portfolio | B82: LOW | D82: =_FV(Table3[[#This Row],[Name]],"Industry") -> Specialty Retailers | E82: =_FV(Table3[[#This Row],[Name]],"52 week low",TRUE) -> 60 | F82: =_FV(Table3[[#This Row],[Name]],"52 week high",TRUE) -> 180.67 | G82: =_FV(Table3[[#This Row],[Name]],"Previous close",TRUE) -> 170.75 | H82: =_FV(Table3[[#This Row],[Name]],"Price") -> 171.22
A83: ZYX Core Portfolio | B83: LTHM | D83: =_FV(Table3[[#This Row],[Name]],"Industry") -> Chemicals | E83: =_FV(Table3[[#This Row],[Name]],"52 week low",TRUE) -> 3.95 | F83: =_FV(Table3[[#This Row],[Name]],"52 week high",TRUE) -> 23.9899 | G83: =_FV(Table3[[#This Row],[Name]],"Previous close",TRUE) -> 19.17 | H83: =_FV(Table3[[#This Row],[Name]],"Price") -> 18.97
A84: ZYX Space | B84: MAXR | D84: =_FV(Table3[[#This Row],[Name]],"Industry") -> Communications & Networking | E84: =_FV(Table3[[#This Row],[Name]],"52 week low",TRUE) -> 7.18 | F84: =_FV(Table3[[#This Row],[Name]],"52 week high",TRUE) -> 58.75 | G84: =_FV(Table3[[#This Row],[Name]],"Previous close",TRUE) -> 47 | H84: =_FV(Table3[[#This Row],[Name]],"Price") -> 46.94
A85: ZYX Signal Limited | B85: MDB | D85: =_FV(Table3[[#This Row],[Name]],"Industry") -> Software & IT Services | E85: =_FV(Table3[[#This Row],[Name]],"52 week low",TRUE) -> 93.81 | F85: =_FV(Table3[[#This Row],[Name]],"52 week high",TRUE) -> 428.965 | G85: =_FV(Table3[[#This Row],[Name]],"Previous close",TRUE) -> 327.26 | H85: =_FV(Table3[[#This Row],[Name]],"Price") -> 319.33
A86: ZYX Signal Limited | B86: MRVI | D86: =_FV(Table3[[#This Row],[Name]],"Industry") -> Biotechnology & Medical Research | E86: =_FV(Table3[[#This Row],[Name]],"52 week low",TRUE) -> 23.62 | F86: =_FV(Table3[[#This Row],[Name]],"52 week high",TRUE) -> 40.24 | G86: =_FV(Table3[[#This Row],[Name]],"Previous close",TRUE) -> 36.52 | H86: =_FV(Table3[[#This Row],[Name]],"Price") -> 36.35
A87: ZYX Trade Around | B87: MRVL | D87: =_FV(Table3[[#This Row],[Name]],"Industry") -> Semiconductors & Semiconductor Equipment | E87: =_FV(Table3[[#This Row],[Name]],"52 week low",TRUE) -> 16.45 | F87: =_FV(Table3[[#This Row],[Name]],"52 week high",TRUE) -> 55.7 | G87: =_FV(Table3[[#This Row],[Name]],"Previous close",TRUE) -> 46.3 | H87: =_FV(Table3[[#This Row],[Name]],"Price") -> 46.335
A88: ZYX Core Portfolio | B88: MSFT | D88: =_FV(Table3[[#This Row],[Name]],"Industry") -> Software & IT Services | E88: =_FV(Table3[[#This Row],[Name]],"52 week low",TRUE) -> 132.52 | F88: =_FV(Table3[[#This Row],[Name]],"52 week high",TRUE) -> 246.13 | G88: =_FV(Table3[[#This Row],[Name]],"Previous close",TRUE) -> 237.13 | H88: =_FV(Table3[[#This Row],[Name]],"Price") -> 235.25
A89: ZYX Signal Limited | B89: MU | D89: =_FV(Table3[[#This Row],[Name]],"Industry") -> Semiconductors & Semiconductor Equipment | E89: =_FV(Table3[[#This Row],[Name]],"52 week low",TRUE) -> 31.13 | F89: =_FV(Table3[[#This Row],[Name]],"52 week high",TRUE) -> 95.75 | G89: =_FV(Table3[[#This Row],[Name]],"Previous close",TRUE) -> 89.31 | H89: =_FV(Table3[[#This Row],[Name]],"Price") -> 88.13
A90: ZYX Pot | B90: NBEV | D90: =_FV(Table3[[#This Row],[Name]],"Industry") -> Beverages | E90: =_FV(Table3[[#This Row],[Name]],"52 week low",TRUE) -> 0.981 | F90: =_FV(Table3[[#This Row],[Name]],"52 week high",TRUE) -> 4.55 | G90: =_FV(Table3[[#This Row],[Name]],"Previous close",TRUE) -> 2.96 | H90: =_FV(Table3[[#This Row],[Name]],"Price") -> 2.93
A91: ZYX Core Portfolio | B91: NEM | D91: =_FV(Table3[[#This Row],[Name]],"Industry") -> Metals & Mining | E91: =_FV(Table3[[#This Row],[Name]],"52 week low",TRUE) -> 33 | F91: =_FV(Table3[[#This Row],[Name]],"52 week high",TRUE) -> 72.22 | G91: =_FV(Table3[[#This Row],[Name]],"Previous close",TRUE) -> 58.45 | H91: =_FV(Table3[[#This Row],[Name]],"Price") -> 58.36
A92: ZYX Electric Cars | B92: NGAC | D92: =_FV(Table3[[#This Row],[Name]],"Industry") -> Holding Companies | E92: =_FV(Table3[[#This Row],[Name]],"52 week low",TRUE) -> 9.7 | F92: =_FV(Table3[[#This Row],[Name]],"52 week high",TRUE) -> 16 | G92: =_FV(Table3[[#This Row],[Name]],"Previous close",TRUE) -> 10.62 | H92: =_FV(Table3[[#This Row],[Name]],"Price") -> 10.525
A93: ZYX Core Portfolio | B93: NMR | D93: =_FV(Table3[[#This Row],[Name]],"Industry") -> Investment Banking & Investment Services | E93: =_FV(Table3[[#This Row],[Name]],"52 week low",TRUE) -> 3.55 | F93: =_FV(Table3[[#This Row],[Name]],"52 week high",TRUE) -> 6.36 | G93: =_FV(Table3[[#This Row],[Name]],"Previous close",TRUE) -> 6.22 | H93: =_FV(Table3[[#This Row],[Name]],"Price") -> 6.22
A94: ZYX Space | B94: NPA | D94: =_FV(Table3[[#This Row],[Name]],"Industry") -> Holding Companies | E94: =_FV(Table3[[#This Row],[Name]],"52 week low",TRUE) -> 9.5 | F94: =_FV(Table3[[#This Row],[Name]],"52 week high",TRUE) -> 25.37 | G94: =_FV(Table3[[#This Row],[Name]],"Previous close",TRUE) -> 13.3 | H94: =_FV(Table3[[#This Row],[Name]],"Price") -> 12.9399
A95: ZYX Core Portfolio | B95: NXPI | D95: =_FV(Table3[[#This Row],[Name]],"Industry") -> Semiconductors & Semiconductor Equipment | E95: =_FV(Table3[[#This Row],[Name]],"52 week low",TRUE) -> 58.41 | F95: =_FV(Table3[[#This Row],[Name]],"52 week high",TRUE) -> 200.19 | G95: =_FV(Table3[[#This Row],[Name]],"Previous close",TRUE) -> 187.9375 | H95: =_FV(Table3[[#This Row],[Name]],"Price") -> 185.22
A96: ZYX Space | B96: ORBC | D96: =_FV(Table3[[#This Row],[Name]],"Industry") -> Telecommunications Services | E96: =_FV(Table3[[#This Row],[Name]],"52 week low",TRUE) -> 1.24 | F96: =_FV(Table3[[#This Row],[Name]],"52 week high",TRUE) -> 9.25 | G96: =_FV(Table3[[#This Row],[Name]],"Previous close",TRUE) -> 8.09 | H96: =_FV(Table3[[#This Row],[Name]],"Price") -> 7.98
A97: ZYX Signal Limited | B97: PACE | D97: =_FV(Table3[[#This Row],[Name]],"Industry") -> Holding Companies | E97: =_FV(Table3[[#This Row],[Name]],"52 week low",TRUE) -> 9.7 | F97: =_FV(Table3[[#This Row],[Name]],"52 week high",TRUE) -> 12.5 | G97: =_FV(Table3[[#This Row],[Name]],"Previous close",TRUE) -> 10.32 | H97: =_FV(Table3[[#This Row],[Name]],"Price") -> 10.27
A98: ZYX Core Portfolio | B98: PCG | D98: =_FV(Table3[[#This Row],[Name]],"Industry") -> Electrical Utilities & IPPs | E98: =_FV(Table3[[#This Row],[Name]],"52 week low",TRUE) -> 6.25 | F98: =_FV(Table3[[#This Row],[Name]],"52 week high",TRUE) -> 13.34 | G98: =_FV(Table3[[#This Row],[Name]],"Previous close",TRUE) -> 11.45 | H98: =_FV(Table3[[#This Row],[Name]],"Price") -> 11.415
A99: ZYX Signal Limited | B99: PHUN | D99: =_FV(Table3[[#This Row],[Name]],"Industry") -> Software & IT Services | E99: =_FV(Table3[[#This Row],[Name]],"52 week low",TRUE) -> 0.54 | F99: =_FV(Table3[[#This Row],[Name]],"52 week high",TRUE) -> 3.3376 | G99: =_FV(Table3[[#This Row],[Name]],"Previous close",TRUE) -> 1.93 | H99: =_FV(Table3[[#This Row],[Name]],"Price") -> 2.03
A100: ZYX Signal Limited | B100: PLTR | D100: =_FV(Table3[[#This Row],[Name]],"Industry") -> Software & IT Services | E100: =_FV(Table3[[#This Row],[Name]],"52 week low",TRUE) -> 8.9 | F100: =_FV(Table3[[#This Row],[Name]],"52 week high",TRUE) -> 45 | G100: =_FV(Table3[[#This Row],[Name]],"Previous close",TRUE) -> 26.73 | H100: =_FV(Table3[[#This Row],[Name]],"Price") -> 26.125
A101: ZYX Signal Limited | B101: PLUG | D101: =_FV(Table3[[#This Row],[Name]],"Industry") -> Renewable Energy | E101: =_FV(Table3[[#This Row],[Name]],"52 week low",TRUE) -> 2.53 | F101: =_FV(Table3[[#This Row],[Name]],"52 week high",TRUE) -> 75.49 | G101: =_FV(Table3[[#This Row],[Name]],"Previous close",TRUE) -> 48.16 | H101: =_FV(Table3[[#This Row],[Name]],"Price") -> 46.4
A102: Oil | B102: PRT | D102: =_FV(Table3[[#This Row],[Name]],"Industry") ->  | E102: =_FV(Table3[[#This Row],[Name]],"52 week low",TRUE) -> 1 | F102: =_FV(Table3[[#This Row],[Name]],"52 week high",TRUE) -> 5.35 | G102: =_FV(Table3[[#This Row],[Name]],"Previous close",TRUE) -> 5.22 | H102: =_FV(Table3[[#This Row],[Name]],"Price") -> 5.1501
A103: ZYX Core Portfolio | B103: PSQ | D103: =_FV(Table3[[#This Row],[Name]],"Industry") ->  | E103: =_FV(Table3[[#This Row],[Name]],"52 week low",TRUE) -> 13.29 | F103: =_FV(Table3[[#This Row],[Name]],"52 week high",TRUE) -> 29.7 | G103: =_FV(Table3[[#This Row],[Name]],"Previous close",TRUE) -> 14.02 | H103: =_FV(Table3[[#This Row],[Name]],"Price") -> 14.18
A104: ZYX Core Portfolio | B104: QCOM | D104: =_FV(Table3[[#This Row],[Name]],"Industry") -> Semiconductors & Semiconductor Equipment | E104: =_FV(Table3[[#This Row],[Name]],"52 week low",TRUE) -> 58 | F104: =_FV(Table3[[#This Row],[Name]],"52 week high",TRUE) -> 167.94 | G104: =_FV(Table3[[#This Row],[Name]],"Previous close",TRUE) -> 131.74 | H104: =_FV(Table3[[#This Row],[Name]],"Price") -> 129.4725
A105: ZYX Signal Limited | B105: QCOM | D105: =_FV(Table3[[#This Row],[Name]],"Industry") -> Semiconductors & Semiconductor Equipment | E105: =_FV(Table3[[#This Row],[Name]],"52 week low",TRUE) -> 58 | F105: =_FV(Table3[[#This Row],[Name]],"52 week high",TRUE) -> 167.94 | G105: =_FV(Table3[[#This Row],[Name]],"Previous close",TRUE) -> 131.74 | H105: =_FV(Table3[[#This Row],[Name]],"Price") -> 129.4725
A106: ZYX Core Portfolio | B106: QQQJ | D106: =_FV(Table3[[#This Row],[Name]],"Industry") ->  | E106: =_FV(Table3[[#This Row],[Name]],"52 week low",TRUE) -> 24.669 | F106: =_FV(Table3[[#This Row],[Name]],"52 week high",TRUE) -> 35.18 | G106: =_FV(Table3[[#This Row],[Name]],"Previous close",TRUE) -> 33.22 | H106: =_FV(Table3[[#This Row],[Name]],"Price") -> 32.84
A107: ZYX Core Portfolio | B107: QRVO | D107: =_FV(Table3[[#This Row],[Name]],"Industry") -> Semiconductors & Semiconductor Equipment | E107: =_FV(Table3[[#This Row],[Name]],"52 week low",TRUE) -> 67.54 | F107: =_FV(Table3[[#This Row],[Name]],"52 week high",TRUE) -> 191.825 | G107: =_FV(Table3[[#This Row],[Name]],"Previous close",TRUE) -> 174.95 | H107: =_FV(Table3[[#This Row],[Name]],"Price") -> 171.9301
A108: ZYX Signal Limited | B108: QS | D108: =_FV(Table3[[#This Row],[Name]],"Industry") -> Automobiles & Auto Parts | E108: =_FV(Table3[[#This Row],[Name]],"52 week low",TRUE) -> 9.74 | F108: =_FV(Table3[[#This Row],[Name]],"52 week high",TRUE) -> 132.73 | G108: =_FV(Table3[[#This Row],[Name]],"Previous close",TRUE) -> 58.2 | H108: =_FV(Table3[[#This Row],[Name]],"Price") -> 57.2099
A109: ZYX Core Portfolio | B109: RDS-B | D109: =_FV(Table3[[#This Row],[Name]],"Industry") -> Oil & Gas | E109: =_FV(Table3[[#This Row],[Name]],"52 week low",TRUE) -> 19.19 | F109: =_FV(Table3[[#This Row],[Name]],"52 week high",TRUE) -> 42.27 | G109: =_FV(Table3[[#This Row],[Name]],"Previous close",TRUE) -> 41.72 | H109: =_FV(Table3[[#This Row],[Name]],"Price") -> 42.06
A110: Oil | B110: RIG | D110: =_FV(Table3[[#This Row],[Name]],"Industry") -> Oil & Gas Related Equipment and Services | E110: =_FV(Table3[[#This Row],[Name]],"52 week low",TRUE) -> 0.65 | F110: =_FV(Table3[[#This Row],[Name]],"52 week high",TRUE) -> 4.81 | G110: =_FV(Table3[[#This Row],[Name]],"Previous close",TRUE) -> 4.55 | H110: =_FV(Table3[[#This Row],[Name]],"Price") -> 4.54
A111: ZYX Signal Limited | B111: RLX | D111: =_FV(Table3[[#This Row],[Name]],"Industry") -> Food & Tobacco | E111: =_FV(Table3[[#This Row],[Name]],"52 week low",TRUE) -> 13.7 | F111: =_FV(Table3[[#This Row],[Name]],"52 week high",TRUE) -> 35 | G111: =_FV(Table3[[#This Row],[Name]],"Previous close",TRUE) -> 18.8 | H111: =_FV(Table3[[#This Row],[Name]],"Price") -> 17.48
A112: Motley Fool | B112: ROKU | D112: =_FV(Table3[[#This Row],[Name]],"Industry") -> Media & Publishing | E112: =_FV(Table3[[#This Row],[Name]],"52 week low",TRUE) -> 58.22 | F112: =_FV(Table3[[#This Row],[Name]],"52 week high",TRUE) -> 486.72 | G112: =_FV(Table3[[#This Row],[Name]],"Previous close",TRUE) -> 363.34 | H112: =_FV(Table3[[#This Row],[Name]],"Price") -> 356.005
A113: ZYX Signal Limited | B113: SAVE | D113: =_FV(Table3[[#This Row],[Name]],"Industry") -> Passenger Transportation Services | E113: =_FV(Table3[[#This Row],[Name]],"52 week low",TRUE) -> 7.01 | F113: =_FV(Table3[[#This Row],[Name]],"52 week high",TRUE) -> 39.14 | G113: =_FV(Table3[[#This Row],[Name]],"Previous close",TRUE) -> 36.51 | H113: =_FV(Table3[[#This Row],[Name]],"Price") -> 37.37
A114: ZYX Electric Cars | B114: SBE | D114: =_FV(Table3[[#This Row],[Name]],"Industry") -> Electrical Utilities & IPPs | E114: =_FV(Table3[[#This Row],[Name]],"52 week low",TRUE) -> 9.38 | F114: =_FV(Table3[[#This Row],[Name]],"52 week high",TRUE) -> 49.48 | G114: =_FV(Table3[[#This Row],[Name]],"Previous close",TRUE) -> 30.43 | H114: =_FV(Table3[[#This Row],[Name]],"Price") -> 27.588
A115: ZYX Signal Limited | B115: SFIX | D115: =_FV(Table3[[#This Row],[Name]],"Industry") -> Software & IT Services | E115: =_FV(Table3[[#This Row],[Name]],"52 week low",TRUE) -> 10.9 | F115: =_FV(Table3[[#This Row],[Name]],"52 week high",TRUE) -> 113.7594 | G115: =_FV(Table3[[#This Row],[Name]],"Previous close",TRUE) -> 50.93 | H115: =_FV(Table3[[#This Row],[Name]],"Price") -> 51.0341
A116: ZYX Signal Limited | B116: SKLZ | D116: =_FV(Table3[[#This Row],[Name]],"Industry") -> Holding Companies | E116: =_FV(Table3[[#This Row],[Name]],"52 week low",TRUE) -> 9.81 | F116: =_FV(Table3[[#This Row],[Name]],"52 week high",TRUE) -> 46.298 | G116: =_FV(Table3[[#This Row],[Name]],"Previous close",TRUE) -> 27.78 | H116: =_FV(Table3[[#This Row],[Name]],"Price") -> 27.84
A117: ZYX Signal Limited | B117: SKT | D117: =_FV(Table3[[#This Row],[Name]],"Industry") -> Residential & Commercial REIT | E117: =_FV(Table3[[#This Row],[Name]],"52 week low",TRUE) -> 4.05 | F117: =_FV(Table3[[#This Row],[Name]],"52 week high",TRUE) -> 22.4 | G117: =_FV(Table3[[#This Row],[Name]],"Previous close",TRUE) -> 16.92 | H117: =_FV(Table3[[#This Row],[Name]],"Price") -> 17.015
A118: ZYX Core Portfolio | B118: SLV | D118: =_FV(Table3[[#This Row],[Name]],"Industry") ->  | E118: =_FV(Table3[[#This Row],[Name]],"52 week low",TRUE) -> 10.86 | F118: =_FV(Table3[[#This Row],[Name]],"52 week high",TRUE) -> 27.98 | G118: =_FV(Table3[[#This Row],[Name]],"Previous close",TRUE) -> 24.25 | H118: =_FV(Table3[[#This Row],[Name]],"Price") -> 23.8464
A119: ZYX Signal Limited | B119: SLV | D119: =_FV(Table3[[#This Row],[Name]],"Industry") ->  | E119: =_FV(Table3[[#This Row],[Name]],"52 week low",TRUE) -> 10.86 | F119: =_FV(Table3[[#This Row],[Name]],"52 week high",TRUE) -> 27.98 | G119: =_FV(Table3[[#This Row],[Name]],"Previous close",TRUE) -> 24.25 | H119: =_FV(Table3[[#This Row],[Name]],"Price") -> 23.8464
A120: ZYX Space | B120: SPCE | D120: =_FV(Table3[[#This Row],[Name]],"Industry") -> Aerospace & Defense | E120: =_FV(Table3[[#This Row],[Name]],"52 week low",TRUE) -> 9.06 | F120: =_FV(Table3[[#This Row],[Name]],"52 week high",TRUE) -> 62.8 | G120: =_FV(Table3[[#This Row],[Name]],"Previous close",TRUE) -> 33.58 | H120: =_FV(Table3[[#This Row],[Name]],"Price") -> 32.82
A121: ZYX Core Portfolio | B121: SPR | D121: =_FV(Table3[[#This Row],[Name]],"Industry") -> Aerospace & Defense | E121: =_FV(Table3[[#This Row],[Name]],"52 week low",TRUE) -> 13.69 | F121: =_FV(Table3[[#This Row],[Name]],"52 week high",TRUE) -> 51.56 | G121: =_FV(Table3[[#This Row],[Name]],"Previous close",TRUE) -> 49.83 | H121: =_FV(Table3[[#This Row],[Name]],"Price") -> 50.625
A122: ZYX Signal Limited | B122: SPR | D122: =_FV(Table3[[#This Row],[Name]],"Industry") -> Aerospace & Defense | E122: =_FV(Table3[[#This Row],[Name]],"52 week low",TRUE) -> 13.69 | F122: =_FV(Table3[[#This Row],[Name]],"52 week high",TRUE) -> 51.56 | G122: =_FV(Table3[[#This Row],[Name]],"Previous close",TRUE) -> 49.83 | H122: =_FV(Table3[[#This Row],[Name]],"Price") -> 50.625
A123: ZYX Signal Limited | B123: SQQQ | D123: =_FV(Table3[[#This Row],[Name]],"Industry") ->  | E123: =_FV(Table3[[#This Row],[Name]],"52 week low",TRUE) -> 11.76 | F123: =_FV(Table3[[#This Row],[Name]],"52 week high",TRUE) -> 162.15 | G123: =_FV(Table3[[#This Row],[Name]],"Previous close",TRUE) -> 13.49 | H123: =_FV(Table3[[#This Row],[Name]],"Price") -> 13.995
A124: ZYX Space | B124: SRACU | D124: =_FV(Table3[[#This Row],[Name]],"Industry") ->  | E124: =_FV(Table3[[#This Row],[Name]],"52 week low",TRUE) -> 9.3 | F124: =_FV(Table3[[#This Row],[Name]],"52 week high",TRUE) -> 35 | G124: =_FV(Table3[[#This Row],[Name]],"Previous close",TRUE) -> 16.54 | H124: =_FV(Table3[[#This Row],[Name]],"Price") -> 19.27
A125: ZYX Signal Limited | B125: SRACU | D125: =_FV(Table3[[#This Row],[Name]],"Industry") ->  | E125: =_FV(Table3[[#This Row],[Name]],"52 week low",TRUE) -> 9.3 | F125: =_FV(Table3[[#This Row],[Name]],"52 week high",TRUE) -> 35 | G125: =_FV(Table3[[#This Row],[Name]],"Previous close",TRUE) -> 16.54 | H125: =_FV(Table3[[#This Row],[Name]],"Price") -> 19.27
A126: ZYX Signal Limited | B126: SSYS | D126: =_FV(Table3[[#This Row],[Name]],"Industry") -> Electronic Equipment & Parts | E126: =_FV(Table3[[#This Row],[Name]],"52 week low",TRUE) -> 11.89 | F126: =_FV(Table3[[#This Row],[Name]],"52 week high",TRUE) -> 56.95 | G126: =_FV(Table3[[#This Row],[Name]],"Previous close",TRUE) -> 28.14 | H126: =_FV(Table3[[#This Row],[Name]],"Price") -> 27.49
A127: ZYX Signal Limited | B127: THCB | D127: =_FV(Table3[[#This Row],[Name]],"Industry") -> Holding Companies | E127: =_FV(Table3[[#This Row],[Name]],"52 week low",TRUE) -> 9.16 | F127: =_FV(Table3[[#This Row],[Name]],"52 week high",TRUE) -> 25.2 | G127: =_FV(Table3[[#This Row],[Name]],"Previous close",TRUE) -> 14.68 | H127: =_FV(Table3[[#This Row],[Name]],"Price") -> 14.5575
A128: ZYX Pot | B128: TLRY | D128: =_FV(Table3[[#This Row],[Name]],"Industry") -> Pharmaceuticals | E128: =_FV(Table3[[#This Row],[Name]],"52 week low",TRUE) -> 2.43 | F128: =_FV(Table3[[#This Row],[Name]],"52 week high",TRUE) -> 67 | G128: =_FV(Table3[[#This Row],[Name]],"Previous close",TRUE) -> 28.195 | H128: =_FV(Table3[[#This Row],[Name]],"Price") -> 26.42
A129: ZYX Core Portfolio | B129: TMUS | D129: =_FV(Table3[[#This Row],[Name]],"Industry") -> Telecommunications Services | E129: =_FV(Table3[[#This Row],[Name]],"52 week low",TRUE) -> 63.5 | F129: =_FV(Table3[[#This Row],[Name]],"52 week high",TRUE) -> 135.54 | G129: =_FV(Table3[[#This Row],[Name]],"Previous close",TRUE) -> 125.99 | H129: =_FV(Table3[[#This Row],[Name]],"Price") -> 126.23
A130: ZYX Electric Cars | B130: TPGY | D130: =_FV(Table3[[#This Row],[Name]],"Industry") -> Holding Companies | E130: =_FV(Table3[[#This Row],[Name]],"52 week low",TRUE) -> 9.76 | F130: =_FV(Table3[[#This Row],[Name]],"52 week high",TRUE) -> 34.28 | G130: =_FV(Table3[[#This Row],[Name]],"Previous close",TRUE) -> 18.18 | H130: =_FV(Table3[[#This Row],[Name]],"Price") -> 17.87
A131: ZYX Electric Cars | B131: TSLA | D131: =_FV(Table3[[#This Row],[Name]],"Industry") -> Automobiles & Auto Parts | E131: =_FV(Table3[[#This Row],[Name]],"52 week low",TRUE) -> 70.102 | F131: =_FV(Table3[[#This Row],[Name]],"52 week high",TRUE) -> 900.4 | G131: =_FV(Table3[[#This Row],[Name]],"Previous close",TRUE) -> 699.6 | H131: =_FV(Table3[[#This Row],[Name]],"Price") -> 681.5188
A132: ZYX Core Portfolio | B132: TSM | D132: =_FV(Table3[[#This Row],[Name]],"Industry") -> Semiconductors & Semiconductor Equipment | E132: =_FV(Table3[[#This Row],[Name]],"52 week low",TRUE) -> 42.7 | F132: =_FV(Table3[[#This Row],[Name]],"52 week high",TRUE) -> 142.195 | G132: =_FV(Table3[[#This Row],[Name]],"Previous close",TRUE) -> 120.58 | H132: =_FV(Table3[[#This Row],[Name]],"Price") -> 118.79
A133: ZYX Signal Limited | B133: TWM | D133: =_FV(Table3[[#This Row],[Name]],"Industry") ->  | E133: =_FV(Table3[[#This Row],[Name]],"52 week low",TRUE) -> 13.615 | F133: =_FV(Table3[[#This Row],[Name]],"52 week high",TRUE) -> 120.3008 | G133: =_FV(Table3[[#This Row],[Name]],"Previous close",TRUE) -> 13.66 | H133: =_FV(Table3[[#This Row],[Name]],"Price") -> 13.6313
A134: ZYX Core Portfolio | B134: TWTR | D134: =_FV(Table3[[#This Row],[Name]],"Industry") -> Software & IT Services | E134: =_FV(Table3[[#This Row],[Name]],"52 week low",TRUE) -> 20 | F134: =_FV(Table3[[#This Row],[Name]],"52 week high",TRUE) -> 80.75 | G134: =_FV(Table3[[#This Row],[Name]],"Previous close",TRUE) -> 68.46 | H134: =_FV(Table3[[#This Row],[Name]],"Price") -> 67.75
A135: Oil | B135: TYG | D135: =_FV(Table3[[#This Row],[Name]],"Industry") ->  | E135: =_FV(Table3[[#This Row],[Name]],"52 week low",TRUE) -> 4.6 | F135: =_FV(Table3[[#This Row],[Name]],"52 week high",TRUE) -> 25.46 | G135: =_FV(Table3[[#This Row],[Name]],"Previous close",TRUE) -> 25.18 | H135: =_FV(Table3[[#This Row],[Name]],"Price") -> 25.02
A136: ZYX Core Portfolio | B136: UBER | D136: =_FV(Table3[[#This Row],[Name]],"Industry") -> Software & IT Services | E136: =_FV(Table3[[#This Row],[Name]],"52 week low",TRUE) -> 13.71 | F136: =_FV(Table3[[#This Row],[Name]],"52 week high",TRUE) -> 64.05 | G136: =_FV(Table3[[#This Row],[Name]],"Previous close",TRUE) -> 58.95 | H136: =_FV(Table3[[#This Row],[Name]],"Price") -> 58.25
A137: ZYX Signal Limited | B137: UNFI | D137: =_FV(Table3[[#This Row],[Name]],"Industry") -> Food & Drug Retailing | E137: =_FV(Table3[[#This Row],[Name]],"52 week low",TRUE) -> 5.055 | F137: =_FV(Table3[[#This Row],[Name]],"52 week high",TRUE) -> 40.24 | G137: =_FV(Table3[[#This Row],[Name]],"Previous close",TRUE) -> 39.24 | H137: =_FV(Table3[[#This Row],[Name]],"Price") -> 39.19
A138: ZYX Signal Limited | B138: VACQ | D138: =_FV(Table3[[#This Row],[Name]],"Industry") -> Holding Companies | E138: =_FV(Table3[[#This Row],[Name]],"52 week low",TRUE) -> 9.72 | F138: =_FV(Table3[[#This Row],[Name]],"52 week high",TRUE) -> 15.15 | G138: =_FV(Table3[[#This Row],[Name]],"Previous close",TRUE) -> 12.41 | H138: =_FV(Table3[[#This Row],[Name]],"Price") -> 12.2
A139: ZYX Signal Limited | B139: VSPR | D139: =_FV(Table3[[#This Row],[Name]],"Industry") -> Holding Companies | E139: =_FV(Table3[[#This Row],[Name]],"52 week low",TRUE) -> 10.01 | F139: =_FV(Table3[[#This Row],[Name]],"52 week high",TRUE) -> 12.84 | G139: =_FV(Table3[[#This Row],[Name]],"Previous close",TRUE) -> 10.81 | H139: =_FV(Table3[[#This Row],[Name]],"Price") -> 10.58
A140: ZYX Signal Limited | B140: VTRS | D140: =_FV(Table3[[#This Row],[Name]],"Industry") -> Pharmaceuticals | E140: =_FV(Table3[[#This Row],[Name]],"52 week low",TRUE) -> 12.75 | F140: =_FV(Table3[[#This Row],[Name]],"52 week high",TRUE) -> 19.24 | G140: =_FV(Table3[[#This Row],[Name]],"Previous close",TRUE) -> 14.1 | H140: =_FV(Table3[[#This Row],[Name]],"Price") -> 14.235
A141: ZYX Signal Limited | B141: WIFI | D141: =_FV(Table3[[#This Row],[Name]],"Industry") -> Telecommunications Services | E141: =_FV(Table3[[#This Row],[Name]],"52 week low",TRUE) -> 6.66 | F141: =_FV(Table3[[#This Row],[Name]],"52 week high",TRUE) -> 15.92 | G141: =_FV(Table3[[#This Row],[Name]],"Previous close",TRUE) -> 14.11 | H141: =_FV(Table3[[#This Row],[Name]],"Price") -> 14.13
A142: ZYX Core Portfolio | B142: WMT | D142: =_FV(Table3[[#This Row],[Name]],"Industry") -> Food & Drug Retailing | E142: =_FV(Table3[[#This Row],[Name]],"52 week low",TRUE) -> 102 | F142: =_FV(Table3[[#This Row],[Name]],"52 week high",TRUE) -> 153.6597 | G142: =_FV(Table3[[#This Row],[Name]],"Previous close",TRUE) -> 132.13 | H142: =_FV(Table3[[#This Row],[Name]],"Price") -> 132.7607
A143: ZYX Signal Limited | B143: WOW | D143: =_FV(Table3[[#This Row],[Name]],"Industry") -> Media & Publishing | E143: =_FV(Table3[[#This Row],[Name]],"52 week low",TRUE) -> 2.9453 | F143: =_FV(Table3[[#This Row],[Name]],"52 week high",TRUE) -> 18.2 | G143: =_FV(Table3[[#This Row],[Name]],"Previous close",TRUE) -> 16.87 | H143: =_FV(Table3[[#This Row],[Name]],"Price") -> 17.15
A144: ZYX Signal Limited | B144: XL | D144: =_FV(Table3[[#This Row],[Name]],"Industry") -> Automobiles & Auto Parts | E144: =_FV(Table3[[#This Row],[Name]],"52 week low",TRUE) -> 9.5 | F144: =_FV(Table3[[#This Row],[Name]],"52 week high",TRUE) -> 35 | G144: =_FV(Table3[[#This Row],[Name]],"Previous close",TRUE) -> 12.73 | H144: =_FV(Table3[[#This Row],[Name]],"Price") -> 12.4327
A145: ZYX Signal Limited | B145: XSPA | D145: =_FV(Table3[[#This Row],[Name]],"Industry") -> Personal & Household Products & Services | E145: =_FV(Table3[[#This Row],[Name]],"52 week low",TRUE) -> 0.15 | F145: =_FV(Table3[[#This Row],[Name]],"52 week high",TRUE) -> 8.82 | G145: =_FV(Table3[[#This Row],[Name]],"Previous close",TRUE) -> 1.95 | H145: =_FV(Table3[[#This Row],[Name]],"Price") -> 1.94
A146: ZYX Signal Limited | B146: YQ | D146: =_FV(Table3[[#This Row],[Name]],"Industry") ->  | E146: =_FV(Table3[[#This Row],[Name]],"52 week low",TRUE) -> 10 | F146: =_FV(Table3[[#This Row],[Name]],"52 week high",TRUE) -> 23.93 | G146: =_FV(Table3[[#This Row],[Name]],"Previous close",TRUE) -> 11.51 | H146: =_FV(Table3[[#This Row],[Name]],"Price") -> 11.16
A147: ZYX Signal Limited | B147: YUMC | D147: =_FV(Table3[[#This Row],[Name]],"Industry") -> Hotels & Entertainment Services | E147: =_FV(Table3[[#This Row],[Name]],"52 week low",TRUE) -> 38.33 | F147: =_FV(Table3[[#This Row],[Name]],"52 week high",TRUE) -> 64.64 | G147: =_FV(Table3[[#This Row],[Name]],"Previous close",TRUE) -> 61.65 | H147: =_FV(Table3[[#This Row],[Name]],"Price") -> 61.08
A148: Motley Fool | B148: ZM | D148: =_FV(Table3[[#This Row],[Name]],"Industry") -> Software & IT Services | E148: =_FV(Table3[[#This Row],[Name]],"52 week low",TRUE) -> 102 | F148: =_FV(Table3[[#This Row],[Name]],"52 week high",TRUE) -> 588.84 | G148: =_FV(Table3[[#This Row],[Name]],"Previous close",TRUE) -> 355.17 | H148: =_FV(Table3[[#This Row],[Name]],"Price") -> 347.29

Sheet Target
AW1: Color Criteria | AX1: Formula
AI2: Top of Range | AJ2: 1 | AL2: Middle | AN2: 1 | AP2: 1.05 | AR2: 1.1 | AT2: 1.15
C3: https://zyxbuyfeed.thearorareport.com/ | AI3: x | AJ3: 0.3 | AL3: 0.25 | AN3: 0.2 | AP3: 0.15 | AR3: 0.07 | AT3: 0.03
A4: Portfolio | B4: SYMBOL | C4: Name | D4: Industry2 | E4: 52 week low | F4: 52 week high | G4: Previous | H4: Current | I4: Best Way Buy Zone | K4: Size Range | M4: Stop Zone | O4: 1st Target Zone | Q4: 1stTarget vs Current | S4: 1stTarget vs BuyZone | U4: 2nd Target Zone | W4: 2ndTarget vs Current | Y4: 2ndTarget vs BuyZone | AA4: 3rd Target Zone | AC4: 3rdTarget vs Current | AE4: 3rdTarget vs BuyZone | AG4: Gamble | AH4: Maximum Cash | AI4: Cash | AJ4: Bottom of Buy Zn | AL4: Middle of Buy Zone | AN4: Top of Buy Zone | AP4: Within 5% | AR4: Within 10% | AT4: Within 15%
A5: =Source!A5 -> ZYX Signal Limited | B5: =Source!B5 -> AAL | C5: =Source!C5 ->  | D5: =Source!D5 -> Passenger Transportation Services | E5: =Source!E5 -> 8.25 | F5: =Source!F5 -> 22.8 | G5: =Source!G5 -> 22.15 | H5: =Source!H5 -> 22.615 | Q5: =SUM(O5-$H5)/$H5 -> -1 | R5: =SUM(P5-$H5)/$H5 -> -1 | S5: =SUM(O5-$I5)/$I5 ->  | T5: =SUM(P5-$I5)/$I5 ->  | W5: =SUM(U5-$H5)/$H5 -> -1 | X5: =SUM(V5-$H5)/$H5 -> -1 | Y5: =SUM(U5-$I5)/$I5 ->  | Z5: =SUM(V5-$I5)/$I5 ->  | AC5: =SUM(AA5-$H5)/$H5 -> -1 | AD5: =SUM(AB5-$H5)/$H5 -> -1 | AE5: =SUM(AA5-$I5)/$I5 ->  | AF5: =SUM(AB5-$I5)/$I5 ->  | AH5: 5000 | AI5: =ROUNDDOWN(SUM($L5*$AH5),0) -> 0 | AJ5: =ROUNDDOWN(SUM($AI5*AJ$3),0) -> 0 | AK5: =ROUNDDOWN(SUM(AJ5/$H5),0) -> 0 | AL5: =ROUNDDOWN(SUM($AI5*AL$3),0) -> 0 | AM5: =ROUNDDOWN(SUM(AL5/$H5),0) -> 0 | AN5: =ROUNDDOWN(SUM($AI5*AN$3),0) -> 0 | AO5: =ROUNDDOWN(SUM(AN5/$H5),0) -> 0 | AP5: =ROUNDDOWN(SUM($AI5*AP$3),0) -> 0 | AQ5: =ROUNDDOWN(SUM(AP5/$H5),0) -> 0 | AR5: =ROUNDDOWN(SUM($AI5*AR$3),0) -> 0 | AS5: =ROUNDDOWN(SUM(AR5/$H5),0) -> 0 | AT5: =ROUNDDOWN(SUM($AI5*AT$3),0) -> 0 | AU5: =ROUNDDOWN(SUM(AT5/$H5),0) -> 0 | AX5: =SumConditionColorCells(AJ5:AU5,AW$5) -> 
A6: =Source!A6 -> ZYX Core Portfolio | B6: =Source!B6 -> AAPL | C6: =Source!C6 ->  | D6: =Source!D6 -> Computers, Phones & Household Electronics | E6: =Source!E6 -> 53.1525 | F6: =Source!F6 -> 145.09 | G6: =Source!G6 -> 121.96 | H6: =Source!H6 -> 119.65 | I6: 101.04 | J6: 116.76 | K6: 0.25 | L6: 0.6 | O6: 156 | P6: 175 | Q6: 0.303802758 | R6: 0.4625992478 | S6: 0.5439429929 | T6: 0.7319873317 | W6: -1 | X6: -1 | Y6: -1 | Z6: -1 | AC6: -1 | AD6: -1 | AE6: -1 | AF6: -1 | AG6: =IF(#REF!=0,0,IF(#REF!=#REF!,#REF!-#REF!,0)) ->  | AH6: =$AH$5 -> 5000 | AI6: 3000 | AJ6: 900 | AK6: 7 | AL6: 750 | AM6: 6 | AN6: 600 | AO6: 5 | AP6: 450 | AQ6: 3 | AR6: 210 | AS6: 1 | AT6: 90 | AU6: 0 | AX6: =SumConditionColorCells(AJ6:AU6,AW$5) -> 
A7: =Source!A7 -> ZYX Signal Limited | B7: =Source!B7 -> AAPL | C7: =Source!C7 ->  | D7: =Source!D7 -> Computers, Phones & Household Electronics | E7: =Source!E7 -> 53.1525 | F7: =Source!F7 -> 145.09 | G7: =Source!G7 -> 121.96 | H7: =Source!H7 -> 119.65 | Q7: -1 | R7: -1 | W7: -1 | X7: -1 | AC7: -1 | AD7: -1 | AG7: =IF(#REF!=0,0,IF(#REF!=#REF!,#REF!-#REF!,0)) ->  | AH7: 5000 | AI7: 0 | AJ7: 0 | AK7: 0 | AL7: 0 | AM7: 0 | AN7: 0 | AO7: 0 | AP7: 0 | AQ7: 0 | AR7: 0 | AS7: 0 | AT7: 0 | AU7: 0
A8: =Source!A8 -> ZYX Signal Limited | B8: =Source!B8 -> ABNB | C8: =Source!C8 ->  | D8: =Source!D8 -> Software & IT Services | E8: =Source!E8 -> 121.5 | F8: =Source!F8 -> 219.94 | G8: =Source!G8 -> 197.87 | H8: =Source!H8 -> 196 | Q8: -1 | R8: -1 | W8: -1 | X8: -1 | AC8: -1 | AD8: -1 | AG8: =IF(#REF!=0,0,IF(#REF!=#REF!,#REF!-#REF!,0)) ->  | AH8: 5000 | AI8: 0 | AJ8: 0 | AK8: 0 | AL8: 0 | AM8: 0 | AN8: 0 | AO8: 0 | AP8: 0 | AQ8: 0 | AR8: 0 | AS8: 0 | AT8: 0 | AU8: 0
A9: =Source!A9 -> ZYX Signal Limited | B9: =Source!B9 -> ACAC | C9: =Source!C9 ->  | D9: =Source!D9 -> Holding Companies | E9: =Source!E9 -> 9.72 | F9: =Source!F9 -> 13.2 | G9: =Source!G9 -> 10.51 | H9: =Source!H9 -> 10.2707 | I9: 12 | J9: 13.37 | L9: 0.15 | M9: 9.18 | N9: 9.63 | O9: 16.73 | P9: 18.23 | Q9: 0.6289055274 | R9: 0.7749520481 | S9: 0.3941666667 | T9: 0.5191666667 | U9: 23 | V9: 28 | W9: 1.239379984 | X9: 1.726201719 | Y9: 0.9166666667 | Z9: 1.333333333 | AA9: 38 | AB9: 42 | AC9: 2.699845191 | AD9: 3.089302579 | AE9: 2.166666667 | AF9: 2.5 | AG9: =IF(#REF!=0,0,IF(#REF!=#REF!,#REF!-#REF!,0)) ->  | AH9: 5000 | AI9: 750 | AJ9: 225 | AK9: 21 | AL9: 187 | AM9: 18 | AN9: 150 | AO9: 14 | AP9: 112 | AQ9: 10 | AR9: 52 | AS9: 5 | AT9: 22 | AU9: 2
A10: =Source!A10 -> ZYX Signal Limited | B10: =Source!B10 -> AFRM | C10: =Source!C10 ->  | D10: =Source!D10 -> Software & IT Services | E10: =Source!E10 -> 70.05 | F10: =Source!F10 -> 146.9 | G10: =Source!G10 -> 81.25 | H10: =Source!H10 -> 78.22 | Q10: -1 | R10: -1 | W10: -1 | X10: -1 | AC10: -1 | AD10: -1 | AG10: =IF(#REF!=0,0,IF(#REF!=#REF!,#REF!-#REF!,0)) ->  | AH10: 5000 | AI10: 0 | AJ10: 0 | AK10: 0 | AL10: 0 | AM10: 0 | AN10: 0 | AO10: 0 | AP10: 0 | AQ10: 0 | AR10: 0 | AS10: 0 | AT10: 0 | AU10: 0
A11: =Source!A11 -> ZYX Signal Limited | B11: =Source!B11 -> AI | C11: =Source!C11 ->  | D11: =Source!D11 -> Software & IT Services | E11: =Source!E11 -> 77 | F11: =Source!F11 -> 183.9 | G11: =Source!G11 -> 86.47 | H11: =Source!H11 -> 85.325 | Q11: -1 | R11: -1 | W11: -1 | X11: -1 | AC11: -1 | AD11: -1 | AG11: =IF(#REF!=0,0,IF(#REF!=#REF!,#REF!-#REF!,0)) ->  | AH11: 5000 | AI11: 0 | AJ11: 0 | AK11: 0 | AL11: 0 | AM11: 0 | AN11: 0 | AO11: 0 | AP11: 0 | AQ11: 0 | AR11: 0 | AS11: 0 | AT11: 0 | AU11: 0
A12: =Source!A12 -> ZYX Core Portfolio | B12: =Source!B12 -> AIG | C12: =Source!C12 ->  | D12: =Source!D12 -> Insurance | E12: =Source!E12 -> 16.07 | F12: =Source!F12 -> 48.92 | G12: =Source!G12 -> 48.01 | H12: =Source!H12 -> 48.435 | I12: 33.11 | J12: 38.72 | K12: 0.2 | L12: 0.6 | O12: 75 | P12: 80 | Q12: 0.5484670177 | R12: 0.6516981522 | S12: 1.265176684 | T12: 1.416188463 | W12: -1 | X12: -1 | Y12: -1 | Z12: -1 | AC12: -1 | AD12: -1 | AE12: -1 | AF12: -1 | AG12: =IF(#REF!=0,0,IF(#REF!=#REF!,#REF!-#REF!,0)) ->  | AH12: 5000 | AI12: 3000 | AJ12: 900 | AK12: 18 | AL12: 750 | AM12: 15 | AN12: 600 | AO12: 12 | AP12: 450 | AQ12: 9 | AR12: 210 | AS12: 4 | AT12: 90 | AU12: 1
A13: =Source!A13 -> ZYX Core Portfolio | B13: =Source!B13 -> AMAT | C13: =Source!C13 ->  | D13: =Source!D13 -> Semiconductors & Semiconductor Equipment | E13: =Source!E13 -> 36.64 | F13: =Source!F13 -> 124.5 | G13: =Source!G13 -> 117.19 | H13: =Source!H13 -> 115.7199 | I13: 78.52 | J13: 92.13 | K13: 0.2 | L13: 0.45 | O13: 152 | P13: 166 | Q13: 0.313516517 | R13: 0.4344983015 | S13: 0.9358125318 | T13: 1.114111055 | W13: -1 | X13: -1 | Y13: -1 | Z13: -1 | AC13: -1 | AD13: -1 | AE13: -1 | AF13: -1 | AG13: =IF(#REF!=0,0,IF(#REF!=#REF!,#REF!-#REF!,0)) ->  | AH13: 5000 | AI13: 2250 | AJ13: 675 | AK13: 5 | AL13: 562 | AM13: 4 | AN13: 450 | AO13: 3 | AP13: 337 | AQ13: 2 | AR13: 157 | AS13: 1 | AT13: 67 | AU13: 0
A14: =Source!A14 -> ZYX Signal Limited | B14: =Source!B14 -> AMAT | C14: =Source!C14 ->  | D14: =Source!D14 -> Semiconductors & Semiconductor Equipment | E14: =Source!E14 -> 36.64 | F14: =Source!F14 -> 124.5 | G14: =Source!G14 -> 117.19 | H14: =Source!H14 -> 115.7199 | Q14: -1 | R14: -1 | W14: -1 | X14: -1 | AC14: -1 | AD14: -1 | AG14: =IF(#REF!=0,0,IF(#REF!=#REF!,#REF!-#REF!,0)) ->  | AH14: 5000 | AI14: 0 | AJ14: 0 | AK14: 0 | AL14: 0 | AM14: 0 | AN14: 0 | AO14: 0 | AP14: 0 | AQ14: 0 | AR14: 0 | AS14: 0 | AT14: 0 | AU14: 0
A15: =Source!A15 -> ZYX Signal Limited | B15: =Source!B15 -> AMCX | C15: =Source!C15 ->  | D15: =Source!D15 -> Media & Publishing | E15: =Source!E15 -> 19.62 | F15: =Source!F15 -> 75.15 | G15: =Source!G15 -> 73.6 | H15: =Source!H15 -> 75.12 | I15: 20.56 | J15: 23.88 | L15: 0.3 | M15: 19 | N15: 19.43 | O15: 78 | P15: 87 | Q15: 0.03833865815 | R15: 0.1581469649 | S15: 2.793774319 | T15: 3.23151751 | W15: -1 | X15: -1 | Y15: -1 | Z15: -1 | AC15: -1 | AD15: -1 | AE15: -1 | AF15: -1 | AG15: =IF(#REF!=0,0,IF(#REF!=#REF!,#REF!-#REF!,0)) ->  | AH15: 5000 | AI15: 1500 | AJ15: 450 | AK15: 5 | AL15: 375 | AM15: 4 | AN15: 300 | AO15: 3 | AP15: 225 | AQ15: 2 | AR15: 105 | AS15: 1 | AT15: 45 | AU15: 0
A16: =Source!A16 -> ZYX Core Portfolio | B16: =Source!B16 -> AMZN | C16: =Source!C16 ->  | D16: =Source!D16 -> Diversified Retail | E16: =Source!E16 -> 1626.0318 | F16: =Source!F16 -> 3552.25 | G16: =Source!G16 -> 3113.5901 | H16: =Source!H16 -> 3081.88 | I16: 2878 | J16: 3109 | K16: 0.15 | L16: 0.3 | O16: 4200 | P16: 4800 | Q16: 0.3628045219 | R16: 0.5574908822 | S16: 0.4593467686 | T16: 0.6678248784 | W16: -1 | X16: -1 | Y16: -1 | Z16: -1 | AC16: -1 | AD16: -1 | AE16: -1 | AF16: -1 | AG16: =IF(#REF!=0,0,IF(#REF!=#REF!,#REF!-#REF!,0)) ->  | AH16: 5000 | AI16: 1500 | AJ16: 450 | AK16: 0 | AL16: 375 | AM16: 0 | AN16: 300 | AO16: 0 | AP16: 225 | AQ16: 0 | AR16: 105 | AS16: 0 | AT16: 45 | AU16: 0
A17: =Source!A17 -> ZYX Pot | B17: =Source!B17 -> APHA | C17: =Source!C17 ->  | D17: =Source!D17 -> Pharmaceuticals | E17: =Source!E17 -> 1.95 | F17: =Source!F17 -> 32.29 | G17: =Source!G17 -> 19.86 | H17: =Source!H17 -> 19.1 | I17: 8.51 | J17: 12.78 | K17: 0.2 | L17: 0.3 | O17: Suspended | P17: Suspended | W17: -1 | X17: -1 | Y17: -1 | Z17: -1 | AC17: -1 | AD17: -1 | AE17: -1 | AF17: -1 | AG17: =IF(#REF!=0,0,IF(#REF!=#REF!,#REF!-#REF!,0)) ->  | AH17: 5000 | AI17: 1500 | AJ17: 450 | AK17: 23 | AL17: 375 | AM17: 19 | AN17: 300 | AO17: 15 | AP17: 225 | AQ17: 11 | AR17: 105 | AS17: 5 | AT17: 45 | AU17: 2
A18: =Source!A18 -> Motley Fool | B18: =Source!B18 -> APPN | C18: =Source!C18 ->  | D18: =Source!D18 -> Software & IT Services | E18: =Source!E18 -> 29.07 | F18: =Source!F18 -> 260 | G18: =Source!G18 -> 173.92 | H18: =Source!H18 -> 169.53 | Q18: -1 | R18: -1 | W18: -1 | X18: -1 | AC18: -1 | AD18: -1 | AG18: =IF(#REF!=0,0,IF(#REF!=#REF!,#REF!-#REF!,0)) ->  | AH18: 5000 | AI18: 0 | AJ18: 0 | AK18: 0 | AL18: 0 | AM18: 0 | AN18: 0 | AO18: 0 | AP18: 0 | AQ18: 0 | AR18: 0 | AS18: 0 | AT18: 0 | AU18: 0
A19: =Source!A19 -> ZYX Signal Limited | B19: =Source!B19 -> APT | C19: =Source!C19 ->  | D19: =Source!D19 -> Healthcare Equipment & Supplies | E19: =Source!E19 -> 8.56 | F19: =Source!F19 -> 25.55 | G19: =Source!G19 -> 10.43 | H19: =Source!H19 -> 10.4 | Q19: -1 | R19: -1 | W19: -1 | X19: -1 | AC19: -1 | AD19: -1 | AG19: =IF(#REF!=0,0,IF(#REF!=#REF!,#REF!-#REF!,0)) ->  | AH19: 5000 | AI19: 0 | AJ19: 0 | AK19: 0 | AL19: 0 | AM19: 0 | AN19: 0 | AO19: 0 | AP19: 0 | AQ19: 0 | AR19: 0 | AS19: 0 | AT19: 0 | AU19: 0
A20: =Source!A20 -> ZYX Signal Limited | B20: =Source!B20 -> APXT | C20: =Source!C20 ->  | D20: =Source!D20 -> Holding Companies | E20: =Source!E20 -> 9.125 | F20: =Source!F20 -> 17.9 | G20: =Source!G20 -> 12.76 | H20: =Source!H20 -> 12.56 | Q20: -1 | R20: -1 | W20: -1 | X20: -1 | AC20: -1 | AD20: -1 | AG20: =IF(#REF!=0,0,IF(#REF!=#REF!,#REF!-#REF!,0)) ->  | AH20: 5000 | AI20: 0 | AJ20: 0 | AK20: 0 | AL20: 0 | AM20: 0 | AN20: 0 | AO20: 0 | AP20: 0 | AQ20: 0 | AR20: 0 | AS20: 0 | AT20: 0 | AU20: 0
A21: =Source!A21 -> ZYX Pot | B21: =Source!B21 -> ARNA | C21: =Source!C21 ->  | D21: =Source!D21 -> Biotechnology & Medical Research | E21: =Source!E21 -> 32.95 | F21: =Source!F21 -> 90.19 | G21: =Source!G21 -> 75.66 | H21: =Source!H21 -> 75.9 | I21: 46 | J21: 50.57 | K21: 0.1 | L21: 0.25 | M21: 36 | N21: 39.43 | O21: 110 | P21: 120 | Q21: 0.4492753623 | R21: 0.581027668 | S21: 1.391304348 | T21: 1.608695652 | W21: -1 | X21: -1 | Y21: -1 | Z21: -1 | AC21: -1 | AD21: -1 | AE21: -1 | AF21: -1 | AG21: =IF(#REF!=0,0,IF(#REF!=#REF!,#REF!-#REF!,0)) ->  | AH21: 5000 | AI21: 1250 | AJ21: 375 | AK21: 4 | AL21: 312 | AM21: 4 | AN21: 250 | AO21: 3 | AP21: 187 | AQ21: 2 | AR21: 87 | AS21: 1 | AT21: 37 | AU21: 0
A22: =Source!A22 -> ZYX Core Portfolio | B22: =Source!B22 -> ARRY | C22: =Source!C22 ->  | D22: =Source!D22 -> Renewable Energy | E22: =Source!E22 -> 29.05 | F22: =Source!F22 -> 54.78 | G22: =Source!G22 -> 35.07 | H22: =Source!H22 -> 34.56 | I22: 36.41 | J22: 40.88 | K22: 0.2 | L22: 0.35 | O22: 78 | P22: 83 | Q22: 1.256944444 | R22: 1.40162037 | S22: 1.142268608 | T22: 1.279593518 | W22: -1 | X22: -1 | Y22: -1 | Z22: -1 | AC22: -1 | AD22: -1 | AE22: -1 | AF22: -1 | AG22: =IF(#REF!=0,0,IF(#REF!=#REF!,#REF!-#REF!,0)) ->  | AH22: 5000 | AI22: 1750 | AJ22: 525 | AK22: 15 | AL22: 437 | AM22: 12 | AN22: 350 | AO22: 10 | AP22: 262 | AQ22: 7 | AR22: 122 | AS22: 3 | AT22: 52 | AU22: 1
A23: =Source!A23 -> ZYX Signal Limited | B23: =Source!B23 -> ASAN | C23: =Source!C23 ->  | D23: =Source!D23 -> Software & IT Services | E23: =Source!E23 -> 20.57 | F23: =Source!F23 -> 43.72 | G23: =Source!G23 -> 33.94 | H23: =Source!H23 -> 32.2 | Q23: -1 | R23: -1 | W23: -1 | X23: -1 | AC23: -1 | AD23: -1 | AG23: =IF(#REF!=0,0,IF(#REF!=#REF!,#REF!-#REF!,0)) ->  | AH23: 5000 | AI23: 0 | AJ23: 0 | AK23: 0 | AL23: 0 | AM23: 0 | AN23: 0 | AO23: 0 | AP23: 0 | AQ23: 0 | AR23: 0 | AS23: 0 | AT23: 0 | AU23: 0
A24: =Source!A24 -> ZYX Core Portfolio | B24: =Source!B24 -> BABA | C24: =Source!C24 ->  | D24: =Source!D24 -> Software & IT Services | E24: =Source!E24 -> 169.95 | F24: =Source!F24 -> 319.32 | G24: =Source!G24 -> 240.8 | H24: =Source!H24 -> 232.15 | I24: 188.13 | J24: 225.67 | K24: 0.3 | L24: 0.55 | O24: 375 | P24: 390 | Q24: 0.6153349128 | R24: 0.6799483093 | S24: 0.9933025036 | T24: 1.073034604 | W24: -1 | X24: -1 | Y24: -1 | Z24: -1 | AC24: -1 | AD24: -1 | AE24: -1 | AF24: -1 | AG24: =IF(#REF!=0,0,IF(#REF!=#REF!,#REF!-#REF!,0)) ->  | AH24: 5000 | AI24: 2750 | AJ24: 825 | AK24: 3 | AL24: 687 | AM24: 2 | AN24: 550 | AO24: 2 | AP24: 412 | AQ24: 1 | AR24: 192 | AS24: 0 | AT24: 82 | AU24: 0
A25: =Source!A25 -> ZYX Core Portfolio | B25: =Source!B25 -> BAC | C25: =Source!C25 ->  | D25: =Source!D25 -> Banking Services | E25: =Source!E25 -> 17.95 | F25: =Source!F25 -> 38.1766 | G25: =Source!G25 -> 37.24 | H25: =Source!H25 -> 37.82 | I25: 24.63 | J25: 28.33 | K25: 0.2 | L25: 0.6 | O25: 47 | P25: 51 | Q25: 0.242728715 | R25: 0.3484928609 | S25: 0.9082419813 | T25: 1.070645554 | W25: -1 | X25: -1 | Y25: -1 | Z25: -1 | AC25: -1 | AD25: -1 | AE25: -1 | AF25: -1 | AG25: =IF(#REF!=0,0,IF(#REF!=#REF!,#REF!-#REF!,0)) ->  | AH25: 5000 | AI25: 3000 | AJ25: 900 | AK25: 23 | AL25: 750 | AM25: 19 | AN25: 600 | AO25: 15 | AP25: 450 | AQ25: 11 | AR25: 210 | AS25: 5 | AT25: 90 | AU25: 2
A26: =Source!A26 -> ZYX Signal Limited | B26: =Source!B26 -> BFT | C26: =Source!C26 ->  | D26: =Source!D26 -> Holding Companies | E26: =Source!E26 -> 9.595 | F26: =Source!F26 -> 19.5662 | G26: =Source!G26 -> 14.92 | H26: =Source!H26 -> 15.05 | Q26: -1 | R26: -1 | W26: -1 | X26: -1 | AC26: -1 | AD26: -1 | AG26: =IF(#REF!=0,0,IF(#REF!=#REF!,#REF!-#REF!,0)) ->  | AH26: 5000 | AI26: 0 | AJ26: 0 | AK26: 0 | AL26: 0 | AM26: 0 | AN26: 0 | AO26: 0 | AP26: 0 | AQ26: 0 | AR26: 0 | AS26: 0 | AT26: 0 | AU26: 0
A27: =Source!A27 -> ZYX Electric Cars | B27: =Source!B27 -> BLNK | C27: =Source!C27 ->  | D27: =Source!D27 -> Electrical Utilities & IPPs | E27: =Source!E27 -> 1.25 | F27: =Source!F27 -> 64.5 | G27: =Source!G27 -> 41.4 | H27: =Source!H27 -> 39.345 | Q27: -1 | R27: -1 | W27: -1 | X27: -1 | AC27: -1 | AD27: -1 | AG27: =IF(#REF!=0,0,IF(#REF!=#REF!,#REF!-#REF!,0)) ->  | AH27: 5000 | AI27: 0 | AJ27: 0 | AK27: 0 | AL27: 0 | AM27: 0 | AN27: 0 | AO27: 0 | AP27: 0 | AQ27: 0 | AR27: 0 | AS27: 0 | AT27: 0 | AU27: 0
A28: =Source!A28 -> ZYX Signal Limited | B28: =Source!B28 -> BMBL | C28: =Source!C28 -> BMBL | D28: =Source!D28 ->  | E28: =Source!E28 ->  | F28: =Source!F28 ->  | G28: =Source!G28 ->  | H28: =Source!H28 -> 70.31 | I28: 52 | J28: 61.56 | L28: 0.2 | M28: 42.68 | N28: 42.93 | O28: 73 | P28: 81 | Q28: 0.0382591381 | R28: 0.1520409615 | S28: 0.4038461538 | T28: 0.5576923077 | W28: -1 | X28: -1 | Y28: -1 | Z28: -1 | AC28: -1 | AD28: -1 | AE28: -1 | AF28: -1 | AG28: =IF(#REF!=0,0,IF(#REF!=#REF!,#REF!-#REF!,0)) ->  | AH28: 5000 | AI28: 1000 | AJ28: 300 | AK28: 4 | AL28: 250 | AM28: 3 | AN28: 200 | AO28: 2 | AP28: 150 | AQ28: 2 | AR28: 70 | AS28: 0 | AT28: 30 | AU28: 0
A29: =Source!A29 -> ZYX Core Portfolio | B29: =Source!B29 -> BMY | C29: =Source!C29 ->  | D29: =Source!D29 -> Pharmaceuticals | E29: =Source!E29 -> 45.76 | F29: =Source!F29 -> 67.1599 | G29: =Source!G29 -> 60.35 | H29: =Source!H29 -> 60.755 | I29: 57.7 | J29: 60.77 | K29: 0.25 | L29: 0.4 | O29: 100 | P29: 110 | Q29: 0.6459550654 | R29: 0.810550572 | S29: 0.733102253 | T29: 0.9064124783 | W29: -1 | X29: -1 | Y29: -1 | Z29: -1 | AC29: -1 | AD29: -1 | AE29: -1 | AF29: -1 | AG29: =IF(#REF!=0,0,IF(#REF!=#REF!,#REF!-#REF!,0)) ->  | AH29: 5000 | AI29: 2000 | AJ29: 600 | AK29: 9 | AL29: 500 | AM29: 8 | AN29: 400 | AO29: 6 | AP29: 300 | AQ29: 4 | AR29: 140 | AS29: 2 | AT29: 60 | AU29: 0
A30: =Source!A30 -> ZYX Signal Limited | B30: =Source!B30 -> BNGO | C30: =Source!C30 ->  | D30: =Source!D30 -> Healthcare Equipment & Supplies | E30: =Source!E30 -> 0.25 | F30: =Source!F30 -> 15.69 | G30: =Source!G30 -> 9.53 | H30: =Source!H30 -> 9.15 | Q30: -1 | R30: -1 | W30: -1 | X30: -1 | AC30: -1 | AD30: -1 | AH30: 5000 | AI30: 0 | AJ30: 0 | AK30: 0 | AL30: 0 | AM30: 0 | AN30: 0 | AO30: 0 | AP30: 0 | AQ30: 0 | AR30: 0 | AS30: 0 | AT30: 0 | AU30: 0
A31: =Source!A31 -> ZYX Core Portfolio | B31: =Source!B31 -> BSX | C31: =Source!C31 ->  | D31: =Source!D31 -> Healthcare Equipment & Supplies | E31: =Source!E31 -> 24.1 | F31: =Source!F31 -> 42.37 | G31: =Source!G31 -> 38.65 | H31: =Source!H31 -> 38.74 | I31: 32.87 | J31: 35.11 | K31: 0.25 | L31: 0.4 | O31: 57 | P31: 62 | Q31: 0.4713474445 | R31: 0.6004130098 | S31: 0.7341040462 | T31: 0.8862184363 | W31: -1 | X31: -1 | Y31: -1 | Z31: -1 | AC31: -1 | AD31: -1 | AE31: -1 | AF31: -1 | AG31: =IF(#REF!=0,0,IF(#REF!=#REF!,#REF!-#REF!,0)) ->  | AH31: 5000 | AI31: 2000 | AJ31: 600 | AK31: 15 | AL31: 500 | AM31: 12 | AN31: 400 | AO31: 10 | AP31: 300 | AQ31: 7 | AR31: 140 | AS31: 3 | AT31: 60 | AU31: 1
A32: =Source!A32 -> ZYX Trade Around | B32: =Source!B32 -> CAPA | C32: =Source!C32 ->  | D32: =Source!D32 -> Holding Companies | E32: =Source!E32 -> 9.88 | F32: =Source!F32 -> 25 | G32: =Source!G32 -> 13.64 | H32: =Source!H32 -> 13.2 | I32: 10 | J32: 13.35 | L32: 0.2 | M32: 9 | N32: 9.43 | O32: 28 | P32: 33 | Q32: 1.121212121 | R32: 1.5 | S32: 1.8 | T32: 2.3 | U32: 58 | V32: 62 | W32: 3.393939394 | X32: 3.696969697 | Y32: 4.8 | Z32: 5.2 | AA32: 107 | AB32: 125 | AC32: 7.106060606 | AD32: 8.46969697 | AE32: 9.7 | AF32: 11.5 | AG32: =IF(#REF!=0,0,IF(#REF!=#REF!,#REF!-#REF!,0)) ->  | AH32: 5000 | AI32: 1000 | AJ32: 300 | AK32: 22 | AL32: 250 | AM32: 18 | AN32: 200 | AO32: 15 | AP32: 150 | AQ32: 11 | AR32: 70 | AS32: 5 | AT32: 30 | AU32: 2
A33: =Source!A33 -> ZYX Signal Limited | B33: =Source!B33 -> CAPA | C33: =Source!C33 ->  | D33: =Source!D33 -> Holding Companies | E33: =Source!E33 -> 9.88 | F33: =Source!F33 -> 25 | G33: =Source!G33 -> 13.64 | H33: =Source!H33 -> 13.2 | I33: 10 | J33: 13.35 | L33: 0.2 | M33: 9 | N33: 9.43 | O33: 28 | P33: 33 | Q33: 1.121212121 | R33: 1.5 | S33: 1.8 | T33: 2.3 | U33: 58 | V33: 62 | W33: 3.393939394 | X33: 3.696969697 | Y33: 4.8 | Z33: 5.2 | AA33: 107 | AB33: 125 | AC33: 7.106060606 | AD33: 8.46969697 | AE33: 9.7 | AF33: 11.5 | AG33: =IF(#REF!=0,0,IF(#REF!=#REF!,#REF!-#REF!,0)) ->  | AH33: 5000 | AI33: 1000 | AJ33: 300 | AK33: 22 | AL33: 250 | AM33: 18 | AN33: 200 | AO33: 15 | AP33: 150 | AQ33: 11 | AR33: 70 | AS33: 5 | AT33: 30 | AU33: 2
A34: =Source!A34 -> ZYX Core Portfolio | B34: =Source!B34 -> CCL | C34: =Source!C34 ->  | D34: =Source!D34 -> Hotels & Entertainment Services | E34: =Source!E34 -> 7.8 | F34: =Source!F34 -> 29.59 | G34: =Source!G34 -> 27.47 | H34: =Source!H34 -> 27.925 | I34: 17.11 | J34: 21.56 | K34: 0.35 | L34: 0.55 | O34: 67 | P34: 75 | Q34: 1.399283796 | R34: 1.685765443 | S34: 2.915838691 | T34: 3.38340152 | W34: -1 | X34: -1 | Y34: -1 | Z34: -1 | AC34: -1 | AD34: -1 | AE34: -1 | AF34: -1 | AG34: =IF(#REF!=0,0,IF(#REF!=#REF!,#REF!-#REF!,0)) ->  | AH34: 5000 | AI34: 2750 | AJ34: 825 | AK34: 29 | AL34: 687 | AM34: 24 | AN34: 550 | AO34: 19 | AP34: 412 | AQ34: 14 | AR34: 192 | AS34: 6 | AT34: 82 | AU34: 2
A35: =Source!A35 -> ZYX Signal Limited | B35: =Source!B35 -> CERT | C35: =Source!C35 ->  | D35: =Source!D35 -> Software & IT Services | E35: =Source!E35 -> 24.9 | F35: =Source!F35 -> 41.79 | G35: =Source!G35 -> 27 | H35: =Source!H35 -> 26.83 | Q35: -1 | R35: -1 | W35: -1 | X35: -1 | AC35: -1 | AD35: -1 | AG35: =IF(#REF!=0,0,IF(#REF!=#REF!,#REF!-#REF!,0)) ->  | AH35: 5000 | AI35: 0 | AJ35: 0 | AK35: 0 | AL35: 0 | AM35: 0 | AN35: 0 | AO35: 0 | AP35: 0 | AQ35: 0 | AR35: 0 | AS35: 0 | AT35: 0 | AU35: 0
A36: =Source!A36 -> ZYX Pot | B36: =Source!B36 -> CGC | C36: =Source!C36 ->  | D36: =Source!D36 -> Pharmaceuticals | E36: =Source!E36 -> 9 | F36: =Source!F36 -> 56.4965 | G36: =Source!G36 -> 34.28 | H36: =Source!H36 -> 33.2199 | I36: 27.26 | J36: 34.51 | K36: 0.2 | L36: 0.4 | O36: 117 | P36: 130 | Q36: 2.521985316 | R36: 2.913317018 | S36: 3.292002935 | T36: 3.76889215 | W36: -1 | X36: -1 | Y36: -1 | Z36: -1 | AC36: -1 | AD36: -1 | AE36: -1 | AF36: -1 | AG36: =IF(#REF!=0,0,IF(#REF!=#REF!,#REF!-#REF!,0)) ->  | AH36: 5000 | AI36: 2000 | AJ36: 600 | AK36: 18 | AL36: 500 | AM36: 15 | AN36: 400 | AO36: 12 | AP36: 300 | AQ36: 9 | AR36: 140 | AS36: 4 | AT36: 60 | AU36: 1
A37: =Source!A37 -> ZYX Core Portfolio | B37: =Source!B37 -> CGC | C37: =Source!C37 ->  | D37: =Source!D37 -> Pharmaceuticals | E37: =Source!E37 -> 9 | F37: =Source!F37 -> 56.4965 | G37: =Source!G37 -> 34.28 | H37: =Source!H37 -> 33.2199 | I37: 26.13 | J37: 30.31 | K37: 0.2 | L37: 0.4 | O37: 66 | P37: 74 | Q37: =SUM(O37-$H37)/$H37 -> 0.9867609475 | R37: =SUM(P37-$H37)/$H37 -> 1.227580456 | S37: =SUM(O37-$I37)/$I37 -> 1.525832377 | T37: =SUM(P37-$I37)/$I37 -> 1.831993877 | W37: =SUM(U37-$H37)/$H37 -> -1 | X37: =SUM(V37-$H37)/$H37 -> -1 | Y37: =SUM(U37-$I37)/$I37 -> -1 | Z37: =SUM(V37-$I37)/$I37 -> -1 | AC37: =SUM(AA37-$H37)/$H37 -> -1 | AD37: =SUM(AB37-$H37)/$H37 -> -1 | AE37: =SUM(AA37-$I37)/$I37 -> -1 | AF37: =SUM(AB37-$I37)/$I37 -> -1 | AG37: =IF(#REF!=0,0,IF(#REF!=#REF!,#REF!-#REF!,0)) ->  | AH37: 5000 | AI37: =ROUNDDOWN(SUM($L37*$AH37),0) -> 2000 | AJ37: =ROUNDDOWN(SUM($AI37*AJ$3),0) -> 600 | AK37: =ROUNDDOWN(SUM(AJ37/$H37),0) -> 18 | AL37: =ROUNDDOWN(SUM($AI37*AL$3),0) -> 500 | AM37: =ROUNDDOWN(SUM(AL37/$H37),0) -> 15 | AN37: =ROUNDDOWN(SUM($AI37*AN$3),0) -> 400 | AO37: =ROUNDDOWN(SUM(AN37/$H37),0) -> 12 | AP37: =ROUNDDOWN(SUM($AI37*AP$3),0) -> 300 | AQ37: =ROUNDDOWN(SUM(AP37/$H37),0) -> 9 | AR37: =ROUNDDOWN(SUM($AI37*AR$3),0) -> 140 | AS37: =ROUNDDOWN(SUM(AR37/$H37),0) -> 4 | AT37: =ROUNDDOWN(SUM($AI37*AT$3),0) -> 60 | AU37: =ROUNDDOWN(SUM(AT37/$H37),0) -> 1
A38: =Source!A38 -> ZYX Core Portfolio | B38: =Source!B38 -> CIEN | C38: =Source!C38 ->  | D38: =Source!D38 -> Communications & Networking | E38: =Source!E38 -> 30.58 | F38: =Source!F38 -> 61.515 | G38: =Source!G38 -> 53.26 | H38: =Source!H38 -> 53.5 | I38: 42.52 | J38: 47.63 | K38: 0.25 | L38: 0.4 | M38: 28 | N38: 29.43 | O38: 76 | P38: 82 | Q38: 0.4205607477 | R38: 0.5327102804 | S38: 0.7873941675 | T38: 0.9285042333 | W38: -1 | X38: -1 | Y38: -1 | Z38: -1 | AC38: -1 | AD38: -1 | AE38: -1 | AF38: -1 | AG38: =IF(#REF!=0,0,IF(#REF!=#REF!,#REF!-#REF!,0)) ->  | AH38: =$AH$5 -> 5000 | AI38: 2000 | AJ38: 600 | AK38: 11 | AL38: 500 | AM38: 9 | AN38: 400 | AO38: 7 | AP38: 300 | AQ38: 5 | AR38: 140 | AS38: 2 | AT38: 60 | AU38: 1
A39: =Source!A39 -> ZYX Core Portfolio | B39: =Source!B39 -> CLF | C39: =Source!C39 ->  | D39: =Source!D39 -> Metals & Mining | E39: =Source!E39 -> 2.63 | F39: =Source!F39 -> 18.77 | G39: =Source!G39 -> 16.9 | H39: =Source!H39 -> 17.08 | I39: 10.13 | J39: 12.57 | K39: 0.15 | L39: 0.25 | M39: 8.73 | N39: 9.18 | O39: 22 | P39: 26 | Q39: 0.2880562061 | R39: 0.5222482436 | S39: 1.171767029 | T39: 1.566633761 | W39: -1 | X39: -1 | Y39: -1 | Z39: -1 | AC39: -1 | AD39: -1 | AE39: -1 | AF39: -1 | AG39: =IF(#REF!=0,0,IF(#REF!=#REF!,#REF!-#REF!,0)) ->  | AH39: 5000 | AI39: 1250 | AJ39: 375 | AK39: 21 | AL39: 312 | AM39: 18 | AN39: 250 | AO39: 14 | AP39: 187 | AQ39: 10 | AR39: 87 | AS39: 5 | AT39: 37 | AU39: 2
A40: =Source!A40 -> ZYX Electric Cars | B40: =Source!B40 -> CLII | C40: =Source!C40 ->  | D40: =Source!D40 -> Holding Companies | E40: =Source!E40 -> 9.746 | F40: =Source!F40 -> 24.34 | G40: =Source!G40 -> 14.36 | H40: =Source!H40 -> 13.95 | Q40: -1 | R40: -1 | W40: -1 | X40: -1 | AC40: -1 | AD40: -1 | AG40: =IF(#REF!=0,0,IF(#REF!=#REF!,#REF!-#REF!,0)) ->  | AH40: 5000 | AI40: 0 | AJ40: 0 | AK40: 0 | AL40: 0 | AM40: 0 | AN40: 0 | AO40: 0 | AP40: 0 | AQ40: 0 | AR40: 0 | AS40: 0 | AT40: 0 | AU40: 0
A41: =Source!A41 -> ZYX Signal Limited | B41: =Source!B41 -> CLVS | C41: =Source!C41 ->  | D41: =Source!D41 -> Biotechnology & Medical Research | E41: =Source!E41 -> 3.62 | F41: =Source!F41 -> 11.1 | G41: =Source!G41 -> 6.25 | H41: =Source!H41 -> 6.0589 | Q41: -1 | R41: -1 | W41: -1 | X41: -1 | AC41: -1 | AD41: -1 | AG41: =IF(#REF!=0,0,IF(#REF!=#REF!,#REF!-#REF!,0)) ->  | AH41: 5000 | AI41: 0 | AJ41: 0 | AK41: 0 | AL41: 0 | AM41: 0 | AN41: 0 | AO41: 0 | AP41: 0 | AQ41: 0 | AR41: 0 | AS41: 0 | AT41: 0 | AU41: 0
A42: =Source!A42 -> ZYX Core Portfolio | B42: =Source!B42 -> CNC | C42: =Source!C42 ->  | D42: =Source!D42 -> Healthcare Providers & Services | E42: =Source!E42 -> 43.96 | F42: =Source!F42 -> 74.7 | G42: =Source!G42 -> 61.89 | H42: =Source!H42 -> 62.11 | I42: 57.31 | J42: 62.36 | K42: 0.25 | L42: 0.5 | O42: 105 | P42: 114 | Q42: 0.6905490259 | R42: 0.8354532281 | S42: 0.8321409876 | T42: 0.9891816437 | W42: -1 | X42: -1 | Y42: -1 | Z42: -1 | AC42: -1 | AD42: -1 | AE42: -1 | AF42: -1 | AG42: =IF(#REF!=0,0,IF(#REF!=#REF!,#REF!-#REF!,0)) ->  | AH42: 5000 | AI42: 2500 | AJ42: 750 | AK42: 12 | AL42: 625 | AM42: 10 | AN42: 500 | AO42: 8 | AP42: 375 | AQ42: 6 | AR42: 175 | AS42: 2 | AT42: 75 | AU42: 1
A43: =Source!A43 -> ZYX Signal Limited | B43: =Source!B43 -> COIN | C43: =Source!C43 -> COIN | D43: =Source!D43 ->  | E43: =Source!E43 ->  | F43: =Source!F43 ->  | G43: =Source!G43 ->  | H43: =Source!H43 ->  | L43: 0.5 | AG43: =IF(#REF!=0,0,IF(#REF!=#REF!,#REF!-#REF!,0)) ->  | AH43: 5000 | AI43: 2500 | AJ43: 750 | AL43: 625 | AN43: 500 | AP43: 375 | AR43: 175 | AT43: 75
A44: =Source!A44 -> ZYX Pot | B44: =Source!B44 -> CRLBF | C44: =Source!C44 ->  | D44: =Source!D44 -> Pharmaceuticals | E44: =Source!E44 -> 1.94 | F44: =Source!F44 -> 17.4911 | G44: =Source!G44 -> 13.4278 | H44: =Source!H44 -> 13.2525 | I44: 10.36 | J44: 12.78 | K44: 0.15 | L44: 0.3 | O44: 23 | P44: 26 | Q44: 0.7355215997 | R44: 0.9618939823 | S44: 1.22007722 | T44: 1.50965251 | W44: -1 | X44: -1 | Y44: -1 | Z44: -1 | AC44: -1 | AD44: -1 | AE44: -1 | AF44: -1 | AG44: =IF(#REF!=0,0,IF(#REF!=#REF!,#REF!-#REF!,0)) ->  | AH44: 5000 | AI44: 1500 | AJ44: 450 | AK44: 33 | AL44: 375 | AM44: 28 | AN44: 300 | AO44: 22 | AP44: 225 | AQ44: 16 | AR44: 105 | AS44: 7 | AT44: 45 | AU44: 3
A45: =Source!A45 -> ZYX Pot | B45: =Source!B45 -> CRON | C45: =Source!C45 ->  | D45: =Source!D45 -> Pharmaceuticals | E45: =Source!E45 -> 4 | F45: =Source!F45 -> 15.83 | G45: =Source!G45 -> 10.48 | H45: =Source!H45 -> 10.14 | I45: 8.62 | J45: 10.51 | K45: 0.15 | L45: 0.2 | O45: 31 | P45: 33 | Q45: 2.057199211 | R45: 2.25443787 | S45: 2.596287703 | T45: 2.828306265 | W45: -1 | X45: -1 | Y45: -1 | Z45: -1 | AC45: -1 | AD45: -1 | AE45: -1 | AF45: -1 | AG45: =IF(#REF!=0,0,IF(#REF!=#REF!,#REF!-#REF!,0)) ->  | AH45: 5000 | AI45: 1000 | AJ45: 300 | AK45: 29 | AL45: 250 | AM45: 24 | AN45: 200 | AO45: 19 | AP45: 150 | AQ45: 14 | AR45: 70 | AS45: 6 | AT45: 30 | AU45: 2
A46: =Source!A46 -> ZYX Pot | B46: =Source!B46 -> CURLF | C46: =Source!C46 ->  | D46: =Source!D46 -> Pharmaceuticals | E46: =Source!E46 -> 2.54 | F46: =Source!F46 -> 18.38 | G46: =Source!G46 -> 15.6 | H46: =Source!H46 -> 15.53 | I46: 11.52 | J46: 14.51 | K46: 0.15 | L46: 0.25 | O46: 34 | P46: 38 | Q46: 1.189311011 | R46: 1.446877012 | S46: 1.951388889 | T46: 2.298611111 | W46: -1 | X46: -1 | Y46: -1 | Z46: -1 | AC46: -1 | AD46: -1 | AE46: -1 | AF46: -1 | AG46: =IF(#REF!=0,0,IF(#REF!=#REF!,#REF!-#REF!,0)) ->  | AH46: 5000 | AI46: 1250 | AJ46: 375 | AK46: 24 | AL46: 312 | AM46: 20 | AN46: 250 | AO46: 16 | AP46: 187 | AQ46: 12 | AR46: 87 | AS46: 5 | AT46: 37 | AU46: 2
A47: =Source!A47 -> ZYX Signal Limited | B47: =Source!B47 -> DASH | C47: =Source!C47 ->  | D47: =Source!D47 -> Software & IT Services | E47: =Source!E47 -> 130 | F47: =Source!F47 -> 256.09 | G47: =Source!G47 -> 144.97 | H47: =Source!H47 -> 141.44 | Q47: -1 | R47: -1 | W47: -1 | X47: -1 | AC47: -1 | AD47: -1 | AG47: =IF(#REF!=0,0,IF(#REF!=#REF!,#REF!-#REF!,0)) ->  | AH47: 5000 | AI47: 0 | AJ47: 0 | AK47: 0 | AL47: 0 | AM47: 0 | AN47: 0 | AO47: 0 | AP47: 0 | AQ47: 0 | AR47: 0 | AS47: 0 | AT47: 0 | AU47: 0
A48: =Source!A48 -> ZYX Core Portfolio | B48: =Source!B48 -> DIS | C48: =Source!C48 ->  | D48: =Source!D48 -> Media & Publishing | E48: =Source!E48 -> 79.07 | F48: =Source!F48 -> 203.02 | G48: =Source!G48 -> 196.75 | H48: =Source!H48 -> 195.62 | I48: 149.02 | J48: 168.88 | K48: 0.35 | L48: 0.65 | O48: 310 | P48: 325 | Q48: 0.5847050404 | R48: 0.6613843165 | S48: 1.080257684 | T48: 1.180915313 | W48: -1 | X48: -1 | Y48: -1 | Z48: -1 | AC48: -1 | AD48: -1 | AE48: -1 | AF48: -1 | AG48: =IF(#REF!=0,0,IF(#REF!=#REF!,#REF!-#REF!,0)) ->  | AH48: 5000 | AI48: 3250 | AJ48: 975 | AK48: 4 | AL48: 812 | AM48: 4 | AN48: 650 | AO48: 3 | AP48: 487 | AQ48: 2 | AR48: 227 | AS48: 1 | AT48: 97 | AU48: 0
A49: =Source!A49 -> ZYX Signal Limited | B49: =Source!B49 -> DIS | C49: =Source!C49 ->  | D49: =Source!D49 -> Media & Publishing | E49: =Source!E49 -> 79.07 | F49: =Source!F49 -> 203.02 | G49: =Source!G49 -> 196.75 | H49: =Source!H49 -> 195.62 | I49: 149.02 | J49: 168.88 | K49: 0.35 | L49: 0.65 | O49: 310 | P49: 325 | Q49: 0.5847050404 | R49: 0.6613843165 | S49: 1.080257684 | T49: 1.180915313 | W49: -1 | X49: -1 | Y49: -1 | Z49: -1 | AC49: -1 | AD49: -1 | AE49: -1 | AF49: -1 | AG49: =IF(#REF!=0,0,IF(#REF!=#REF!,#REF!-#REF!,0)) ->  | AH49: 5000 | AI49: 3250 | AJ49: 975 | AK49: 4 | AL49: 812 | AM49: 4 | AN49: 650 | AO49: 3 | AP49: 487 | AQ49: 2 | AR49: 227 | AS49: 1 | AT49: 97 | AU49: 0
A50: =Source!A50 -> ZYX Signal Limited | B50: =Source!B50 -> DNN | C50: =Source!C50 ->  | D50: =Source!D50 -> Uranium | E50: =Source!E50 -> 0.19 | F50: =Source!F50 -> 1.805 | G50: =Source!G50 -> 1.04 | H50: =Source!H50 -> 1.055 | I50: 0.91 | J50: 1.13 | L50: 0.05 | M50: 0.78 | N50: 0.88 | O50: 1.5 | P50: 3 | Q50: 0.4218009479 | R50: 1.843601896 | S50: 0.6483516484 | T50: 2.296703297 | W50: -1 | X50: -1 | Y50: -1 | Z50: -1 | AC50: -1 | AD50: -1 | AE50: -1 | AF50: -1 | AG50: =IF(#REF!=0,0,IF(#REF!=#REF!,#REF!-#REF!,0)) ->  | AH50: 5000 | AI50: 250 | AJ50: 75 | AK50: 71 | AL50: 62 | AM50: 58 | AN50: 50 | AO50: 47 | AP50: 37 | AQ50: 35 | AR50: 17 | AS50: 16 | AT50: 7 | AU50: 6
A51: =Source!A51 -> ZYX Core Portfolio | B51: =Source!B51 -> EA | C51: =Source!C51 ->  | D51: =Source!D51 -> Software & IT Services | E51: =Source!E51 -> 85.69 | F51: =Source!F51 -> 150.3 | G51: =Source!G51 -> 131.34 | H51: =Source!H51 -> 130.39 | I51: 121.34 | J51: 132.87 | K51: 0.2 | L51: 0.35 | O51: 215 | P51: 226 | Q51: 0.6488994555 | R51: 0.7332617532 | S51: 0.7718806659 | T51: 0.8625350255 | W51: -1 | X51: -1 | Y51: -1 | Z51: -1 | AC51: -1 | AD51: -1 | AE51: -1 | AF51: -1 | AG51: =IF(#REF!=0,0,IF(#REF!=#REF!,#REF!-#REF!,0)) ->  | AH51: 5000 | AI51: 1750 | AJ51: 525 | AK51: 4 | AL51: 437 | AM51: 3 | AN51: 350 | AO51: 2 | AP51: 262 | AQ51: 2 | AR51: 122 | AS51: 0 | AT51: 52 | AU51: 0
A52: =Source!A52 -> Motley Fool | B52: =Source!B52 -> ESTC | C52: =Source!C52 ->  | D52: =Source!D52 -> Software & IT Services | E52: =Source!E52 -> 39.01 | F52: =Source!F52 -> 176.49 | G52: =Source!G52 -> 118.67 | H52: =Source!H52 -> 116.39 | Q52: -1 | R52: -1 | W52: -1 | X52: -1 | AC52: -1 | AD52: -1 | AG52: =IF(#REF!=0,0,IF(#REF!=#REF!,#REF!-#REF!,0)) ->  | AH52: 5000 | AI52: 0 | AJ52: 0 | AK52: 0 | AL52: 0 | AM52: 0 | AN52: 0 | AO52: 0 | AP52: 0 | AQ52: 0 | AR52: 0 | AS52: 0 | AT52: 0 | AU52: 0
A53: =Source!A53 -> ZYX Signal Limited | B53: =Source!B53 -> EVRG | C53: =Source!C53 ->  | D53: =Source!D53 -> Electrical Utilities & IPPs | E53: =Source!E53 -> 42.0101 | F53: =Source!F53 -> 65.43 | G53: =Source!G53 -> 56.76 | H53: =Source!H53 -> 57.21 | Q53: -1 | R53: -1 | W53: -1 | X53: -1 | AC53: -1 | AD53: -1 | AG53: =IF(#REF!=0,0,IF(#REF!=#REF!,#REF!-#REF!,0)) ->  | AH53: 5000 | AI53: 0 | AJ53: 0 | AK53: 0 | AL53: 0 | AM53: 0 | AN53: 0 | AO53: 0 | AP53: 0 | AQ53: 0 | AR53: 0 | AS53: 0 | AT53: 0 | AU53: 0
A54: =Source!A54 -> ZYX Signal Limited | B54: =Source!B54 -> EXPC | C54: =Source!C54 ->  | D54: =Source!D54 -> Holding Companies | E54: =Source!E54 -> 9.28 | F54: =Source!F54 -> 19.88 | G54: =Source!G54 -> 13.4 | H54: =Source!H54 -> 12.72 | Q54: -1 | R54: -1 | W54: -1 | X54: -1 | AC54: -1 | AD54: -1 | AG54: =IF(#REF!=0,0,IF(#REF!=#REF!,#REF!-#REF!,0)) ->  | AH54: 5000 | AI54: 0 | AJ54: 0 | AK54: 0 | AL54: 0 | AM54: 0 | AN54: 0 | AO54: 0 | AP54: 0 | AQ54: 0 | AR54: 0 | AS54: 0 | AT54: 0 | AU54: 0
A55: =Source!A55 -> ZYX Signal Limited | B55: =Source!B55 -> F | C55: =Source!C55 ->  | D55: =Source!D55 -> Automobiles & Auto Parts | E55: =Source!E55 -> 3.96 | F55: =Source!F55 -> 13.0594 | G55: =Source!G55 -> 12.81 | H55: =Source!H55 -> 12.915 | Q55: -1 | R55: -1 | W55: -1 | X55: -1 | AC55: -1 | AD55: -1 | AG55: =IF(#REF!=0,0,IF(#REF!=#REF!,#REF!-#REF!,0)) ->  | AH55: 5000 | AI55: 0 | AJ55: 0 | AK55: 0 | AL55: 0 | AM55: 0 | AN55: 0 | AO55: 0 | AP55: 0 | AQ55: 0 | AR55: 0 | AS55: 0 | AT55: 0 | AU55: 0
A56: =Source!A56 -> ZYX Core Portfolio | B56: =Source!B56 -> FB | C56: =Source!C56 ->  | D56: =Source!D56 -> Software & IT Services | E56: =Source!E56 -> 137.1006 | F56: =Source!F56 -> 304.67 | G56: =Source!G56 -> 273.88 | H56: =Source!H56 -> 267.26 | I56: Suspended | J56: Suspended | K56: 0.3 | L56: 0.5 | O56: 360 | P56: 385 | Q56: 0.3470029185 | R56: 0.4405447878 | W56: -1 | X56: -1 | AC56: -1 | AD56: -1 | AG56: =IF(#REF!=0,0,IF(#REF!=#REF!,#REF!-#REF!,0)) ->  | AH56: 5000 | AI56: 2500 | AJ56: 750 | AK56: 2 | AL56: 625 | AM56: 2 | AN56: 500 | AO56: 1 | AP56: 375 | AQ56: 1 | AR56: 175 | AS56: 0 | AT56: 75 | AU56: 0
A57: =Source!A57 -> ZYX Electric Cars | B57: =Source!B57 -> FCEL | C57: =Source!C57 ->  | D57: =Source!D57 -> Renewable Energy | E57: =Source!E57 -> 1 | F57: =Source!F57 -> 29.4396 | G57: =Source!G57 -> 18.36 | H57: =Source!H57 -> 17.53 | Q57: -1 | R57: -1 | W57: -1 | X57: -1 | AC57: -1 | AD57: -1 | AG57: =IF(#REF!=0,0,IF(#REF!=#REF!,#REF!-#REF!,0)) ->  | AH57: 5000 | AI57: 0 | AJ57: 0 | AK57: 0 | AL57: 0 | AM57: 0 | AN57: 0 | AO57: 0 | AP57: 0 | AQ57: 0 | AR57: 0 | AS57: 0 | AT57: 0 | AU57: 0
A58: =Source!A58 -> ZYX Core Portfolio | B58: =Source!B58 -> FCX | C58: =Source!C58 ->  | D58: =Source!D58 -> Metals & Mining | E58: =Source!E58 -> 4.82 | F58: =Source!F58 -> 39.1 | G58: =Source!G58 -> 37.47 | H58: =Source!H58 -> 37.1 | I58: 16 | J58: 22.87 | K58: 0.15 | L58: 0.25 | O58: 33 | P58: 37.5 | Q58: -0.1105121294 | R58: 0.01078167116 | S58: 1.0625 | T58: 1.34375 | W58: -1 | X58: -1 | Y58: -1 | Z58: -1 | AC58: -1 | AD58: -1 | AE58: -1 | AF58: -1 | AG58: =IF(#REF!=0,0,IF(#REF!=#REF!,#REF!-#REF!,0)) ->  | AH58: 5000 | AI58: 1250 | AJ58: 375 | AK58: 10 | AL58: 312 | AM58: 8 | AN58: 250 | AO58: 6 | AP58: 187 | AQ58: 5 | AR58: 87 | AS58: 2 | AT58: 37 | AU58: 0
A59: =Source!A59 -> ZYX Core Portfolio | B59: =Source!B59 -> FFXDF | C59: =Source!C59 ->  | D59: =Source!D59 -> Holding Companies | E59: =Source!E59 -> 5.3706 | F59: =Source!F59 -> 13.26 | G59: =Source!G59 -> 12.494 | H59: =Source!H59 -> 12.548 | I59: 7.57 | J59: 9.31 | K59: 0.25 | L59: 0.35 | O59: 18 | P59: 22 | Q59: 0.4344915524 | R59: 0.753267453 | S59: 1.377807133 | T59: 1.906208719 | W59: -1 | X59: -1 | Y59: -1 | Z59: -1 | AC59: -1 | AD59: -1 | AE59: -1 | AF59: -1 | AG59: =IF(#REF!=0,0,IF(#REF!=#REF!,#REF!-#REF!,0)) ->  | AH59: 5000 | AI59: 1750 | AJ59: 525 | AK59: 41 | AL59: 437 | AM59: 34 | AN59: 350 | AO59: 27 | AP59: 262 | AQ59: 20 | AR59: 122 | AS59: 9 | AT59: 52 | AU59: 4
A60: =Source!A60 -> Motley Fool | B60: =Source!B60 -> FSLY | C60: =Source!C60 ->  | D60: =Source!D60 -> Software & IT Services | E60: =Source!E60 -> 10.63 | F60: =Source!F60 -> 136.5 | G60: =Source!G60 -> 75.44 | H60: =Source!H60 -> 73.25 | Q60: -1 | R60: -1 | W60: -1 | X60: -1 | AC60: -1 | AD60: -1 | AG60: =IF(#REF!=0,0,IF(#REF!=#REF!,#REF!-#REF!,0)) ->  | AH60: 5000 | AI60: 0 | AJ60: 0 | AK60: 0 | AL60: 0 | AM60: 0 | AN60: 0 | AO60: 0 | AP60: 0 | AQ60: 0 | AR60: 0 | AS60: 0 | AT60: 0 | AU60: 0
A61: =Source!A61 -> ZYX Core Portfolio | B61: =Source!B61 -> GAN | C61: =Source!C61 ->  | D61: =Source!D61 -> Software & IT Services | E61: =Source!E61 -> 0.65 | F61: =Source!F61 -> 3.35 | G61: =Source!G61 -> 2.9 | H61: =Source!H61 -> 2.85 | I61: 13.56 | J61: 17.67 | K61: 0.2 | L61: 0.35 | O61: 73 | P61: 78 | Q61: 24.61403509 | R61: 26.36842105 | S61: 4.383480826 | T61: 4.752212389 | W61: -1 | X61: -1 | Y61: -1 | Z61: -1 | AC61: -1 | AD61: -1 | AE61: -1 | AF61: -1 | AG61: =IF(#REF!=0,0,IF(#REF!=#REF!,#REF!-#REF!,0)) ->  | AH61: 5000 | AI61: 1750 | AJ61: 525 | AK61: 184 | AL61: 437 | AM61: 153 | AN61: 350 | AO61: 122 | AP61: 262 | AQ61: 91 | AR61: 122 | AS61: 42 | AT61: 52 | AU61: 18
A62: =Source!A62 -> ZYX Signal Limited | B62: =Source!B62 -> GBT | C62: =Source!C62 ->  | D62: =Source!D62 -> Biotechnology & Medical Research | E62: =Source!E62 -> 36.49 | F62: =Source!F62 -> 83.69 | G62: =Source!G62 -> 42.9 | H62: =Source!H62 -> 43.12 | Q62: -1 | R62: -1 | W62: -1 | X62: -1 | AC62: -1 | AD62: -1 | AG62: =IF(#REF!=0,0,IF(#REF!=#REF!,#REF!-#REF!,0)) ->  | AH62: 5000 | AI62: 0 | AJ62: 0 | AK62: 0 | AL62: 0 | AM62: 0 | AN62: 0 | AO62: 0 | AP62: 0 | AQ62: 0 | AR62: 0 | AS62: 0 | AT62: 0 | AU62: 0
A63: =Source!A63 -> ZYX Electric Cars | B63: =Source!B63 -> GEVO | C63: =Source!C63 ->  | D63: =Source!D63 -> Renewable Energy | E63: =Source!E63 -> 0.46 | F63: =Source!F63 -> 15.57 | G63: =Source!G63 -> 9.65 | H63: =Source!H63 -> 9.52 | Q63: -1 | R63: -1 | W63: -1 | X63: -1 | AC63: -1 | AD63: -1 | AG63: =IF(#REF!=0,0,IF(#REF!=#REF!,#REF!-#REF!,0)) ->  | AH63: 5000 | AI63: 0 | AJ63: 0 | AK63: 0 | AL63: 0 | AM63: 0 | AN63: 0 | AO63: 0 | AP63: 0 | AQ63: 0 | AR63: 0 | AS63: 0 | AT63: 0 | AU63: 0
A64: =Source!A64 -> ZYX Signal Limited | B64: =Source!B64 -> GIK | C64: =Source!C64 ->  | D64: =Source!D64 -> Holding Companies | E64: =Source!E64 -> 9.794 | F64: =Source!F64 -> 17.36 | G64: =Source!G64 -> 11.57 | H64: =Source!H64 -> 12.28 | I64: 11.28 | J64: 13.66 | L64: 0.2 | M64: 9.43 | N64: 10.38 | O64: 15.43 | P64: 17.36 | Q64: 0.256514658 | R64: 0.4136807818 | S64: 0.3679078014 | T64: 0.5390070922 | U64: 27 | V64: 32 | W64: 1.198697068 | X64: 1.605863192 | Y64: 1.393617021 | Z64: 1.836879433 | AC64: -1 | AD64: -1 | AE64: -1 | AF64: -1 | AG64: =IF(#REF!=0,0,IF(#REF!=#REF!,#REF!-#REF!,0)) ->  | AH64: 5000 | AI64: 1000 | AJ64: 300 | AK64: 24 | AL64: 250 | AM64: 20 | AN64: 200 | AO64: 16 | AP64: 150 | AQ64: 12 | AR64: 70 | AS64: 5 | AT64: 30 | AU64: 2
A65: =Source!A65 -> ZYX Core Portfolio | B65: =Source!B65 -> GILD | C65: =Source!C65 ->  | D65: =Source!D65 -> Biotechnology & Medical Research | E65: =Source!E65 -> 56.56 | F65: =Source!F65 -> 85.97 | G65: =Source!G65 -> 62.38 | H65: =Source!H65 -> 62.26 | I65: 54 | J65: 60.81 | K65: 0.25 | L65: 0.4 | O65: 110 | P65: 130 | Q65: 0.7667844523 | R65: 1.088017989 | S65: 1.037037037 | T65: 1.407407407 | W65: -1 | X65: -1 | Y65: -1 | Z65: -1 | AC65: -1 | AD65: -1 | AE65: -1 | AF65: -1 | AG65: =IF(#REF!=0,0,IF(#REF!=#REF!,#REF!-#REF!,0)) ->  | AH65: 5000 | AI65: 2000 | AJ65: 600 | AK65: 9 | AL65: 500 | AM65: 8 | AN65: 400 | AO65: 6 | AP65: 300 | AQ65: 4 | AR65: 140 | AS65: 2 | AT65: 60 | AU65: 0
A66: =Source!A66 -> ZYX Signal Limited | B66: =Source!B66 -> GLUU | C66: =Source!C66 ->  | D66: =Source!D66 -> Software & IT Services | E66: =Source!E66 -> 3.98 | F66: =Source!F66 -> 12.95 | G66: =Source!G66 -> 12.47 | H66: =Source!H66 -> 12.435 | Q66: -1 | R66: -1 | W66: -1 | X66: -1 | AC66: -1 | AD66: -1 | AG66: =IF(#REF!=0,0,IF(#REF!=#REF!,#REF!-#REF!,0)) ->  | AH66: 5000 | AI66: 0 | AJ66: 0 | AK66: 0 | AL66: 0 | AM66: 0 | AN66: 0 | AO66: 0 | AP66: 0 | AQ66: 0 | AR66: 0 | AS66: 0 | AT66: 0 | AU66: 0
A67: =Source!A67 -> ZYX Core Portfolio | B67: =Source!B67 -> GOOG | C67: =Source!C67 ->  | D67: =Source!D67 -> Software & IT Services | E67: =Source!E67 -> 1013.5361 | F67: =Source!F67 -> 2152.68 | G67: =Source!G67 -> 2114.77 | H67: =Source!H67 -> 2075.83 | I67: 1502 | J67: 1631.78 | K67: 0.2 | L67: 0.3 | O67: 2340 | P67: 2420 | Q67: 0.1272599394 | R67: 0.1657987407 | S67: 0.5579227696 | T67: 0.6111850866 | W67: -1 | X67: -1 | Y67: -1 | Z67: -1 | AC67: -1 | AD67: -1 | AE67: -1 | AF67: -1 | AG67: =IF(#REF!=0,0,IF(#REF!=#REF!,#REF!-#REF!,0)) ->  | AH67: 5000 | AI67: 1500 | AJ67: 450 | AK67: 0 | AL67: 375 | AM67: 0 | AN67: 300 | AO67: 0 | AP67: 225 | AQ67: 0 | AR67: 105 | AS67: 0 | AT67: 45 | AU67: 0
A68: =Source!A68 -> ZYX Pot | B68: =Source!B68 -> GRWG | C68: =Source!C68 ->  | D68: =Source!D68 -> Chemicals | E68: =Source!E68 -> 2.62 | F68: =Source!F68 -> 67.75 | G68: =Source!G68 -> 48.74 | H68: =Source!H68 -> 46.88 | I68: 18.31 | J68: 24.56 | K68: 0.05 | L68: 0.15 | M68: 14 | N68: 16.43 | O68: 78 | P68: 83 | Q68: 0.6638225256 | R68: 0.7704778157 | S68: 3.259967231 | T68: 3.533042054 | W68: -1 | X68: -1 | Y68: -1 | Z68: -1 | AC68: -1 | AD68: -1 | AE68: -1 | AF68: -1 | AG68: =IF(#REF!=0,0,IF(#REF!=#REF!,#REF!-#REF!,0)) ->  | AH68: 5000 | AI68: 750 | AJ68: 225 | AK68: 4 | AL68: 187 | AM68: 3 | AN68: 150 | AO68: 3 | AP68: 112 | AQ68: 2 | AR68: 52 | AS68: 1 | AT68: 22 | AU68: 0
A69: =Source!A69 -> ZYX Pot | B69: =Source!B69 -> GTBIF | C69: =Source!C69 ->  | D69: =Source!D69 -> Pharmaceuticals | E69: =Source!E69 -> 3.6934 | F69: =Source!F69 -> 39.11 | G69: =Source!G69 -> 32.75 | H69: =Source!H69 -> 31.5401 | I69: 22.37 | J69: 28.78 | K69: 0.2 | L69: 0.3 | O69: 78 | P69: 87 | Q69: =SUM(O69-$H69)/$H69 -> 1.473042254 | R69: =SUM(P69-$H69)/$H69 -> 1.758393283 | S69: =SUM(O69-$I69)/$I69 -> 2.486812696 | T69: =SUM(P69-$I69)/$I69 -> 2.889137237 | W69: =SUM(U69-$H69)/$H69 -> -1 | X69: =SUM(V69-$H69)/$H69 -> -1 | Y69: =SUM(U69-$I69)/$I69 -> -1 | Z69: =SUM(V69-$I69)/$I69 -> -1 | AC69: =SUM(AA69-$H69)/$H69 -> -1 | AD69: =SUM(AB69-$H69)/$H69 -> -1 | AE69: =SUM(AA69-$I69)/$I69 -> -1 | AF69: =SUM(AB69-$I69)/$I69 -> -1 | AG69: =IF(#REF!=0,0,IF(#REF!=#REF!,#REF!-#REF!,0)) ->  | AH69: 5000 | AI69: =ROUNDDOWN(SUM($L69*$AH69),0) -> 1500 | AJ69: =ROUNDDOWN(SUM($AI69*AJ$3),0) -> 450 | AK69: =ROUNDDOWN(SUM(AJ69/$H69),0) -> 14 | AL69: =ROUNDDOWN(SUM($AI69*AL$3),0) -> 375 | AM69: =ROUNDDOWN(SUM(AL69/$H69),0) -> 11 | AN69: =ROUNDDOWN(SUM($AI69*AN$3),0) -> 300 | AO69: =ROUNDDOWN(SUM(AN69/$H69),0) -> 9 | AP69: =ROUNDDOWN(SUM($AI69*AP$3),0) -> 225 | AQ69: =ROUNDDOWN(SUM(AP69/$H69),0) -> 7 | AR69: =ROUNDDOWN(SUM($AI69*AR$3),0) -> 105 | AS69: =ROUNDDOWN(SUM(AR69/$H69),0) -> 3 | AT69: =ROUNDDOWN(SUM($AI69*AT$3),0) -> 45 | AU69: =ROUNDDOWN(SUM(AT69/$H69),0) -> 1
A70: =Source!A70 -> ZYX Pot | B70: =Source!B70 -> GWPH | C70: =Source!C70 ->  | D70: =Source!D70 -> Biotechnology & Medical Research | E70: =Source!E70 -> 67.98 | F70: =Source!F70 -> 217.5 | G70: =Source!G70 -> 215.01 | H70: =Source!H70 -> 215.16 | I70: Suspended | J70: Suspended | K70: 0.05 | L70: 0.15 | M70: 180 | N70: 183 | O70: 220 | P70: 240 | Q70: 0.02249488753 | R70: 0.1154489682 | W70: -1 | X70: -1 | AC70: -1 | AD70: -1 | AG70: =IF(#REF!=0,0,IF(#REF!=#REF!,#REF!-#REF!,0)) ->  | AH70: =$AH$5 -> 5000 | AI70: 750 | AJ70: 225 | AK70: 1 | AL70: 187 | AM70: 0 | AN70: 150 | AO70: 0 | AP70: 112 | AQ70: 0 | AR70: 52 | AS70: 0 | AT70: 22 | AU70: 0
A71: =Source!A71 -> ZYX Core Portfolio | B71: =Source!B71 -> HDGE | C71: =Source!C71 ->  | D71: =Source!D71 ->  | E71: =Source!E71 -> 24.83 | F71: =Source!F71 -> 79.5 | G71: =Source!G71 -> 24.84 | H71: =Source!H71 -> 24.971 | I71: 2.4 | J71: 3.26 | K71: Hedge | L71: Hedge | O71: Hedge | P71: Hedge | W71: -1 | X71: -1 | Y71: -1 | Z71: -1 | AC71: -1 | AD71: -1 | AE71: -1 | AF71: -1 | AG71: =IF(#REF!=0,0,IF(#REF!=#REF!,#REF!-#REF!,0)) ->  | AH71: 5000
A72: =Source!A72 -> ZYX Signal Limited | B72: =Source!B72 -> HMPT | C72: =Source!C72 -> HMPT | D72: =Source!D72 ->  | E72: =Source!E72 ->  | F72: =Source!F72 ->  | G72: =Source!G72 ->  | H72: =Source!H72 -> 11.94 | I72: 8.5 | J72: 10.5 | K72: 0.2 | L72: 0.35 | M72: 7.35 | N72: 8.18 | O72: 12.43 | P72: 12.93 | Q72: 0.04103852596 | R72: 0.08291457286 | S72: 0.4623529412 | T72: 0.5211764706 | U72: 14.83 | V72: 17.33 | W72: 0.2420435511 | X72: 0.4514237856 | Y72: 0.7447058824 | Z72: 1.038823529 | AC72: -1 | AD72: -1 | AE72: -1 | AF72: -1 | AG72: =IF(#REF!=0,0,IF(#REF!=#REF!,#REF!-#REF!,0)) ->  | AH72: 5000 | AI72: 1750 | AJ72: 525 | AK72: 43 | AL72: 437 | AM72: 36 | AN72: 350 | AO72: 29 | AP72: 262 | AQ72: 21 | AR72: 122 | AS72: 10 | AT72: 52 | AU72: 4
A73: =Source!A73 -> ZYX Core Portfolio | B73: =Source!B73 -> HOLX | C73: =Source!C73 ->  | D73: =Source!D73 -> Healthcare Equipment & Supplies | E73: =Source!E73 -> 26.49 | F73: =Source!F73 -> 85 | G73: =Source!G73 -> 71.03 | H73: =Source!H73 -> 70.24 | I73: Suspended | J73: Suspended | K73: 0.3 | L73: 0.5 | O73: 121 | P73: 134 | Q73: 0.7226651481 | R73: 0.9077448747 | W73: -1 | X73: -1 | AC73: -1 | AD73: -1 | AG73: =IF(#REF!=0,0,IF(#REF!=#REF!,#REF!-#REF!,0)) ->  | AH73: 5000 | AI73: 2500 | AJ73: 750 | AK73: 10 | AL73: 625 | AM73: 8 | AN73: 500 | AO73: 7 | AP73: 375 | AQ73: 5 | AR73: 175 | AS73: 2 | AT73: 75 | AU73: 1
A74: =Source!A74 -> ZYX Pot | B74: =Source!B74 -> HYFM | C74: =Source!C74 ->  | D74: =Source!D74 -> Machinery, Equipment & Components | E74: =Source!E74 -> 41.59 | F74: =Source!F74 -> 95.48 | G74: =Source!G74 -> 58.42 | H74: =Source!H74 -> 56.89 | I74: 34 | J74: 42.88 | K74: 0.05 | L74: 0.15 | M74: 26 | N74: 28.63 | O74: 112 | P74: 122 | Q74: 0.9687115486 | R74: 1.144489365 | S74: 2.294117647 | T74: 2.588235294 | W74: -1 | X74: -1 | Y74: -1 | Z74: -1 | AC74: -1 | AD74: -1 | AE74: -1 | AF74: -1 | AG74: =IF(#REF!=0,0,IF(#REF!=#REF!,#REF!-#REF!,0)) ->  | AH74: 5000 | AI74: 750 | AJ74: 225 | AK74: 3 | AL74: 187 | AM74: 3 | AN74: 150 | AO74: 2 | AP74: 112 | AQ74: 1 | AR74: 52 | AS74: 0 | AT74: 22 | AU74: 0
A75: =Source!A75 -> ZYX Signal Limited | B75: =Source!B75 -> JD | C75: =Source!C75 ->  | D75: =Source!D75 -> Diversified Retail | E75: =Source!E75 -> 32.7 | F75: =Source!F75 -> 108.29 | G75: =Source!G75 -> 90.01 | H75: =Source!H75 -> 84.2026 | Q75: -1 | R75: -1 | W75: -1 | X75: -1 | AC75: -1 | AD75: -1 | AG75: =IF(#REF!=0,0,IF(#REF!=#REF!,#REF!-#REF!,0)) ->  | AH75: 5000 | AI75: 0 | AJ75: 0 | AK75: 0 | AL75: 0 | AM75: 0 | AN75: 0 | AO75: 0 | AP75: 0 | AQ75: 0 | AR75: 0 | AS75: 0 | AT75: 0 | AU75: 0
A76: =Source!A76 -> ZYX Core Portfolio | B76: =Source!B76 -> JPM | C76: =Source!C76 ->  | D76: =Source!D76 -> Banking Services | E76: =Source!E76 -> 76.91 | F76: =Source!F76 -> 157.63 | G76: =Source!G76 -> 154.32 | H76: =Source!H76 -> 156.6 | I76: 104 | J76: 113.87 | K76: 0.2 | L76: 0.4 | O76: 185 | P76: 215 | Q76: 0.1813537676 | R76: 0.3729246488 | S76: 0.7788461538 | T76: 1.067307692 | W76: -1 | X76: -1 | Y76: -1 | Z76: -1 | AC76: -1 | AD76: -1 | AE76: -1 | AF76: -1 | AG76: =IF(#REF!=0,0,IF(#REF!=#REF!,#REF!-#REF!,0)) ->  | AH76: 5000 | AI76: 2000 | AJ76: 600 | AK76: 3 | AL76: 500 | AM76: 3 | AN76: 400 | AO76: 2 | AP76: 300 | AQ76: 1 | AR76: 140 | AS76: 0 | AT76: 60 | AU76: 0
A77: =Source!A77 -> ZYX Core Portfolio | B77: =Source!B77 -> KBH | C77: =Source!C77 ->  | D77: =Source!D77 -> Homebuilding & Construction Supplies | E77: =Source!E77 -> 9.82 | F77: =Source!F77 -> 45.59 | G77: =Source!G77 -> 44.43 | H77: =Source!H77 -> 43.22 | I77: 30 | J77: 34.66 | K77: 0.3 | L77: 0.4 | O77: 56 | P77: 61 | Q77: 0.2956964368 | R77: 0.4113836187 | S77: 0.8666666667 | T77: 1.033333333 | W77: -1 | X77: -1 | Y77: -1 | Z77: -1 | AC77: -1 | AD77: -1 | AE77: -1 | AF77: -1 | AG77: =IF(#REF!=0,0,IF(#REF!=#REF!,#REF!-#REF!,0)) ->  | AH77: 5000 | AI77: 2000 | AJ77: 600 | AK77: 13 | AL77: 500 | AM77: 11 | AN77: 400 | AO77: 9 | AP77: 300 | AQ77: 6 | AR77: 140 | AS77: 3 | AT77: 60 | AU77: 1
A78: =Source!A78 -> ZYX Core Portfolio | B78: =Source!B78 -> KKR | C78: =Source!C78 ->  | D78: =Source!D78 -> Investment Banking & Investment Services | E78: =Source!E78 -> 15.55 | F78: =Source!F78 -> 49.29 | G78: =Source!G78 -> 48.21 | H78: =Source!H78 -> 47.92 | I78: 32.31 | J78: 35.76 | K78: 0.3 | L78: 0.35 | O78: 58 | P78: 63 | Q78: 0.2103505843 | R78: 0.3146911519 | S78: 0.7951098731 | T78: 0.9498607242 | W78: -1 | X78: -1 | Y78: -1 | Z78: -1 | AC78: -1 | AD78: -1 | AE78: -1 | AF78: -1 | AG78: =IF(#REF!=0,0,IF(#REF!=#REF!,#REF!-#REF!,0)) ->  | AH78: 5000 | AI78: 1750 | AJ78: 525 | AK78: 10 | AL78: 437 | AM78: 9 | AN78: 350 | AO78: 7 | AP78: 262 | AQ78: 5 | AR78: 122 | AS78: 2 | AT78: 52 | AU78: 1
A79: =Source!A79 -> ZYX Signal Limited | B79: =Source!B79 -> KSU | C79: =Source!C79 ->  | D79: =Source!D79 -> Freight & Logistics Services | E79: =Source!E79 -> 92.86 | F79: =Source!F79 -> 223.59 | G79: =Source!G79 -> 214.86 | H79: =Source!H79 -> 215.19 | Q79: -1 | R79: -1 | W79: -1 | X79: -1 | AC79: -1 | AD79: -1 | AG79: =IF(#REF!=0,0,IF(#REF!=#REF!,#REF!-#REF!,0)) ->  | AH79: 5000 | AI79: 0 | AJ79: 0 | AK79: 0 | AL79: 0 | AM79: 0 | AN79: 0 | AO79: 0 | AP79: 0 | AQ79: 0 | AR79: 0 | AS79: 0 | AT79: 0 | AU79: 0
A80: =Source!A80 -> ZYX Electric Cars | B80: =Source!B80 -> LAC | C80: =Source!C80 ->  | D80: =Source!D80 -> Metals & Mining | E80: =Source!E80 -> 1.92 | F80: =Source!F80 -> 28.75 | G80: =Source!G80 -> 17.37 | H80: =Source!H80 -> 17.02 | Q80: -1 | R80: -1 | W80: -1 | X80: -1 | AC80: -1 | AD80: -1 | AG80: =IF(#REF!=0,0,IF(#REF!=#REF!,#REF!-#REF!,0)) ->  | AH80: 5000 | AI80: 0 | AJ80: 0 | AK80: 0 | AL80: 0 | AM80: 0 | AN80: 0 | AO80: 0 | AP80: 0 | AQ80: 0 | AR80: 0 | AS80: 0 | AT80: 0 | AU80: 0
A81: =Source!A81 -> ZYX Signal Limited | B81: =Source!B81 -> LMNX | C81: =Source!C81 ->  | D81: =Source!D81 -> Healthcare Equipment & Supplies | E81: =Source!E81 -> 20.61 | F81: =Source!F81 -> 41.69 | G81: =Source!G81 -> 32.45 | H81: =Source!H81 -> 32.05 | I81: 25.31 | J81: 32.52 | L81: 0.5 | M81: 19.18 | N81: 19.78 | O81: 38 | P81: 42 | Q81: 0.1856474259 | R81: 0.3104524181 | S81: 0.5013828526 | T81: 0.6594231529 | W81: -1 | X81: -1 | Y81: -1 | Z81: -1 | AC81: -1 | AD81: -1 | AE81: -1 | AF81: -1 | AG81: =IF(#REF!=0,0,IF(#REF!=#REF!,#REF!-#REF!,0)) ->  | AH81: 5000 | AI81: 2500 | AJ81: 750 | AK81: 23 | AL81: 625 | AM81: 19 | AN81: 500 | AO81: 15 | AP81: 375 | AQ81: 11 | AR81: 175 | AS81: 5 | AT81: 75 | AU81: 2
A82: =Source!A82 -> ZYX Core Portfolio | B82: =Source!B82 -> LOW | C82: =Source!C82 ->  | D82: =Source!D82 -> Specialty Retailers | E82: =Source!E82 -> 60 | F82: =Source!F82 -> 180.67 | G82: =Source!G82 -> 170.75 | H82: =Source!H82 -> 171.22 | I82: 138.62 | J82: 157.86 | K82: 0.25 | L82: 0.35 | O82: 210 | P82: 220 | Q82: 0.2264922322 | R82: 0.2848966242 | S82: 0.5149329101 | T82: 0.5870725725 | W82: -1 | X82: -1 | Y82: -1 | Z82: -1 | AC82: -1 | AD82: -1 | AE82: -1 | AF82: -1 | AG82: =IF(#REF!=0,0,IF(#REF!=#REF!,#REF!-#REF!,0)) ->  | AH82: 5000 | AI82: 1750 | AJ82: 525 | AK82: 3 | AL82: 437 | AM82: 2 | AN82: 350 | AO82: 2 | AP82: 262 | AQ82: 1 | AR82: 122 | AS82: 0 | AT82: 52 | AU82: 0
A83: =Source!A83 -> ZYX Core Portfolio | B83: =Source!B83 -> LTHM | C83: =Source!C83 ->  | D83: =Source!D83 -> Chemicals | E83: =Source!E83 -> 3.95 | F83: =Source!F83 -> 23.9899 | G83: =Source!G83 -> 19.17 | H83: =Source!H83 -> 18.97 | I83: 13.31 | J83: 16.87 | K83: 0.15 | L83: 0.3 | O83: 33 | P83: 36 | Q83: 0.7395888245 | R83: 0.897733263 | S83: 1.479338843 | T83: 1.704733283 | W83: -1 | X83: -1 | Y83: -1 | Z83: -1 | AC83: -1 | AD83: -1 | AE83: -1 | AF83: -1 | AG83: =IF(#REF!=0,0,IF(#REF!=#REF!,#REF!-#REF!,0)) ->  | AH83: 5000 | AI83: 1500 | AJ83: 450 | AK83: 23 | AL83: 375 | AM83: 19 | AN83: 300 | AO83: 15 | AP83: 225 | AQ83: 11 | AR83: 105 | AS83: 5 | AT83: 45 | AU83: 2
A84: =Source!A84 -> ZYX Space | B84: =Source!B84 -> MAXR | C84: =Source!C84 ->  | D84: =Source!D84 -> Communications & Networking | E84: =Source!E84 -> 7.18 | F84: =Source!F84 -> 58.75 | G84: =Source!G84 -> 47 | H84: =Source!H84 -> 46.94 | I84: 36.26 | J84: 44.57 | K84: 0.05 | L84: 0.15 | M84: 29 | N84: 31.73 | O84: 135 | Q84: 1.87601193 | R84: -1 | S84: 2.723110866 | T84: -1 | W84: -1 | X84: -1 | Y84: -1 | Z84: -1 | AC84: -1 | AD84: -1 | AE84: -1 | AF84: -1 | AG84: =IF(#REF!=0,0,IF(#REF!=#REF!,#REF!-#REF!,0)) ->  | AH84: 5000 | AI84: 750 | AJ84: 225 | AK84: 4 | AL84: 187 | AM84: 3 | AN84: 150 | AO84: 3 | AP84: 112 | AQ84: 2 | AR84: 52 | AS84: 1 | AT84: 22 | AU84: 0
A85: =Source!A85 -> ZYX Signal Limited | B85: =Source!B85 -> MDB | C85: =Source!C85 ->  | D85: =Source!D85 -> Software & IT Services | E85: =Source!E85 -> 93.81 | F85: =Source!F85 -> 428.965 | G85: =Source!G85 -> 327.26 | H85: =Source!H85 -> 319.33 | Q85: -1 | R85: -1 | W85: -1 | X85: -1 | AC85: -1 | AD85: -1 | AG85: =IF(#REF!=0,0,IF(#REF!=#REF!,#REF!-#REF!,0)) ->  | AH85: 5000 | AI85: 0 | AJ85: 0 | AK85: 0 | AL85: 0 | AM85: 0 | AN85: 0 | AO85: 0 | AP85: 0 | AQ85: 0 | AR85: 0 | AS85: 0 | AT85: 0 | AU85: 0
A86: =Source!A86 -> ZYX Signal Limited | B86: =Source!B86 -> MRVI | C86: =Source!C86 ->  | D86: =Source!D86 -> Biotechnology & Medical Research | E86: =Source!E86 -> 23.62 | F86: =Source!F86 -> 40.24 | G86: =Source!G86 -> 36.52 | H86: =Source!H86 -> 36.35 | I86: 33 | J86: 38.47 | L86: 0.3 | M86: 24 | N86: 26.43 | O86: 48 | P86: 52 | Q86: 0.3204951857 | R86: 0.4305364512 | S86: 0.4545454545 | T86: 0.5757575758 | U86: 73 | V86: 78 | W86: 1.008253095 | X86: 1.145804677 | Y86: 1.212121212 | Z86: 1.363636364 | AC86: -1 | AD86: -1 | AE86: -1 | AF86: -1 | AG86: =IF(#REF!=0,0,IF(#REF!=#REF!,#REF!-#REF!,0)) ->  | AH86: 5000 | AI86: 1500 | AJ86: 450 | AK86: 12 | AL86: 375 | AM86: 10 | AN86: 300 | AO86: 8 | AP86: 225 | AQ86: 6 | AR86: 105 | AS86: 2 | AT86: 45 | AU86: 1
A87: =Source!A87 -> ZYX Trade Around | B87: =Source!B87 -> MRVL | C87: =Source!C87 ->  | D87: =Source!D87 -> Semiconductors & Semiconductor Equipment | E87: =Source!E87 -> 16.45 | F87: =Source!F87 -> 55.7 | G87: =Source!G87 -> 46.3 | H87: =Source!H87 -> 46.335 | I87: 39.31 | J87: 43.56 | L87: 0.35 | M87: 33.31 | N87: 34.13 | O87: 49 | P87: 54.38 | Q87: 0.05751591669 | R87: 0.173626848 | S87: 0.2465021623 | T87: 0.383363012 | W87: -1 | X87: -1 | Y87: -1 | Z87: -1 | AC87: -1 | AD87: -1 | AE87: -1 | AF87: -1 | AG87: =IF(#REF!=0,0,IF(#REF!=#REF!,#REF!-#REF!,0)) ->  | AH87: 5000 | AI87: 1750 | AJ87: 525 | AK87: 11 | AL87: 437 | AM87: 9 | AN87: 350 | AO87: 7 | AP87: 262 | AQ87: 5 | AR87: 122 | AS87: 2 | AT87: 52 | AU87: 1
A88: =Source!A88 -> ZYX Core Portfolio | B88: =Source!B88 -> MSFT | C88: =Source!C88 ->  | D88: =Source!D88 -> Software & IT Services | E88: =Source!E88 -> 132.52 | F88: =Source!F88 -> 246.13 | G88: =Source!G88 -> 237.13 | H88: =Source!H88 -> 235.25 | I88: 181.53 | J88: 202.84 | K88: 0.2 | L88: 0.25 | O88: 285 | P88: 315 | Q88: 0.211477152 | R88: 0.3390010627 | S88: 0.5699884317 | T88: 0.7352503718 | W88: -1 | X88: -1 | Y88: -1 | Z88: -1 | AC88: -1 | AD88: -1 | AE88: -1 | AF88: -1 | AG88: =IF(#REF!=0,0,IF(#REF!=#REF!,#REF!-#REF!,0)) ->  | AH88: 5000 | AI88: 1250 | AJ88: 375 | AK88: 1 | AL88: 312 | AM88: 1 | AN88: 250 | AO88: 1 | AP88: 187 | AQ88: 0 | AR88: 87 | AS88: 0 | AT88: 37 | AU88: 0
A89: =Source!A89 -> ZYX Signal Limited | B89: =Source!B89 -> MU | C89: =Source!C89 ->  | D89: =Source!D89 -> Semiconductors & Semiconductor Equipment | E89: =Source!E89 -> 31.13 | F89: =Source!F89 -> 95.75 | G89: =Source!G89 -> 89.31 | H89: =Source!H89 -> 88.13 | Q89: -1 | R89: -1 | W89: -1 | X89: -1 | AC89: -1 | AD89: -1 | AG89: =IF(#REF!=0,0,IF(#REF!=#REF!,#REF!-#REF!,0)) ->  | AH89: 5000 | AI89: 0 | AJ89: 0 | AK89: 0 | AL89: 0 | AM89: 0 | AN89: 0 | AO89: 0 | AP89: 0 | AQ89: 0 | AR89: 0 | AS89: 0 | AT89: 0 | AU89: 0
A90: =Source!A90 -> ZYX Pot | B90: =Source!B90 -> NBEV | C90: =Source!C90 ->  | D90: =Source!D90 -> Beverages | E90: =Source!E90 -> 0.981 | F90: =Source!F90 -> 4.55 | G90: =Source!G90 -> 2.96 | H90: =Source!H90 -> 2.93 | I90: 1.6 | J90: 1.81 | K90: 0.15 | L90: 0.35 | O90: 13 | P90: 15 | Q90: 3.436860068 | R90: 4.119453925 | S90: 7.125 | T90: 8.375 | W90: -1 | X90: -1 | Y90: -1 | Z90: -1 | AC90: -1 | AD90: -1 | AE90: -1 | AF90: -1 | AG90: =IF(#REF!=0,0,IF(#REF!=#REF!,#REF!-#REF!,0)) ->  | AH90: 5000 | AI90: 1750 | AJ90: 525 | AK90: 179 | AL90: 437 | AM90: 149 | AN90: 350 | AO90: 119 | AP90: 262 | AQ90: 89 | AR90: 122 | AS90: 41 | AT90: 52 | AU90: 17
A91: =Source!A91 -> ZYX Core Portfolio | B91: =Source!B91 -> NEM | C91: =Source!C91 ->  | D91: =Source!D91 -> Metals & Mining | E91: =Source!E91 -> 33 | F91: =Source!F91 -> 72.22 | G91: =Source!G91 -> 58.45 | H91: =Source!H91 -> 58.36 | I91: 57 | J91: 64.56 | K91: 0.3 | L91: 0.5 | O91: 135 | P91: 155 | Q91: 1.313228239 | R91: 1.655928718 | S91: 1.368421053 | T91: 1.719298246 | W91: -1 | X91: -1 | Y91: -1 | Z91: -1 | AC91: -1 | AD91: -1 | AE91: -1 | AF91: -1 | AG91: =IF(#REF!=0,0,IF(#REF!=#REF!,#REF!-#REF!,0)) ->  | AH91: 5000 | AI91: 2500 | AJ91: 750 | AK91: 12 | AL91: 625 | AM91: 10 | AN91: 500 | AO91: 8 | AP91: 375 | AQ91: 6 | AR91: 175 | AS91: 2 | AT91: 75 | AU91: 1
A92: =Source!A92 -> ZYX Electric Cars | B92: =Source!B92 -> NGAC | C92: =Source!C92 ->  | D92: =Source!D92 -> Holding Companies | E92: =Source!E92 -> 9.7 | F92: =Source!F92 -> 16 | G92: =Source!G92 -> 10.62 | H92: =Source!H92 -> 10.525 | Q92: -1 | R92: -1 | W92: -1 | X92: -1 | AC92: -1 | AD92: -1 | AG92: =IF(#REF!=0,0,IF(#REF!=#REF!,#REF!-#REF!,0)) ->  | AH92: 5000 | AI92: 0 | AJ92: 0 | AK92: 0 | AL92: 0 | AM92: 0 | AN92: 0 | AO92: 0 | AP92: 0 | AQ92: 0 | AR92: 0 | AS92: 0 | AT92: 0 | AU92: 0
A93: =Source!A93 -> ZYX Core Portfolio | B93: =Source!B93 -> NMR | C93: =Source!C93 ->  | D93: =Source!D93 -> Investment Banking & Investment Services | E93: =Source!E93 -> 3.55 | F93: =Source!F93 -> 6.36 | G93: =Source!G93 -> 6.22 | H93: =Source!H93 -> 6.22 | I93: 4.14 | J93: 5.18 | K93: 0.1 | L93: 0.2 | O93: 8.6 | P93: 10.11 | Q93: 0.3826366559 | R93: 0.6254019293 | S93: 1.077294686 | T93: 1.442028986 | W93: -1 | X93: -1 | Y93: -1 | Z93: -1 | AC93: -1 | AD93: -1 | AE93: -1 | AF93: -1 | AG93: =IF(#REF!=0,0,IF(#REF!=#REF!,#REF!-#REF!,0)) ->  | AH93: 5000 | AI93: 1000 | AJ93: 300 | AK93: 48 | AL93: 250 | AM93: 40 | AN93: 200 | AO93: 32 | AP93: 150 | AQ93: 24 | AR93: 70 | AS93: 11 | AT93: 30 | AU93: 4
A94: =Source!A94 -> ZYX Space | B94: =Source!B94 -> NPA | C94: =Source!C94 ->  | D94: =Source!D94 -> Holding Companies | E94: =Source!E94 -> 9.5 | F94: =Source!F94 -> 25.37 | G94: =Source!G94 -> 13.3 | H94: =Source!H94 -> 12.9399 | I94: 12.56 | J94: 14.31 | K94: 0.05 | L94: 0.1 | M94: 8 | N94: 8.73 | O94: 110 | Q94: 7.500838492 | R94: -1 | S94: 7.757961783 | T94: -1 | W94: -1 | X94: -1 | Y94: -1 | Z94: -1 | AC94: -1 | AD94: -1 | AE94: -1 | AF94: -1 | AG94: =IF(#REF!=0,0,IF(#REF!=#REF!,#REF!-#REF!,0)) ->  | AH94: 5000 | AI94: 500 | AJ94: 150 | AK94: 11 | AL94: 125 | AM94: 9 | AN94: 100 | AO94: 7 | AP94: 75 | AQ94: 5 | AR94: 35 | AS94: 2 | AT94: 15 | AU94: 1
A95: =Source!A95 -> ZYX Core Portfolio | B95: =Source!B95 -> NXPI | C95: =Source!C95 ->  | D95: =Source!D95 -> Semiconductors & Semiconductor Equipment | E95: =Source!E95 -> 58.41 | F95: =Source!F95 -> 200.19 | G95: =Source!G95 -> 187.9375 | H95: =Source!H95 -> 185.22 | I95: 125.31 | J95: 141.56 | K95: 0.25 | L95: 0.35 | O95: 235 | P95: 255 | Q95: 0.2687614728 | R95: 0.3767411727 | S95: 0.8753491341 | T95: 1.034953316 | W95: -1 | X95: -1 | Y95: -1 | Z95: -1 | AC95: -1 | AD95: -1 | AE95: -1 | AF95: -1 | AG95: =IF(#REF!=0,0,IF(#REF!=#REF!,#REF!-#REF!,0)) ->  | AH95: 5000 | AI95: 1750 | AJ95: 525 | AK95: 2 | AL95: 437 | AM95: 2 | AN95: 350 | AO95: 1 | AP95: 262 | AQ95: 1 | AR95: 122 | AS95: 0 | AT95: 52 | AU95: 0
A96: =Source!A96 -> ZYX Space | B96: =Source!B96 -> ORBC | C96: =Source!C96 ->  | D96: =Source!D96 -> Telecommunications Services | E96: =Source!E96 -> 1.24 | F96: =Source!F96 -> 9.25 | G96: =Source!G96 -> 8.09 | H96: =Source!H96 -> 7.98 | I96: 6.32 | J96: 7.68 | K96: 0.15 | L96: 0.3 | M96: 4.38 | N96: 5.43 | O96: 25 | Q96: 2.13283208 | R96: -1 | S96: 2.955696203 | T96: -1 | W96: -1 | X96: -1 | Y96: -1 | Z96: -1 | AC96: -1 | AD96: -1 | AE96: -1 | AF96: -1 | AG96: =IF(#REF!=0,0,IF(#REF!=#REF!,#REF!-#REF!,0)) ->  | AH96: 5000 | AI96: 1500 | AJ96: 450 | AK96: 56 | AL96: 375 | AM96: 46 | AN96: 300 | AO96: 37 | AP96: 225 | AQ96: 28 | AR96: 105 | AS96: 13 | AT96: 45 | AU96: 5
A97: =Source!A97 -> ZYX Signal Limited | B97: =Source!B97 -> PACE | C97: =Source!C97 ->  | D97: =Source!D97 -> Holding Companies | E97: =Source!E97 -> 9.7 | F97: =Source!F97 -> 12.5 | G97: =Source!G97 -> 10.32 | H97: =Source!H97 -> 10.27 | I97: 10 | J97: 12 | L97: 0.15 | M97: 8.43 | N97: 8.78 | O97: 14.43 | P97: 15.88 | Q97: 0.4050632911 | R97: 0.5462512171 | S97: 0.443 | T97: 0.588 | U97: 18 | V97: 22 | W97: 0.752677702 | X97: 1.142161636 | Y97: 0.8 | Z97: 1.2 | AA97: 28 | AB97: 33 | AC97: 1.726387537 | AD97: 2.213242454 | AE97: 1.8 | AF97: 2.3 | AG97: =IF(#REF!=0,0,IF(#REF!=#REF!,#REF!-#REF!,0)) ->  | AH97: 5000 | AI97: 750 | AJ97: 225 | AK97: 21 | AL97: 187 | AM97: 18 | AN97: 150 | AO97: 14 | AP97: 112 | AQ97: 10 | AR97: 52 | AS97: 5 | AT97: 22 | AU97: 2
A98: =Source!A98 -> ZYX Core Portfolio | B98: =Source!B98 -> PCG | C98: =Source!C98 ->  | D98: =Source!D98 -> Electrical Utilities & IPPs | E98: =Source!E98 -> 6.25 | F98: =Source!F98 -> 13.34 | G98: =Source!G98 -> 11.45 | H98: =Source!H98 -> 11.415 | I98: 9.78 | J98: 11.18 | K98: 0.25 | L98: 0.45 | O98: 22 | P98: 24 | Q98: 0.9272886553 | R98: 1.102496715 | S98: 1.249488753 | T98: 1.45398773 | W98: -1 | X98: -1 | Y98: -1 | Z98: -1 | AC98: -1 | AD98: -1 | AE98: -1 | AF98: -1 | AG98: =IF(#REF!=0,0,IF(#REF!=#REF!,#REF!-#REF!,0)) ->  | AH98: 5000 | AI98: 2250 | AJ98: 675 | AK98: 59 | AL98: 562 | AM98: 49 | AN98: 450 | AO98: 39 | AP98: 337 | AQ98: 29 | AR98: 157 | AS98: 13 | AT98: 67 | AU98: 5
A99: =Source!A99 -> ZYX Signal Limited | B99: =Source!B99 -> PHUN | C99: =Source!C99 ->  | D99: =Source!D99 -> Software & IT Services | E99: =Source!E99 -> 0.54 | F99: =Source!F99 -> 3.3376 | G99: =Source!G99 -> 1.93 | H99: =Source!H99 -> 2.03 | I99: 2.4 | J99: 2.81 | L99: 0.15 | M99: 2.06 | N99: 2.18 | O99: 18 | P99: 23 | Q99: 7.866995074 | R99: 10.33004926 | S99: 6.5 | T99: 8.583333333 | W99: -1 | X99: -1 | Y99: -1 | Z99: -1 | AC99: -1 | AD99: -1 | AE99: -1 | AF99: -1 | AG99: =IF(#REF!=0,0,IF(#REF!=#REF!,#REF!-#REF!,0)) ->  | AH99: 5000 | AI99: 750 | AJ99: 225 | AK99: 110 | AL99: 187 | AM99: 92 | AN99: 150 | AO99: 73 | AP99: 112 | AQ99: 55 | AR99: 52 | AS99: 25 | AT99: 22 | AU99: 10
A100: =Source!A100 -> ZYX Signal Limited | B100: =Source!B100 -> PLTR | C100: =Source!C100 ->  | D100: =Source!D100 -> Software & IT Services | E100: =Source!E100 -> 8.9 | F100: =Source!F100 -> 45 | G100: =Source!G100 -> 26.73 | H100: =Source!H100 -> 26.125 | I100: 26.13 | J100: 29.58 | L100: 0.2 | M100: 21.23 | N100: 23.34 | O100: 33.43 | P100: 35.31 | Q100: 0.2796172249 | R100: 0.3515789474 | S100: 0.2793723689 | T100: 0.3513203215 | U100: 36.6 | V100: 43.38 | W100: 0.4009569378 | X100: 0.6604784689 | Y100: 0.4006888634 | Z100: 0.6601607348 | AC100: -1 | AD100: -1 | AE100: -1 | AF100: -1 | AG100: =IF(#REF!=0,0,IF(#REF!=#REF!,#REF!-#REF!,0)) ->  | AH100: 5000 | AI100: 1000 | AJ100: 300 | AK100: 11 | AL100: 250 | AM100: 9 | AN100: 200 | AO100: 7 | AP100: 150 | AQ100: 5 | AR100: 70 | AS100: 2 | AT100: 30 | AU100: 1
A101: =Source!A101 -> ZYX Signal Limited | B101: =Source!B101 -> PLUG | C101: =Source!C101 ->  | D101: =Source!D101 -> Renewable Energy | E101: =Source!E101 -> 2.53 | F101: =Source!F101 -> 75.49 | G101: =Source!G101 -> 48.16 | H101: =Source!H101 -> 46.4 | Q101: =SUM(O101-$H101)/$H101 -> -1 | R101: =SUM(P101-$H101)/$H101 -> -1 | S101: =SUM(O101-$I101)/$I101 ->  | T101: =SUM(P101-$I101)/$I101 ->  | W101: =SUM(U101-$H101)/$H101 -> -1 | X101: =SUM(V101-$H101)/$H101 -> -1 | Y101: =SUM(U101-$I101)/$I101 ->  | Z101: =SUM(V101-$I101)/$I101 ->  | AC101: =SUM(AA101-$H101)/$H101 -> -1 | AD101: =SUM(AB101-$H101)/$H101 -> -1 | AE101: =SUM(AA101-$I101)/$I101 ->  | AF101: =SUM(AB101-$I101)/$I101 ->  | AG101: =IF(#REF!=0,0,IF(#REF!=#REF!,#REF!-#REF!,0)) ->  | AH101: 5000 | AI101: =ROUNDDOWN(SUM($L101*$AH101),0) -> 0 | AJ101: =ROUNDDOWN(SUM($AI101*AJ$3),0) -> 0 | AK101: =ROUNDDOWN(SUM(AJ101/$H101),0) -> 0 | AL101: =ROUNDDOWN(SUM($AI101*AL$3),0) -> 0 | AM101: =ROUNDDOWN(SUM(AL101/$H101),0) -> 0 | AN101: =ROUNDDOWN(SUM($AI101*AN$3),0) -> 0 | AO101: =ROUNDDOWN(SUM(AN101/$H101),0) -> 0 | AP101: =ROUNDDOWN(SUM($AI101*AP$3),0) -> 0 | AQ101: =ROUNDDOWN(SUM(AP101/$H101),0) -> 0 | AR101: =ROUNDDOWN(SUM($AI101*AR$3),0) -> 0 | AS101: =ROUNDDOWN(SUM(AR101/$H101),0) -> 0 | AT101: =ROUNDDOWN(SUM($AI101*AT$3),0) -> 0 | AU101: =ROUNDDOWN(SUM(AT101/$H101),0) -> 0
A102: =Source!A102 -> Oil | B102: =Source!B102 -> PRT | C102: =Source!C102 ->  | D102: =Source!D102 ->  | E102: =Source!E102 -> 1 | F102: =Source!F102 -> 5.35 | G102: =Source!G102 -> 5.22 | H102: =Source!H102 -> 5.1501 | Q102: -1 | R102: -1 | W102: -1 | X102: -1 | AC102: -1 | AD102: -1 | AG102: =IF(#REF!=0,0,IF(#REF!=#REF!,#REF!-#REF!,0)) ->  | AH102: =$AH$5 -> 5000 | AI102: 0 | AJ102: 0 | AK102: 0 | AL102: 0 | AM102: 0 | AN102: 0 | AO102: 0 | AP102: 0 | AQ102: 0 | AR102: 0 | AS102: 0 | AT102: 0 | AU102: 0
A103: =Source!A103 -> ZYX Core Portfolio | B103: =Source!B103 -> PSQ | C103: =Source!C103 ->  | D103: =Source!D103 ->  | E103: =Source!E103 -> 13.29 | F103: =Source!F103 -> 29.7 | G103: =Source!G103 -> 14.02 | H103: =Source!H103 -> 14.18 | I103: 13.26 | J103: 15.31 | K103: Hedge | L103: Hedge | O103: Hedge | P103: Hedge | W103: -1 | X103: -1 | Y103: -1 | Z103: -1 | AC103: -1 | AD103: -1 | AE103: -1 | AF103: -1 | AG103: =IF(#REF!=0,0,IF(#REF!=#REF!,#REF!-#REF!,0)) ->  | AH103: 5000
A104: =Source!A104 -> ZYX Core Portfolio | B104: =Source!B104 -> QCOM | C104: =Source!C104 ->  | D104: =Source!D104 -> Semiconductors & Semiconductor Equipment | E104: =Source!E104 -> 58 | F104: =Source!F104 -> 167.94 | G104: =Source!G104 -> 131.74 | H104: =Source!H104 -> 129.4725 | I104: 127 | J104: 145.76 | K104: 0.3 | L104: 0.65 | O104: 232 | P104: 256 | Q104: 0.7918863079 | R104: 0.977253857 | S104: 0.8267716535 | T104: 1.015748031 | W104: -1 | X104: -1 | Y104: -1 | Z104: -1 | AC104: -1 | AD104: -1 | AE104: -1 | AF104: -1 | AG104: =IF(#REF!=0,0,IF(#REF!=#REF!,#REF!-#REF!,0)) ->  | AH104: 5000 | AI104: 3250 | AJ104: 975 | AK104: 7 | AL104: 812 | AM104: 6 | AN104: 650 | AO104: 5 | AP104: 487 | AQ104: 3 | AR104: 227 | AS104: 1 | AT104: 97 | AU104: 0
A105: =Source!A105 -> ZYX Signal Limited | B105: =Source!B105 -> QCOM | C105: =Source!C105 ->  | D105: =Source!D105 -> Semiconductors & Semiconductor Equipment | E105: =Source!E105 -> 58 | F105: =Source!F105 -> 167.94 | G105: =Source!G105 -> 131.74 | H105: =Source!H105 -> 129.4725 | Q105: -1 | R105: -1 | W105: -1 | X105: -1 | AC105: -1 | AD105: -1 | AG105: =IF(#REF!=0,0,IF(#REF!=#REF!,#REF!-#REF!,0)) ->  | AH105: 5000 | AI105: 0 | AJ105: 0 | AK105: 0 | AL105: 0 | AM105: 0 | AN105: 0 | AO105: 0 | AP105: 0 | AQ105: 0 | AR105: 0 | AS105: 0 | AT105: 0 | AU105: 0
A106: =Source!A106 -> ZYX Core Portfolio | B106: =Source!B106 -> QQQJ | C106: =Source!C106 ->  | D106: =Source!D106 ->  | E106: =Source!E106 -> 24.669 | F106: =Source!F106 -> 35.18 | G106: =Source!G106 -> 33.22 | H106: =Source!H106 -> 32.84 | I106: 24.13 | J106: 28.76 | K106: 0.15 | L106: 0.4 | O106: 42 | P106: 46 | Q106: 0.2789281364 | R106: 0.4007308161 | S106: 0.7405719022 | T106: 0.9063406548 | W106: -1 | X106: -1 | Y106: -1 | Z106: -1 | AC106: -1 | AD106: -1 | AE106: -1 | AF106: -1 | AG106: =IF(#REF!=0,0,IF(#REF!=#REF!,#REF!-#REF!,0)) ->  | AH106: 5000 | AI106: 2000 | AJ106: 600 | AK106: 18 | AL106: 500 | AM106: 15 | AN106: 400 | AO106: 12 | AP106: 300 | AQ106: 9 | AR106: 140 | AS106: 4 | AT106: 60 | AU106: 1
A107: =Source!A107 -> ZYX Core Portfolio | B107: =Source!B107 -> QRVO | C107: =Source!C107 ->  | D107: =Source!D107 -> Semiconductors & Semiconductor Equipment | E107: =Source!E107 -> 67.54 | F107: =Source!F107 -> 191.825 | G107: =Source!G107 -> 174.95 | H107: =Source!H107 -> 171.9301 | I107: 127.26 | J107: 151.77 | K107: 0.2 | L107: 0.4 | O107: 255 | P107: 265 | Q107: 0.4831608892 | R107: 0.5413240613 | S107: 1.003771806 | T107: 1.082351092 | W107: -1 | X107: -1 | Y107: -1 | Z107: -1 | AC107: -1 | AD107: -1 | AE107: -1 | AF107: -1 | AG107: =IF(#REF!=0,0,IF(#REF!=#REF!,#REF!-#REF!,0)) ->  | AH107: 5000 | AI107: 2000 | AJ107: 600 | AK107: 3 | AL107: 500 | AM107: 2 | AN107: 400 | AO107: 2 | AP107: 300 | AQ107: 1 | AR107: 140 | AS107: 0 | AT107: 60 | AU107: 0
A108: =Source!A108 -> ZYX Signal Limited | B108: =Source!B108 -> QS | C108: =Source!C108 ->  | D108: =Source!D108 -> Automobiles & Auto Parts | E108: =Source!E108 -> 9.74 | F108: =Source!F108 -> 132.73 | G108: =Source!G108 -> 58.2 | H108: =Source!H108 -> 57.2099 | I108: 42.32 | J108: 51.94 | L108: 0.2 | M108: 37 | N108: 38.43 | O108: 107.33 | P108: 123.48 | Q108: 0.8760738963 | R108: 1.158367695 | S108: 1.536153119 | T108: 1.917769376 | U108: 168 | V108: 210 | W108: 1.936554687 | X108: 2.670693359 | Y108: 2.969754253 | Z108: 3.962192817 | AB108: 90 | AC108: -1 | AD108: 0.5731542967 | AE108: -1 | AF108: 1.126654064 | AG108: =IF(#REF!=0,0,IF(#REF!=#REF!,#REF!-#REF!,0)) ->  | AH108: 5000 | AI108: 1000 | AJ108: 300 | AK108: 5 | AL108: 250 | AM108: 4 | AN108: 200 | AO108: 3 | AP108: 150 | AQ108: 2 | AR108: 70 | AS108: 1 | AT108: 30 | AU108: 0
A109: =Source!A109 -> ZYX Core Portfolio | B109: =Source!B109 -> RDS-B | C109: =Source!C109 ->  | D109: =Source!D109 -> Oil & Gas | E109: =Source!E109 -> 19.19 | F109: =Source!F109 -> 42.27 | G109: =Source!G109 -> 41.72 | H109: =Source!H109 -> 42.06 | I109: 28.31 | J109: 32.52 | K109: 0.15 | L109: 0.3 | O109: 56 | P109: 62 | Q109: 0.3314312886 | R109: 0.474084641 | S109: 0.9780996114 | T109: 1.190038856 | W109: -1 | X109: -1 | Y109: -1 | Z109: -1 | AC109: -1 | AD109: -1 | AE109: -1 | AF109: -1 | AG109: =IF(#REF!=0,0,IF(#REF!=#REF!,#REF!-#REF!,0)) ->  | AH109: 5000 | AI109: 1500 | AJ109: 450 | AK109: 10 | AL109: 375 | AM109: 8 | AN109: 300 | AO109: 7 | AP109: 225 | AQ109: 5 | AR109: 105 | AS109: 2 | AT109: 45 | AU109: 1
A110: =Source!A110 -> Oil | B110: =Source!B110 -> RIG | C110: =Source!C110 ->  | D110: =Source!D110 -> Oil & Gas Related Equipment and Services | E110: =Source!E110 -> 0.65 | F110: =Source!F110 -> 4.81 | G110: =Source!G110 -> 4.55 | H110: =Source!H110 -> 4.54 | I110: 4 | J110: 4 | Q110: -1 | R110: -1 | S110: -1 | T110: -1 | W110: -1 | X110: -1 | Y110: -1 | Z110: -1 | AC110: -1 | AD110: -1 | AE110: -1 | AF110: -1 | AG110: =IF(#REF!=0,0,IF(#REF!=#REF!,#REF!-#REF!,0)) ->  | AH110: 5000 | AI110: 0 | AJ110: 0 | AK110: 0 | AL110: 0 | AM110: 0 | AN110: 0 | AO110: 0 | AP110: 0 | AQ110: 0 | AR110: 0 | AS110: 0 | AT110: 0 | AU110: 0
A111: =Source!A111 -> ZYX Signal Limited | B111: =Source!B111 -> RLX | C111: =Source!C111 ->  | D111: =Source!D111 -> Food & Tobacco | E111: =Source!E111 -> 13.7 | F111: =Source!F111 -> 35 | G111: =Source!G111 -> 18.8 | H111: =Source!H111 -> 17.48 | Q111: -1 | R111: -1 | W111: -1 | X111: -1 | AC111: -1 | AD111: -1 | AG111: =IF(#REF!=0,0,IF(#REF!=#REF!,#REF!-#REF!,0)) ->  | AH111: 5000 | AI111: 0 | AJ111: 0 | AK111: 0 | AL111: 0 | AM111: 0 | AN111: 0 | AO111: 0 | AP111: 0 | AQ111: 0 | AR111: 0 | AS111: 0 | AT111: 0 | AU111: 0
A112: =Source!A112 -> Motley Fool | B112: =Source!B112 -> ROKU | C112: =Source!C112 ->  | D112: =Source!D112 -> Media & Publishing | E112: =Source!E112 -> 58.22 | F112: =Source!F112 -> 486.72 | G112: =Source!G112 -> 363.34 | H112: =Source!H112 -> 356.005 | Q112: -1 | R112: -1 | W112: -1 | X112: -1 | AC112: -1 | AD112: -1 | AG112: =IF(#REF!=0,0,IF(#REF!=#REF!,#REF!-#REF!,0)) ->  | AH112: 5000 | AI112: 0 | AJ112: 0 | AK112: 0 | AL112: 0 | AM112: 0 | AN112: 0 | AO112: 0 | AP112: 0 | AQ112: 0 | AR112: 0 | AS112: 0 | AT112: 0 | AU112: 0
A113: =Source!A113 -> ZYX Signal Limited | B113: =Source!B113 -> SAVE | C113: =Source!C113 ->  | D113: =Source!D113 -> Passenger Transportation Services | E113: =Source!E113 -> 7.01 | F113: =Source!F113 -> 39.14 | G113: =Source!G113 -> 36.51 | H113: =Source!H113 -> 37.37 | I113: 25.06 | J113: 27.31 | L113: 0.3 | M113: 23.43 | N113: 24.43 | O113: 42.38 | P113: 47.43 | Q113: 0.1340647578 | R113: 0.269199893 | S113: 0.691141261 | T113: 0.8926576217 | U113: 58 | V113: 67 | W113: 0.5520470966 | X113: 0.7928819909 | Y113: 1.314445331 | Z113: 1.6735834 | AC113: -1 | AD113: -1 | AE113: -1 | AF113: -1 | AG113: =IF(#REF!=0,0,IF(#REF!=#REF!,#REF!-#REF!,0)) ->  | AH113: 5000 | AI113: 1500 | AJ113: 450 | AK113: 12 | AL113: 375 | AM113: 10 | AN113: 300 | AO113: 8 | AP113: 225 | AQ113: 6 | AR113: 105 | AS113: 2 | AT113: 45 | AU113: 1
A114: =Source!A114 -> ZYX Electric Cars | B114: =Source!B114 -> SBE | C114: =Source!C114 ->  | D114: =Source!D114 -> Electrical Utilities & IPPs | E114: =Source!E114 -> 9.38 | F114: =Source!F114 -> 49.48 | G114: =Source!G114 -> 30.43 | H114: =Source!H114 -> 27.588 | Q114: -1 | R114: -1 | W114: -1 | X114: -1 | AC114: -1 | AD114: -1 | AG114: =IF(#REF!=0,0,IF(#REF!=#REF!,#REF!-#REF!,0)) ->  | AH114: 5000 | AI114: 0 | AJ114: 0 | AK114: 0 | AL114: 0 | AM114: 0 | AN114: 0 | AO114: 0 | AP114: 0 | AQ114: 0 | AR114: 0 | AS114: 0 | AT114: 0 | AU114: 0
A115: =Source!A115 -> ZYX Signal Limited | B115: =Source!B115 -> SFIX | C115: =Source!C115 ->  | D115: =Source!D115 -> Software & IT Services | E115: =Source!E115 -> 10.9 | F115: =Source!F115 -> 113.7594 | G115: =Source!G115 -> 50.93 | H115: =Source!H115 -> 51.0341 | Q115: -1 | R115: -1 | W115: -1 | X115: -1 | AC115: -1 | AD115: -1 | AG115: =IF(#REF!=0,0,IF(#REF!=#REF!,#REF!-#REF!,0)) ->  | AH115: 5000 | AI115: 0 | AJ115: 0 | AK115: 0 | AL115: 0 | AM115: 0 | AN115: 0 | AO115: 0 | AP115: 0 | AQ115: 0 | AR115: 0 | AS115: 0 | AT115: 0 | AU115: 0
A116: =Source!A116 -> ZYX Signal Limited | B116: =Source!B116 -> SKLZ | C116: =Source!C116 ->  | D116: =Source!D116 -> Holding Companies | E116: =Source!E116 -> 9.81 | F116: =Source!F116 -> 46.298 | G116: =Source!G116 -> 27.78 | H116: =Source!H116 -> 27.84 | I116: 22.02 | J116: 25.38 | L116: 0.2 | M116: 19.32 | N116: 21.23 | O116: 27.73 | P116: 30.16 | Q116: -0.003951149425 | R116: 0.08333333333 | S116: 0.2593097184 | T116: 0.3696639419 | U116: 32.43 | V116: 36.42 | W116: 0.1648706897 | X116: 0.3081896552 | Y116: 0.4727520436 | Z116: 0.6539509537 | AC116: -1 | AD116: -1 | AE116: -1 | AF116: -1 | AG116: =IF(#REF!=0,0,IF(#REF!=#REF!,#REF!-#REF!,0)) ->  | AH116: 5000 | AI116: 1000 | AJ116: 300 | AK116: 10 | AL116: 250 | AM116: 8 | AN116: 200 | AO116: 7 | AP116: 150 | AQ116: 5 | AR116: 70 | AS116: 2 | AT116: 30 | AU116: 1
A117: =Source!A117 -> ZYX Signal Limited | B117: =Source!B117 -> SKT | C117: =Source!C117 ->  | D117: =Source!D117 -> Residential & Commercial REIT | E117: =Source!E117 -> 4.05 | F117: =Source!F117 -> 22.4 | G117: =Source!G117 -> 16.92 | H117: =Source!H117 -> 17.015 | I117: 16.31 | J117: 18.51 | L117: 0.2 | M117: 15.48 | N117: 15.83 | O117: 20 | P117: 22 | Q117: 0.1754334411 | R117: 0.2929767852 | S117: 0.2262415696 | T117: 0.3488657265 | U117: 27 | V117: 32 | W117: 0.5868351455 | X117: 0.8806935057 | Y117: 0.6554261189 | Z117: 0.9619865113 | AC117: -1 | AD117: -1 | AE117: -1 | AF117: -1 | AG117: =IF(#REF!=0,0,IF(#REF!=#REF!,#REF!-#REF!,0)) ->  | AH117: 5000 | AI117: 1000 | AJ117: 300 | AK117: 17 | AL117: 250 | AM117: 14 | AN117: 200 | AO117: 11 | AP117: 150 | AQ117: 8 | AR117: 70 | AS117: 4 | AT117: 30 | AU117: 1
A118: =Source!A118 -> ZYX Core Portfolio | B118: =Source!B118 -> SLV | C118: =Source!C118 ->  | D118: =Source!D118 ->  | E118: =Source!E118 -> 10.86 | F118: =Source!F118 -> 27.98 | G118: =Source!G118 -> 24.25 | H118: =Source!H118 -> 23.8464 | I118: 20.5 | J118: 23.88 | K118: 0.15 | L118: 0.35 | O118: 46 | P118: 50 | Q118: 0.9290123457 | R118: 1.09675255 | S118: 1.243902439 | T118: 1.43902439 | W118: -1 | X118: -1 | Y118: -1 | Z118: -1 | AC118: -1 | AD118: -1 | AE118: -1 | AF118: -1 | AG118: =IF(#REF!=0,0,IF(#REF!=#REF!,#REF!-#REF!,0)) ->  | AH118: 5000 | AI118: 1750 | AJ118: 525 | AK118: 22 | AL118: 437 | AM118: 18 | AN118: 350 | AO118: 14 | AP118: 262 | AQ118: 10 | AR118: 122 | AS118: 5 | AT118: 52 | AU118: 2
A119: =Source!A119 -> ZYX Signal Limited | B119: =Source!B119 -> SLV | C119: =Source!C119 ->  | D119: =Source!D119 ->  | E119: =Source!E119 -> 10.86 | F119: =Source!F119 -> 27.98 | G119: =Source!G119 -> 24.25 | H119: =Source!H119 -> 23.8464 | Q119: -1 | R119: -1 | W119: -1 | X119: -1 | AC119: -1 | AD119: -1 | AG119: =IF(#REF!=0,0,IF(#REF!=#REF!,#REF!-#REF!,0)) ->  | AH119: 5000 | AI119: 0 | AJ119: 0 | AK119: 0 | AL119: 0 | AM119: 0 | AN119: 0 | AO119: 0 | AP119: 0 | AQ119: 0 | AR119: 0 | AS119: 0 | AT119: 0 | AU119: 0
A120: =Source!A120 -> ZYX Space | B120: =Source!B120 -> SPCE | C120: =Source!C120 ->  | D120: =Source!D120 -> Aerospace & Defense | E120: =Source!E120 -> 9.06 | F120: =Source!F120 -> 62.8 | G120: =Source!G120 -> 33.58 | H120: =Source!H120 -> 32.82 | I120: 24.13 | J120: 28.63 | K120: 0.1 | L120: 0.2 | M120: 18 | N120: 21.34 | O120: 52 | Q120: 0.5843997562 | R120: -1 | S120: 1.154993784 | T120: -1 | W120: -1 | X120: -1 | Y120: -1 | Z120: -1 | AC120: -1 | AD120: -1 | AE120: -1 | AF120: -1 | AG120: =IF(#REF!=0,0,IF(#REF!=#REF!,#REF!-#REF!,0)) ->  | AH120: 5000 | AI120: 1000 | AJ120: 300 | AK120: 9 | AL120: 250 | AM120: 7 | AN120: 200 | AO120: 6 | AP120: 150 | AQ120: 4 | AR120: 70 | AS120: 2 | AT120: 30 | AU120: 0
A121: =Source!A121 -> ZYX Core Portfolio | B121: =Source!B121 -> SPR | C121: =Source!C121 ->  | D121: =Source!D121 -> Aerospace & Defense | E121: =Source!E121 -> 13.69 | F121: =Source!F121 -> 51.56 | G121: =Source!G121 -> 49.83 | H121: =Source!H121 -> 50.625 | I121: 28.16 | J121: 35.13 | K121: 0.2 | L121: 0.3 | O121: 73 | P121: 78 | Q121: 0.4419753086 | R121: 0.5407407407 | S121: 1.592329545 | T121: 1.769886364 | W121: -1 | X121: -1 | Y121: -1 | Z121: -1 | AC121: -1 | AD121: -1 | AE121: -1 | AF121: -1 | AG121: =IF(#REF!=0,0,IF(#REF!=#REF!,#REF!-#REF!,0)) ->  | AH121: 5000 | AI121: 1500 | AJ121: 450 | AK121: 8 | AL121: 375 | AM121: 7 | AN121: 300 | AO121: 5 | AP121: 225 | AQ121: 4 | AR121: 105 | AS121: 2 | AT121: 45 | AU121: 0
A122: =Source!A122 -> ZYX Signal Limited | B122: =Source!B122 -> SPR | C122: =Source!C122 ->  | D122: =Source!D122 -> Aerospace & Defense | E122: =Source!E122 -> 13.69 | F122: =Source!F122 -> 51.56 | G122: =Source!G122 -> 49.83 | H122: =Source!H122 -> 50.625 | Q122: -1 | R122: -1 | W122: -1 | X122: -1 | AC122: -1 | AD122: -1 | AG122: =IF(#REF!=0,0,IF(#REF!=#REF!,#REF!-#REF!,0)) ->  | AH122: 5000 | AI122: 0 | AJ122: 0 | AK122: 0 | AL122: 0 | AM122: 0 | AN122: 0 | AO122: 0 | AP122: 0 | AQ122: 0 | AR122: 0 | AS122: 0 | AT122: 0 | AU122: 0
A123: =Source!A123 -> ZYX Signal Limited | B123: =Source!B123 -> SQQQ | C123: =Source!C123 ->  | D123: =Source!D123 ->  | E123: =Source!E123 -> 11.76 | F123: =Source!F123 -> 162.15 | G123: =Source!G123 -> 13.49 | H123: =Source!H123 -> 13.995 | Q123: -1 | R123: -1 | W123: -1 | X123: -1 | AC123: -1 | AD123: -1 | AG123: =IF(#REF!=0,0,IF(#REF!=#REF!,#REF!-#REF!,0)) ->  | AH123: 5000 | AI123: 0 | AJ123: 0 | AK123: 0 | AL123: 0 | AM123: 0 | AN123: 0 | AO123: 0 | AP123: 0 | AQ123: 0 | AR123: 0 | AS123: 0 | AT123: 0 | AU123: 0
A124: =Source!A124 -> ZYX Space | B124: =Source!B124 -> SRACU | C124: =Source!C124 ->  | D124: =Source!D124 ->  | E124: =Source!E124 -> 9.3 | F124: =Source!F124 -> 35 | G124: =Source!G124 -> 16.54 | H124: =Source!H124 -> 19.27 | I124: 15.38 | J124: 18.68 | K124: 0.15 | L124: 0.3 | M124: 9 | N124: 12.18 | O124: 105 | Q124: 4.448884276 | R124: -1 | S124: 5.827048114 | T124: -1 | W124: -1 | X124: -1 | Y124: -1 | Z124: -1 | AC124: -1 | AD124: -1 | AE124: -1 | AF124: -1 | AG124: =IF(#REF!=0,0,IF(#REF!=#REF!,#REF!-#REF!,0)) ->  | AH124: 5000 | AI124: 1500 | AJ124: 450 | AK124: 23 | AL124: 375 | AM124: 19 | AN124: 300 | AO124: 15 | AP124: 225 | AQ124: 11 | AR124: 105 | AS124: 5 | AT124: 45 | AU124: 2
A125: =Source!A125 -> ZYX Signal Limited | B125: =Source!B125 -> SRACU | C125: =Source!C125 ->  | D125: =Source!D125 ->  | E125: =Source!E125 -> 9.3 | F125: =Source!F125 -> 35 | G125: =Source!G125 -> 16.54 | H125: =Source!H125 -> 19.27 | Q125: -1 | R125: -1 | W125: -1 | X125: -1 | AC125: -1 | AD125: -1 | AG125: =IF(#REF!=0,0,IF(#REF!=#REF!,#REF!-#REF!,0)) ->  | AH125: 5000 | AI125: 0 | AJ125: 0 | AK125: 0 | AL125: 0 | AM125: 0 | AN125: 0 | AO125: 0 | AP125: 0 | AQ125: 0 | AR125: 0 | AS125: 0 | AT125: 0 | AU125: 0
A126: =Source!A126 -> ZYX Signal Limited | B126: =Source!B126 -> SSYS | C126: =Source!C126 ->  | D126: =Source!D126 -> Electronic Equipment & Parts | E126: =Source!E126 -> 11.89 | F126: =Source!F126 -> 56.95 | G126: =Source!G126 -> 28.14 | H126: =Source!H126 -> 27.49 | I126: 26.38 | J126: 28.57 | L126: 0.25 | M126: 24.43 | N126: 25.38 | O126: 31.43 | P126: 34 | Q126: 0.1433248454 | R126: 0.2368133867 | S126: 0.1914329037 | T126: 0.2888551933 | U126: 36 | V126: 42 | W126: 0.3095671153 | X126: 0.5278283012 | Y126: 0.3646702047 | Z126: 0.5921152388 | AC126: -1 | AD126: -1 | AE126: -1 | AF126: -1 | AG126: =IF(#REF!=0,0,IF(#REF!=#REF!,#REF!-#REF!,0)) ->  | AH126: 5000 | AI126: 1250 | AJ126: 375 | AK126: 13 | AL126: 312 | AM126: 11 | AN126: 250 | AO126: 9 | AP126: 187 | AQ126: 6 | AR126: 87 | AS126: 3 | AT126: 37 | AU126: 1
A127: =Source!A127 -> ZYX Signal Limited | B127: =Source!B127 -> THCB | C127: =Source!C127 ->  | D127: =Source!D127 -> Holding Companies | E127: =Source!E127 -> 9.16 | F127: =Source!F127 -> 25.2 | G127: =Source!G127 -> 14.68 | H127: =Source!H127 -> 14.5575 | Q127: -1 | R127: -1 | W127: -1 | X127: -1 | AC127: -1 | AD127: -1 | AG127: =IF(#REF!=0,0,IF(#REF!=#REF!,#REF!-#REF!,0)) ->  | AH127: 5000 | AI127: 0 | AJ127: 0 | AK127: 0 | AL127: 0 | AM127: 0 | AN127: 0 | AO127: 0 | AP127: 0 | AQ127: 0 | AR127: 0 | AS127: 0 | AT127: 0 | AU127: 0
A128: =Source!A128 -> ZYX Pot | B128: =Source!B128 -> TLRY | C128: =Source!C128 ->  | D128: =Source!D128 -> Pharmaceuticals | E128: =Source!E128 -> 2.43 | F128: =Source!F128 -> 67 | G128: =Source!G128 -> 28.195 | H128: =Source!H128 -> 26.42 | I128: 13.37 | J128: 21.88 | K128: 0.05 | L128: 0.1 | O128: Suspended | P128: Suspended | W128: -1 | X128: -1 | Y128: -1 | Z128: -1 | AC128: -1 | AD128: -1 | AE128: -1 | AF128: -1 | AG128: =IF(#REF!=0,0,IF(#REF!=#REF!,#REF!-#REF!,0)) ->  | AH128: 5000 | AI128: 500 | AJ128: 150 | AK128: 5 | AL128: 125 | AM128: 4 | AN128: 100 | AO128: 3 | AP128: 75 | AQ128: 2 | AR128: 35 | AS128: 1 | AT128: 15 | AU128: 0
A129: =Source!A129 -> ZYX Core Portfolio | B129: =Source!B129 -> TMUS | C129: =Source!C129 ->  | D129: =Source!D129 -> Telecommunications Services | E129: =Source!E129 -> 63.5 | F129: =Source!F129 -> 135.54 | G129: =Source!G129 -> 125.99 | H129: =Source!H129 -> 126.23 | I129: 105.26 | J129: 118.88 | K129: 0.3 | L129: 0.5 | O129: 165 | P129: 185 | Q129: 0.3071377644 | R129: 0.4655787055 | S129: 0.5675470264 | T129: 0.7575527266 | W129: -1 | X129: -1 | Y129: -1 | Z129: -1 | AC129: -1 | AD129: -1 | AE129: -1 | AF129: -1 | AG129: =IF(#REF!=0,0,IF(#REF!=#REF!,#REF!-#REF!,0)) ->  | AH129: 5000 | AI129: 2500 | AJ129: 750 | AK129: 5 | AL129: 625 | AM129: 4 | AN129: 500 | AO129: 3 | AP129: 375 | AQ129: 2 | AR129: 175 | AS129: 1 | AT129: 75 | AU129: 0
A130: =Source!A130 -> ZYX Electric Cars | B130: =Source!B130 -> TPGY | C130: =Source!C130 ->  | D130: =Source!D130 -> Holding Companies | E130: =Source!E130 -> 9.76 | F130: =Source!F130 -> 34.28 | G130: =Source!G130 -> 18.18 | H130: =Source!H130 -> 17.87 | Q130: -1 | R130: -1 | W130: -1 | X130: -1 | AC130: -1 | AD130: -1 | AG130: =IF(#REF!=0,0,IF(#REF!=#REF!,#REF!-#REF!,0)) ->  | AH130: 5000 | AI130: 0 | AJ130: 0 | AK130: 0 | AL130: 0 | AM130: 0 | AN130: 0 | AO130: 0 | AP130: 0 | AQ130: 0 | AR130: 0 | AS130: 0 | AT130: 0 | AU130: 0
A131: =Source!A131 -> ZYX Electric Cars | B131: =Source!B131 -> TSLA | C131: =Source!C131 ->  | D131: =Source!D131 -> Automobiles & Auto Parts | E131: =Source!E131 -> 70.102 | F131: =Source!F131 -> 900.4 | G131: =Source!G131 -> 699.6 | H131: =Source!H131 -> 681.5188 | Q131: -1 | R131: -1 | W131: -1 | X131: -1 | AC131: -1 | AD131: -1 | AG131: =IF(#REF!=0,0,IF(#REF!=#REF!,#REF!-#REF!,0)) ->  | AH131: 5000 | AI131: 0 | AJ131: 0 | AK131: 0 | AL131: 0 | AM131: 0 | AN131: 0 | AO131: 0 | AP131: 0 | AQ131: 0 | AR131: 0 | AS131: 0 | AT131: 0 | AU131: 0
A132: =Source!A132 -> ZYX Core Portfolio | B132: =Source!B132 -> TSM | C132: =Source!C132 ->  | D132: =Source!D132 -> Semiconductors & Semiconductor Equipment | E132: =Source!E132 -> 42.7 | F132: =Source!F132 -> 142.195 | G132: =Source!G132 -> 120.58 | H132: =Source!H132 -> 118.79 | I132: 93.11 | J132: 105.81 | K132: 0.25 | L132: 0.35 | O132: 167 | P132: 178 | Q132: 0.4058422426 | R132: 0.4984426299 | S132: 0.793577489 | T132: 0.9117173236 | W132: -1 | X132: -1 | Y132: -1 | Z132: -1 | AC132: -1 | AD132: -1 | AE132: -1 | AF132: -1 | AG132: =IF(#REF!=0,0,IF(#REF!=#REF!,#REF!-#REF!,0)) ->  | AH132: 5000 | AI132: 1750 | AJ132: 525 | AK132: 4 | AL132: 437 | AM132: 3 | AN132: 350 | AO132: 2 | AP132: 262 | AQ132: 2 | AR132: 122 | AS132: 1 | AT132: 52 | AU132: 0
A133: =Source!A133 -> ZYX Signal Limited | B133: =Source!B133 -> TWM | C133: =Source!C133 ->  | D133: =Source!D133 ->  | E133: =Source!E133 -> 13.615 | F133: =Source!F133 -> 120.3008 | G133: =Source!G133 -> 13.66 | H133: =Source!H133 -> 13.6313 | Q133: =SUM(O133-$H133)/$H133 -> -1 | R133: =SUM(P133-$H133)/$H133 -> -1 | S133: =SUM(O133-$I133)/$I133 ->  | T133: =SUM(P133-$I133)/$I133 ->  | W133: =SUM(U133-$H133)/$H133 -> -1 | X133: =SUM(V133-$H133)/$H133 -> -1 | Y133: =SUM(U133-$I133)/$I133 ->  | Z133: =SUM(V133-$I133)/$I133 ->  | AC133: =SUM(AA133-$H133)/$H133 -> -1 | AD133: =SUM(AB133-$H133)/$H133 -> -1 | AE133: =SUM(AA133-$I133)/$I133 ->  | AF133: =SUM(AB133-$I133)/$I133 ->  | AG133: =IF(#REF!=0,0,IF(#REF!=#REF!,#REF!-#REF!,0)) ->  | AH133: 5000 | AI133: =ROUNDDOWN(SUM($L133*$AH133),0) -> 0 | AJ133: =ROUNDDOWN(SUM($AI133*AJ$3),0) -> 0 | AK133: =ROUNDDOWN(SUM(AJ133/$H133),0) -> 0 | AL133: =ROUNDDOWN(SUM($AI133*AL$3),0) -> 0 | AM133: =ROUNDDOWN(SUM(AL133/$H133),0) -> 0 | AN133: =ROUNDDOWN(SUM($AI133*AN$3),0) -> 0 | AO133: =ROUNDDOWN(SUM(AN133/$H133),0) -> 0 | AP133: =ROUNDDOWN(SUM($AI133*AP$3),0) -> 0 | AQ133: =ROUNDDOWN(SUM(AP133/$H133),0) -> 0 | AR133: =ROUNDDOWN(SUM($AI133*AR$3),0) -> 0 | AS133: =ROUNDDOWN(SUM(AR133/$H133),0) -> 0 | AT133: =ROUNDDOWN(SUM($AI133*AT$3),0) -> 0 | AU133: =ROUNDDOWN(SUM(AT133/$H133),0) -> 0
A134: =Source!A134 -> ZYX Core Portfolio | B134: =Source!B134 -> TWTR | C134: =Source!C134 ->  | D134: =Source!D134 -> Software & IT Services | E134: =Source!E134 -> 20 | F134: =Source!F134 -> 80.75 | G134: =Source!G134 -> 68.46 | H134: =Source!H134 -> 67.75 | I134: 52.39 | J134: 60.56 | K134: 0.2 | L134: 0.35 | O134: 94 | P134: 102 | Q134: 0.3874538745 | R134: 0.5055350554 | S134: 0.7942355411 | T134: 0.9469364383 | U134: 140 | V134: 156 | W134: 1.066420664 | X134: 1.302583026 | Y134: 1.6722657 | Z134: 1.977667494 | AC134: -1 | AD134: -1 | AE134: -1 | AF134: -1 | AG134: =IF(#REF!=0,0,IF(#REF!=#REF!,#REF!-#REF!,0)) ->  | AH134: =$AH$5 -> 5000 | AI134: 1750 | AJ134: 525 | AK134: 7 | AL134: 437 | AM134: 6 | AN134: 350 | AO134: 5 | AP134: 262 | AQ134: 3 | AR134: 122 | AS134: 1 | AT134: 52 | AU134: 0
A135: =Source!A135 -> Oil | B135: =Source!B135 -> TYG | C135: =Source!C135 ->  | D135: =Source!D135 ->  | E135: =Source!E135 -> 4.6 | F135: =Source!F135 -> 25.46 | G135: =Source!G135 -> 25.18 | H135: =Source!H135 -> 25.02 | Q135: -1 | R135: -1 | W135: -1 | X135: -1 | AC135: -1 | AD135: -1 | AG135: =IF(#REF!=0,0,IF(#REF!=#REF!,#REF!-#REF!,0)) ->  | AH135: 5000 | AI135: 0 | AJ135: 0 | AK135: 0 | AL135: 0 | AM135: 0 | AN135: 0 | AO135: 0 | AP135: 0 | AQ135: 0 | AR135: 0 | AS135: 0 | AT135: 0 | AU135: 0
A136: =Source!A136 -> ZYX Core Portfolio | B136: =Source!B136 -> UBER | C136: =Source!C136 ->  | D136: =Source!D136 -> Software & IT Services | E136: =Source!E136 -> 13.71 | F136: =Source!F136 -> 64.05 | G136: =Source!G136 -> 58.95 | H136: =Source!H136 -> 58.25 | I136: 40.37 | J136: 45.62 | K136: 0.2 | L136: 0.35 | O136: 116 | P136: 124 | Q136: 0.991416309 | R136: 1.128755365 | S136: 1.873420857 | T136: 2.071587813 | W136: -1 | X136: -1 | Y136: -1 | Z136: -1 | AC136: -1 | AD136: -1 | AE136: -1 | AF136: -1 | AG136: =IF(#REF!=0,0,IF(#REF!=#REF!,#REF!-#REF!,0)) ->  | AH136: 5000 | AI136: 1750 | AJ136: 525 | AK136: 9 | AL136: 437 | AM136: 7 | AN136: 350 | AO136: 6 | AP136: 262 | AQ136: 4 | AR136: 122 | AS136: 2 | AT136: 52 | AU136: 0
A137: =Source!A137 -> ZYX Signal Limited | B137: =Source!B137 -> UNFI | C137: =Source!C137 ->  | D137: =Source!D137 -> Food & Drug Retailing | E137: =Source!E137 -> 5.055 | F137: =Source!F137 -> 40.24 | G137: =Source!G137 -> 39.24 | H137: =Source!H137 -> 39.19 | I137: 27 | J137: 29.76 | L137: 0.2 | M137: 24.06 | N137: 25.43 | O137: 36 | P137: 42 | Q137: -0.0813983159 | R137: 0.07170196479 | S137: 0.3333333333 | T137: 0.5555555556 | U137: 58 | V137: 75 | W137: 0.4799693799 | X137: 0.9137535085 | Y137: 1.148148148 | Z137: 1.777777778 | AC137: -1 | AD137: -1 | AE137: -1 | AF137: -1 | AG137: =IF(#REF!=0,0,IF(#REF!=#REF!,#REF!-#REF!,0)) ->  | AH137: 5000 | AI137: 1000 | AJ137: 300 | AK137: 7 | AL137: 250 | AM137: 6 | AN137: 200 | AO137: 5 | AP137: 150 | AQ137: 3 | AR137: 70 | AS137: 1 | AT137: 30 | AU137: 0
A138: =Source!A138 -> ZYX Signal Limited | B138: =Source!B138 -> VACQ | C138: =Source!C138 ->  | D138: =Source!D138 -> Holding Companies | E138: =Source!E138 -> 9.72 | F138: =Source!F138 -> 15.15 | G138: =Source!G138 -> 12.41 | H138: =Source!H138 -> 12.2 | I138: 10.41 | J138: 12.18 | L138: 0.2 | M138: 8.38 | N138: 8.68 | O138: 15.02 | P138: 16.73 | Q138: 0.231147541 | R138: 0.3713114754 | S138: 0.4428434198 | T138: 0.6071085495 | U138: 19.13 | V138: 22.5 | W138: 0.5680327869 | X138: 0.8442622951 | Y138: 0.8376560999 | Z138: 1.161383285 | AA138: 28 | AB138: 34 | AC138: 1.295081967 | AD138: 1.786885246 | AE138: 1.689721422 | AF138: 2.266090298 | AG138: =IF(#REF!=0,0,IF(#REF!=#REF!,#REF!-#REF!,0)) ->  | AH138: 5000 | AI138: 1000 | AJ138: 300 | AK138: 24 | AL138: 250 | AM138: 20 | AN138: 200 | AO138: 16 | AP138: 150 | AQ138: 12 | AR138: 70 | AS138: 5 | AT138: 30 | AU138: 2
A139: =Source!A139 -> ZYX Signal Limited | B139: =Source!B139 -> VSPR | C139: =Source!C139 ->  | D139: =Source!D139 -> Holding Companies | E139: =Source!E139 -> 10.01 | F139: =Source!F139 -> 12.84 | G139: =Source!G139 -> 10.81 | H139: =Source!H139 -> 10.58 | Q139: -1 | R139: -1 | W139: -1 | X139: -1 | AC139: -1 | AD139: -1 | AG139: =IF(#REF!=0,0,IF(#REF!=#REF!,#REF!-#REF!,0)) ->  | AH139: 5000 | AI139: 0 | AJ139: 0 | AK139: 0 | AL139: 0 | AM139: 0 | AN139: 0 | AO139: 0 | AP139: 0 | AQ139: 0 | AR139: 0 | AS139: 0 | AT139: 0 | AU139: 0
A140: =Source!A140 -> ZYX Signal Limited | B140: =Source!B140 -> VTRS | C140: =Source!C140 ->  | D140: =Source!D140 -> Pharmaceuticals | E140: =Source!E140 -> 12.75 | F140: =Source!F140 -> 19.24 | G140: =Source!G140 -> 14.1 | H140: =Source!H140 -> 14.235 | Q140: -1 | R140: -1 | W140: -1 | X140: -1 | AC140: -1 | AD140: -1 | AG140: =IF(#REF!=0,0,IF(#REF!=#REF!,#REF!-#REF!,0)) ->  | AH140: 5000 | AI140: 0 | AJ140: 0 | AK140: 0 | AL140: 0 | AM140: 0 | AN140: 0 | AO140: 0 | AP140: 0 | AQ140: 0 | AR140: 0 | AS140: 0 | AT140: 0 | AU140: 0
A141: =Source!A141 -> ZYX Signal Limited | B141: =Source!B141 -> WIFI | C141: =Source!C141 ->  | D141: =Source!D141 -> Telecommunications Services | E141: =Source!E141 -> 6.66 | F141: =Source!F141 -> 15.92 | G141: =Source!G141 -> 14.11 | H141: =Source!H141 -> 14.13 | I141: 13 | J141: 14 | L141: 0.1 | M141: 13.18 | N141: 13.38 | O141: 15 | P141: 16 | Q141: 0.06157112527 | R141: 0.1323425336 | S141: 0.1538461538 | T141: 0.2307692308 | W141: -1 | X141: -1 | Y141: -1 | Z141: -1 | AC141: -1 | AD141: -1 | AE141: -1 | AF141: -1 | AG141: =IF(#REF!=0,0,IF(#REF!=#REF!,#REF!-#REF!,0)) ->  | AH141: 5000 | AI141: 500 | AJ141: 150 | AK141: 10 | AL141: 125 | AM141: 8 | AN141: 100 | AO141: 7 | AP141: 75 | AQ141: 5 | AR141: 35 | AS141: 2 | AT141: 15 | AU141: 1
A142: =Source!A142 -> ZYX Core Portfolio | B142: =Source!B142 -> WMT | C142: =Source!C142 ->  | D142: =Source!D142 -> Food & Drug Retailing | E142: =Source!E142 -> 102 | F142: =Source!F142 -> 153.6597 | G142: =Source!G142 -> 132.13 | H142: =Source!H142 -> 132.7607 | I142: 125.24 | J142: 138.27 | K142: 0.2 | L142: 0.4 | O142: 211 | P142: 226 | Q142: 0.5893257568 | R142: 0.7023110002 | S142: 0.6847652507 | T142: 0.8045352922 | W142: -1 | X142: -1 | Y142: -1 | Z142: -1 | AC142: -1 | AD142: -1 | AE142: -1 | AF142: -1 | AG142: =IF(#REF!=0,0,IF(#REF!=#REF!,#REF!-#REF!,0)) ->  | AH142: 5000 | AI142: 2000 | AJ142: 600 | AK142: 4 | AL142: 500 | AM142: 3 | AN142: 400 | AO142: 3 | AP142: 300 | AQ142: 2 | AR142: 140 | AS142: 1 | AT142: 60 | AU142: 0
A143: =Source!A143 -> ZYX Signal Limited | B143: =Source!B143 -> WOW | C143: =Source!C143 ->  | D143: =Source!D143 -> Media & Publishing | E143: =Source!E143 -> 2.9453 | F143: =Source!F143 -> 18.2 | G143: =Source!G143 -> 16.87 | H143: =Source!H143 -> 17.15 | Q143: -1 | R143: -1 | W143: -1 | X143: -1 | AC143: -1 | AD143: -1 | AG143: =IF(#REF!=0,0,IF(#REF!=#REF!,#REF!-#REF!,0)) ->  | AH143: 5000 | AI143: 0 | AJ143: 0 | AK143: 0 | AL143: 0 | AM143: 0 | AN143: 0 | AO143: 0 | AP143: 0 | AQ143: 0 | AR143: 0 | AS143: 0 | AT143: 0 | AU143: 0
A144: =Source!A144 -> ZYX Signal Limited | B144: =Source!B144 -> XL | C144: =Source!C144 ->  | D144: =Source!D144 -> Automobiles & Auto Parts | E144: =Source!E144 -> 9.5 | F144: =Source!F144 -> 35 | G144: =Source!G144 -> 12.73 | H144: =Source!H144 -> 12.4327 | Q144: -1 | R144: -1 | W144: -1 | X144: -1 | AC144: -1 | AD144: -1 | AG144: =IF(#REF!=0,0,IF(#REF!=#REF!,#REF!-#REF!,0)) ->  | AH144: 5000 | AI144: 0 | AJ144: 0 | AK144: 0 | AL144: 0 | AM144: 0 | AN144: 0 | AO144: 0 | AP144: 0 | AQ144: 0 | AR144: 0 | AS144: 0 | AT144: 0 | AU144: 0
A145: =Source!A145 -> ZYX Signal Limited | B145: =Source!B145 -> XSPA | C145: =Source!C145 ->  | D145: =Source!D145 -> Personal & Household Products & Services | E145: =Source!E145 -> 0.15 | F145: =Source!F145 -> 8.82 | G145: =Source!G145 -> 1.95 | H145: =Source!H145 -> 1.94 | Q145: -1 | R145: -1 | W145: -1 | X145: -1 | AC145: -1 | AD145: -1 | AG145: =IF(#REF!=0,0,IF(#REF!=#REF!,#REF!-#REF!,0)) ->  | AH145: 5000 | AI145: 0 | AJ145: 0 | AK145: 0 | AL145: 0 | AM145: 0 | AN145: 0 | AO145: 0 | AP145: 0 | AQ145: 0 | AR145: 0 | AS145: 0 | AT145: 0 | AU145: 0
A146: =Source!A146 -> ZYX Signal Limited | B146: =Source!B146 -> YQ | C146: =Source!C146 ->  | D146: =Source!D146 ->  | E146: =Source!E146 -> 10 | F146: =Source!F146 -> 23.93 | G146: =Source!G146 -> 11.51 | H146: =Source!H146 -> 11.16 | Q146: -1 | R146: -1 | W146: -1 | X146: -1 | AC146: -1 | AD146: -1 | AG146: =IF(#REF!=0,0,IF(#REF!=#REF!,#REF!-#REF!,0)) ->  | AH146: 5000 | AI146: 0 | AJ146: 0 | AK146: 0 | AL146: 0 | AM146: 0 | AN146: 0 | AO146: 0 | AP146: 0 | AQ146: 0 | AR146: 0 | AS146: 0 | AT146: 0 | AU146: 0
A147: =Source!A147 -> ZYX Signal Limited | B147: =Source!B147 -> YUMC | C147: =Source!C147 ->  | D147: =Source!D147 -> Hotels & Entertainment Services | E147: =Source!E147 -> 38.33 | F147: =Source!F147 -> 64.64 | G147: =Source!G147 -> 61.65 | H147: =Source!H147 -> 61.08 | Q147: -1 | R147: -1 | W147: -1 | X147: -1 | AC147: -1 | AD147: -1 | AG147: =IF(#REF!=0,0,IF(#REF!=#REF!,#REF!-#REF!,0)) ->  | AH147: 5000 | AI147: 0 | AJ147: 0 | AK147: 0 | AL147: 0 | AM147: 0 | AN147: 0 | AO147: 0 | AP147: 0 | AQ147: 0 | AR147: 0 | AS147: 0 | AT147: 0 | AU147: 0
A148: =Source!A148 -> Motley Fool | B148: =Source!B148 -> ZM | C148: =Source!C148 ->  | D148: =Source!D148 -> Software & IT Services | E148: =Source!E148 -> 102 | F148: =Source!F148 -> 588.84 | G148: =Source!G148 -> 355.17 | H148: =Source!H148 -> 347.29 | Q148: -1 | R148: -1 | W148: -1 | X148: -1 | AC148: -1 | AD148: -1 | AG148: =IF(#REF!=0,0,IF(#REF!=#REF!,#REF!-#REF!,0)) ->  | AH148: 5000 | AI148: 0 | AJ148: 0 | AK148: 0 | AL148: 0 | AM148: 0 | AN148: 0 | AO148: 0 | AP148: 0 | AQ148: 0 | AR148: 0 | AS148: 0 | AT148: 0 | AU148: 0

Sheet Sheet1
AI2: Top of Range | AJ2: 1 | AL2: Middle | AN2: 1 | AP2: 1.05 | AR2: 1.1 | AT2: 1.15
C3: https://zyxbuyfeed.thearorareport.com/ | AI3: x | AJ3: 0.3 | AL3: 0.25 | AN3: 0.2 | AP3: 0.15 | AR3: 0.07 | AT3: 0.03
A4: Portfolio | B4: SYMBOL | C4: Name | D4: Industry | E4: 52 week low | F4: 52 week high | G4: Previous | H4: Current | I4: Best Way Buy Zone | K4: Size Range | M4: Stop Zone | O4: 1st Target Zone | Q4: 1stTarget vs Current | S4: 1stTarget vs BuyZone | U4: 2nd Target Zone | W4: 2ndTarget vs Current | Y4: 2ndTarget vs BuyZone | AA4: 3rd Target Zone | AC4: 3rdTarget vs Current | AE4: 3rdTarget vs BuyZone | AG4: Gamble | AH4: Maximum Cash | AI4: Cash | AJ4: Bottom of Buy Zn | AL4: Middle of Buy Zone | AN4: Top of Buy Zone | AP4: Within 5% | AR4: Within 10% | AT4: Within 15% | AW4: Color Criteria | AX4: Formula
A5: =Source!A5 -> ZYX Signal Limited | B5: =Source!B5 -> AAL | C5: =Source!C5 ->  | D5: =Source!D5 -> Passenger Transportation Services | E5: =Source!E5 -> 8.25 | F5: =Source!F5 -> 22.8 | G5: =Source!G5 -> 22.15 | H5: =Source!H5 -> 22.615 | Q5: =SUM(O5-$H5)/$H5 -> -1 | R5: -1 | S5: =SUM(O5-$I5)/$I5 ->  | W5: =SUM(U5-$H5)/$H5 -> -1 | X5: -1 | Y5: =SUM(U5-$I5)/$I5 ->  | AC5: =SUM(AA5-$H5)/$H5 -> -1 | AD5: -1 | AE5: =SUM(AA5-$I5)/$I5 ->  | AH5: 5000 | AI5: =ROUNDDOWN(SUM($L5*$AH5),0) -> 0 | AJ5: =ROUNDDOWN(SUM($AI5*AJ$3),0) -> 0 | AK5: =ROUNDDOWN(SUM(AJ5/$H5),0) -> 0 | AL5: =ROUNDDOWN(SUM($AI5*AL$3),0) -> 0 | AM5: =ROUNDDOWN(SUM(AL5/$H5),0) -> 0 | AN5: =ROUNDDOWN(SUM($AI5*AN$3),0) -> 0 | AO5: =ROUNDDOWN(SUM(AN5/$H5),0) -> 0 | AP5: =ROUNDDOWN(SUM($AI5*AP$3),0) -> 0 | AQ5: =ROUNDDOWN(SUM(AP5/$H5),0) -> 0 | AR5: =ROUNDDOWN(SUM($AI5*AR$3),0) -> 0 | AS5: =ROUNDDOWN(SUM(AR5/$H5),0) -> 0 | AT5: =ROUNDDOWN(SUM($AI5*AT$3),0) -> 0 | AU5: =ROUNDDOWN(SUM(AT5/$H5),0) -> 0
A6: =Source!A6 -> ZYX Core Portfolio | B6: =Source!B6 -> AAPL | C6: =Source!C6 ->  | D6: =Source!D6 -> Computers, Phones & Household Electronics | E6: =Source!E6 -> 53.1525 | F6: =Source!F6 -> 145.09 | G6: =Source!G6 -> 121.96 | H6: =Source!H6 -> 119.65 | I6: 101.04 | J6: 116.76 | K6: 0.25 | L6: 0.6 | O6: 156 | P6: 175 | Q6: 0.303802758 | R6: 0.4625992478 | S6: 0.5439429929 | T6: 0.7319873317 | W6: -1 | X6: -1 | Y6: -1 | Z6: -1 | AC6: -1 | AD6: -1 | AE6: -1 | AF6: -1 | AG6: =IF(#REF!=0,0,IF(#REF!=#REF!,#REF!-#REF!,0)) ->  | AH6: =$AH$5 -> 5000 | AI6: 3000 | AJ6: 900 | AK6: 7 | AL6: 750 | AM6: 6 | AN6: 600 | AO6: 5 | AP6: 450 | AQ6: 3 | AR6: 210 | AS6: 1 | AT6: 90 | AU6: =ROUNDDOWN(SUM(AT6/$H6),0) -> 0
A7: =Source!A7 -> ZYX Signal Limited | B7: =Source!B7 -> AAPL | C7: =Source!C7 ->  | D7: =Source!D7 -> Computers, Phones & Household Electronics | E7: =Source!E7 -> 53.1525 | F7: =Source!F7 -> 145.09 | G7: =Source!G7 -> 121.96 | H7: =Source!H7 -> 119.65 | Q7: -1 | R7: -1 | W7: -1 | X7: -1 | AC7: -1 | AD7: -1 | AG7: =IF(#REF!=0,0,IF(#REF!=#REF!,#REF!-#REF!,0)) ->  | AH7: 5000 | AI7: 0 | AJ7: 0 | AK7: 0 | AL7: 0 | AM7: 0 | AN7: 0 | AO7: 0 | AP7: 0 | AQ7: 0 | AR7: 0 | AS7: 0 | AT7: 0 | AU7: 0
A8: =Source!A8 -> ZYX Signal Limited | B8: =Source!B8 -> ABNB | C8: =Source!C8 ->  | D8: =Source!D8 -> Software & IT Services | E8: =Source!E8 -> 121.5 | F8: =Source!F8 -> 219.94 | G8: =Source!G8 -> 197.87 | H8: =Source!H8 -> 196 | Q8: -1 | R8: -1 | W8: -1 | X8: -1 | AC8: -1 | AD8: -1 | AG8: =IF(#REF!=0,0,IF(#REF!=#REF!,#REF!-#REF!,0)) ->  | AH8: 5000 | AI8: 0 | AJ8: 0 | AK8: 0 | AL8: 0 | AM8: 0 | AN8: 0 | AO8: 0 | AP8: 0 | AQ8: 0 | AR8: 0 | AS8: 0 | AT8: 0 | AU8: 0
A9: =Source!A9 -> ZYX Signal Limited | B9: =Source!B9 -> ACAC | C9: =Source!C9 ->  | D9: =Source!D9 -> Holding Companies | E9: =Source!E9 -> 9.72 | F9: =Source!F9 -> 13.2 | G9: =Source!G9 -> 10.51 | H9: =Source!H9 -> 10.2707 | I9: 12 | J9: 13.37 | L9: 0.15 | M9: 9.18 | N9: 9.63 | O9: 16.73 | P9: 18.23 | Q9: 0.6289055274 | R9: 0.7749520481 | S9: 0.3941666667 | T9: 0.5191666667 | U9: 23 | V9: 28 | W9: 1.239379984 | X9: 1.726201719 | Y9: 0.9166666667 | Z9: 1.333333333 | AA9: 38 | AB9: 42 | AC9: 2.699845191 | AD9: 3.089302579 | AE9: 2.166666667 | AF9: 2.5 | AG9: =IF(#REF!=0,0,IF(#REF!=#REF!,#REF!-#REF!,0)) ->  | AH9: 5000 | AI9: 750 | AJ9: 225 | AK9: 21 | AL9: 187 | AM9: 18 | AN9: 150 | AO9: 14 | AP9: 112 | AQ9: 10 | AR9: 52 | AS9: 5 | AT9: 22 | AU9: 2 | AX9: =SumConditionColorCells($A$3:$G$16,AW9) -> NO-COLOR
A10: =Source!A10 -> ZYX Signal Limited | B10: =Source!B10 -> AFRM | C10: =Source!C10 ->  | D10: =Source!D10 -> Software & IT Services | E10: =Source!E10 -> 70.05 | F10: =Source!F10 -> 146.9 | G10: =Source!G10 -> 81.25 | H10: =Source!H10 -> 78.22 | Q10: -1 | R10: -1 | W10: -1 | X10: -1 | AC10: -1 | AD10: -1 | AG10: =IF(#REF!=0,0,IF(#REF!=#REF!,#REF!-#REF!,0)) ->  | AH10: 5000 | AI10: 0 | AJ10: 0 | AK10: 0 | AL10: 0 | AM10: 0 | AN10: 0 | AO10: 0 | AP10: 0 | AQ10: 0 | AR10: 0 | AS10: 0 | AT10: 0 | AU10: 0
A11: =Source!A11 -> ZYX Signal Limited | B11: =Source!B11 -> AI | C11: =Source!C11 ->  | D11: =Source!D11 -> Software & IT Services | E11: =Source!E11 -> 77 | F11: =Source!F11 -> 183.9 | G11: =Source!G11 -> 86.47 | H11: =Source!H11 -> 85.325 | Q11: -1 | R11: -1 | W11: -1 | X11: -1 | AC11: -1 | AD11: -1 | AG11: =IF(#REF!=0,0,IF(#REF!=#REF!,#REF!-#REF!,0)) ->  | AH11: 5000 | AI11: 0 | AJ11: 0 | AK11: 0 | AL11: 0 | AM11: 0 | AN11: 0 | AO11: 0 | AP11: 0 | AQ11: 0 | AR11: 0 | AS11: 0 | AT11: 0 | AU11: 0
A12: =Source!A12 -> ZYX Core Portfolio | B12: =Source!B12 -> AIG | C12: =Source!C12 ->  | D12: =Source!D12 -> Insurance | E12: =Source!E12 -> 16.07 | F12: =Source!F12 -> 48.92 | G12: =Source!G12 -> 48.01 | H12: =Source!H12 -> 48.435 | I12: 33.11 | J12: 38.72 | K12: 0.2 | L12: 0.6 | O12: 75 | P12: 80 | Q12: 0.5484670177 | R12: 0.6516981522 | S12: 1.265176684 | T12: 1.416188463 | W12: -1 | X12: -1 | Y12: -1 | Z12: -1 | AC12: -1 | AD12: -1 | AE12: -1 | AF12: -1 | AG12: =IF(#REF!=0,0,IF(#REF!=#REF!,#REF!-#REF!,0)) ->  | AH12: 5000 | AI12: 3000 | AJ12: 900 | AK12: 18 | AL12: 750 | AM12: 15 | AN12: 600 | AO12: 12 | AP12: 450 | AQ12: 9 | AR12: 210 | AS12: 4 | AT12: 90 | AU12: 1
A13: =Source!A13 -> ZYX Core Portfolio | B13: =Source!B13 -> AMAT | C13: =Source!C13 ->  | D13: =Source!D13 -> Semiconductors & Semiconductor Equipment | E13: =Source!E13 -> 36.64 | F13: =Source!F13 -> 124.5 | G13: =Source!G13 -> 117.19 | H13: =Source!H13 -> 115.7199 | I13: 78.52 | J13: 92.13 | K13: 0.2 | L13: 0.45 | O13: 152 | P13: 166 | Q13: 0.313516517 | R13: 0.4344983015 | S13: 0.9358125318 | T13: 1.114111055 | W13: -1 | X13: -1 | Y13: -1 | Z13: -1 | AC13: -1 | AD13: -1 | AE13: -1 | AF13: -1 | AG13: =IF(#REF!=0,0,IF(#REF!=#REF!,#REF!-#REF!,0)) ->  | AH13: 5000 | AI13: 2250 | AJ13: 675 | AK13: 5 | AL13: 562 | AM13: 4 | AN13: 450 | AO13: 3 | AP13: 337 | AQ13: 2 | AR13: 157 | AS13: 1 | AT13: 67 | AU13: 0
A14: =Source!A14 -> ZYX Signal Limited | B14: =Source!B14 -> AMAT | C14: =Source!C14 ->  | D14: =Source!D14 -> Semiconductors & Semiconductor Equipment | E14: =Source!E14 -> 36.64 | F14: =Source!F14 -> 124.5 | G14: =Source!G14 -> 117.19 | H14: =Source!H14 -> 115.7199 | Q14: -1 | R14: -1 | W14: -1 | X14: -1 | AC14: -1 | AD14: -1 | AG14: =IF(#REF!=0,0,IF(#REF!=#REF!,#REF!-#REF!,0)) ->  | AH14: 5000 | AI14: 0 | AJ14: 0 | AK14: 0 | AL14: 0 | AM14: 0 | AN14: 0 | AO14: 0 | AP14: 0 | AQ14: 0 | AR14: 0 | AS14: 0 | AT14: 0 | AU14: 0
A15: =Source!A15 -> ZYX Signal Limited | B15: =Source!B15 -> AMCX | C15: =Source!C15 ->  | D15: =Source!D15 -> Media & Publishing | E15: =Source!E15 -> 19.62 | F15: =Source!F15 -> 75.15 | G15: =Source!G15 -> 73.6 | H15: =Source!H15 -> 75.12 | I15: 20.56 | J15: 23.88 | L15: 0.3 | M15: 19 | N15: 19.43 | O15: 78 | P15: 87 | Q15: 0.03833865815 | R15: 0.1581469649 | S15: 2.793774319 | T15: 3.23151751 | W15: -1 | X15: -1 | Y15: -1 | Z15: -1 | AC15: -1 | AD15: -1 | AE15: -1 | AF15: -1 | AG15: =IF(#REF!=0,0,IF(#REF!=#REF!,#REF!-#REF!,0)) ->  | AH15: 5000 | AI15: 1500 | AJ15: 450 | AK15: 5 | AL15: 375 | AM15: 4 | AN15: 300 | AO15: 3 | AP15: 225 | AQ15: 2 | AR15: 105 | AS15: 1 | AT15: 45 | AU15: 0
A16: =Source!A16 -> ZYX Core Portfolio | B16: =Source!B16 -> AMZN | C16: =Source!C16 ->  | D16: =Source!D16 -> Diversified Retail | E16: =Source!E16 -> 1626.0318 | F16: =Source!F16 -> 3552.25 | G16: =Source!G16 -> 3113.5901 | H16: =Source!H16 -> 3081.88 | I16: 2878 | J16: 3109 | K16: 0.15 | L16: 0.3 | O16: 4200 | P16: 4800 | Q16: 0.3628045219 | R16: 0.5574908822 | S16: 0.4593467686 | T16: 0.6678248784 | W16: -1 | X16: -1 | Y16: -1 | Z16: -1 | AC16: -1 | AD16: -1 | AE16: -1 | AF16: -1 | AG16: =IF(#REF!=0,0,IF(#REF!=#REF!,#REF!-#REF!,0)) ->  | AH16: 5000 | AI16: 1500 | AJ16: 450 | AK16: 0 | AL16: 375 | AM16: 0 | AN16: 300 | AO16: 0 | AP16: 225 | AQ16: 0 | AR16: 105 | AS16: 0 | AT16: 45 | AU16: 0
A17: =Source!A17 -> ZYX Pot | B17: =Source!B17 -> APHA | C17: =Source!C17 ->  | D17: =Source!D17 -> Pharmaceuticals | E17: =Source!E17 -> 1.95 | F17: =Source!F17 -> 32.29 | G17: =Source!G17 -> 19.86 | H17: =Source!H17 -> 19.1 | I17: 8.51 | J17: 12.78 | K17: 0.2 | L17: 0.3 | O17: Suspended | P17: Suspended | W17: -1 | X17: -1 | Y17: -1 | Z17: -1 | AC17: -1 | AD17: -1 | AE17: -1 | AF17: -1 | AG17: =IF(#REF!=0,0,IF(#REF!=#REF!,#REF!-#REF!,0)) ->  | AH17: 5000 | AI17: 1500 | AJ17: 450 | AK17: 23 | AL17: 375 | AM17: 19 | AN17: 300 | AO17: 15 | AP17: 225 | AQ17: 11 | AR17: 105 | AS17: 5 | AT17: 45 | AU17: 2
A18: =Source!A18 -> Motley Fool | B18: =Source!B18 -> APPN | C18: =Source!C18 ->  | D18: =Source!D18 -> Software & IT Services | E18: =Source!E18 -> 29.07 | F18: =Source!F18 -> 260 | G18: =Source!G18 -> 173.92 | H18: =Source!H18 -> 169.53 | Q18: -1 | R18: -1 | W18: -1 | X18: -1 | AC18: -1 | AD18: -1 | AG18: =IF(#REF!=0,0,IF(#REF!=#REF!,#REF!-#REF!,0)) ->  | AH18: 5000 | AI18: 0 | AJ18: 0 | AK18: 0 | AL18: 0 | AM18: 0 | AN18: 0 | AO18: 0 | AP18: 0 | AQ18: 0 | AR18: 0 | AS18: 0 | AT18: 0 | AU18: 0
A19: =Source!A19 -> ZYX Signal Limited | B19: =Source!B19 -> APT | C19: =Source!C19 ->  | D19: =Source!D19 -> Healthcare Equipment & Supplies | E19: =Source!E19 -> 8.56 | F19: =Source!F19 -> 25.55 | G19: =Source!G19 -> 10.43 | H19: =Source!H19 -> 10.4 | Q19: -1 | R19: -1 | W19: -1 | X19: -1 | AC19: -1 | AD19: -1 | AG19: =IF(#REF!=0,0,IF(#REF!=#REF!,#REF!-#REF!,0)) ->  | AH19: 5000 | AI19: 0 | AJ19: 0 | AK19: 0 | AL19: 0 | AM19: 0 | AN19: 0 | AO19: 0 | AP19: 0 | AQ19: 0 | AR19: 0 | AS19: 0 | AT19: 0 | AU19: 0
A20: =Source!A20 -> ZYX Signal Limited | B20: =Source!B20 -> APXT | C20: =Source!C20 ->  | D20: =Source!D20 -> Holding Companies | E20: =Source!E20 -> 9.125 | F20: =Source!F20 -> 17.9 | G20: =Source!G20 -> 12.76 | H20: =Source!H20 -> 12.56 | Q20: -1 | R20: -1 | W20: -1 | X20: -1 | AC20: -1 | AD20: -1 | AG20: =IF(#REF!=0,0,IF(#REF!=#REF!,#REF!-#REF!,0)) ->  | AH20: 5000 | AI20: 0 | AJ20: 0 | AK20: 0 | AL20: 0 | AM20: 0 | AN20: 0 | AO20: 0 | AP20: 0 | AQ20: 0 | AR20: 0 | AS20: 0 | AT20: 0 | AU20: 0
A21: =Source!A21 -> ZYX Pot | B21: =Source!B21 -> ARNA | C21: =Source!C21 ->  | D21: =Source!D21 -> Biotechnology & Medical Research | E21: =Source!E21 -> 32.95 | F21: =Source!F21 -> 90.19 | G21: =Source!G21 -> 75.66 | H21: =Source!H21 -> 75.9 | I21: 46 | J21: 50.57 | K21: 0.1 | L21: 0.25 | M21: 36 | N21: 39.43 | O21: 110 | P21: 120 | Q21: 0.4492753623 | R21: 0.581027668 | S21: 1.391304348 | T21: 1.608695652 | W21: -1 | X21: -1 | Y21: -1 | Z21: -1 | AC21: -1 | AD21: -1 | AE21: -1 | AF21: -1 | AG21: =IF(#REF!=0,0,IF(#REF!=#REF!,#REF!-#REF!,0)) ->  | AH21: 5000 | AI21: 1250 | AJ21: 375 | AK21: 4 | AL21: 312 | AM21: 4 | AN21: 250 | AO21: 3 | AP21: 187 | AQ21: 2 | AR21: 87 | AS21: 1 | AT21: 37 | AU21: 0
A22: =Source!A22 -> ZYX Core Portfolio | B22: =Source!B22 -> ARRY | C22: =Source!C22 ->  | D22: =Source!D22 -> Renewable Energy | E22: =Source!E22 -> 29.05 | F22: =Source!F22 -> 54.78 | G22: =Source!G22 -> 35.07 | H22: =Source!H22 -> 34.56 | I22: 36.41 | J22: 40.88 | K22: 0.2 | L22: 0.35 | O22: 78 | P22: 83 | Q22: 1.256944444 | R22: 1.40162037 | S22: 1.142268608 | T22: 1.279593518 | W22: -1 | X22: -1 | Y22: -1 | Z22: -1 | AC22: -1 | AD22: -1 | AE22: -1 | AF22: -1 | AG22: =IF(#REF!=0,0,IF(#REF!=#REF!,#REF!-#REF!,0)) ->  | AH22: 5000 | AI22: 1750 | AJ22: 525 | AK22: 15 | AL22: 437 | AM22: 12 | AN22: 350 | AO22: 10 | AP22: 262 | AQ22: 7 | AR22: 122 | AS22: 3 | AT22: 52 | AU22: 1
A23: =Source!A23 -> ZYX Signal Limited | B23: =Source!B23 -> ASAN | C23: =Source!C23 ->  | D23: =Source!D23 -> Software & IT Services | E23: =Source!E23 -> 20.57 | F23: =Source!F23 -> 43.72 | G23: =Source!G23 -> 33.94 | H23: =Source!H23 -> 32.2 | Q23: -1 | R23: -1 | W23: -1 | X23: -1 | AC23: -1 | AD23: -1 | AG23: =IF(#REF!=0,0,IF(#REF!=#REF!,#REF!-#REF!,0)) ->  | AH23: 5000 | AI23: 0 | AJ23: 0 | AK23: 0 | AL23: 0 | AM23: 0 | AN23: 0 | AO23: 0 | AP23: 0 | AQ23: 0 | AR23: 0 | AS23: 0 | AT23: 0 | AU23: 0
A24: =Source!A24 -> ZYX Core Portfolio | B24: =Source!B24 -> BABA | C24: =Source!C24 ->  | D24: =Source!D24 -> Software & IT Services | E24: =Source!E24 -> 169.95 | F24: =Source!F24 -> 319.32 | G24: =Source!G24 -> 240.8 | H24: =Source!H24 -> 232.15 | I24: 188.13 | J24: 225.67 | K24: 0.3 | L24: 0.55 | O24: 375 | P24: 390 | Q24: 0.6153349128 | R24: 0.6799483093 | S24: 0.9933025036 | T24: 1.073034604 | W24: -1 | X24: -1 | Y24: -1 | Z24: -1 | AC24: -1 | AD24: -1 | AE24: -1 | AF24: -1 | AG24: =IF(#REF!=0,0,IF(#REF!=#REF!,#REF!-#REF!,0)) ->  | AH24: 5000 | AI24: 2750 | AJ24: 825 | AK24: 3 | AL24: 687 | AM24: 2 | AN24: 550 | AO24: 2 | AP24: 412 | AQ24: 1 | AR24: 192 | AS24: 0 | AT24: 82 | AU24: 0
A25: =Source!A25 -> ZYX Core Portfolio | B25: =Source!B25 -> BAC | C25: =Source!C25 ->  | D25: =Source!D25 -> Banking Services | E25: =Source!E25 -> 17.95 | F25: =Source!F25 -> 38.1766 | G25: =Source!G25 -> 37.24 | H25: =Source!H25 -> 37.82 | I25: 24.63 | J25: 28.33 | K25: 0.2 | L25: 0.6 | O25: 47 | P25: 51 | Q25: 0.242728715 | R25: 0.3484928609 | S25: 0.9082419813 | T25: 1.070645554 | W25: -1 | X25: -1 | Y25: -1 | Z25: -1 | AC25: -1 | AD25: -1 | AE25: -1 | AF25: -1 | AG25: =IF(#REF!=0,0,IF(#REF!=#REF!,#REF!-#REF!,0)) ->  | AH25: 5000 | AI25: 3000 | AJ25: 900 | AK25: 23 | AL25: 750 | AM25: 19 | AN25: 600 | AO25: 15 | AP25: 450 | AQ25: 11 | AR25: 210 | AS25: 5 | AT25: 90 | AU25: 2
A26: =Source!A26 -> ZYX Signal Limited | B26: =Source!B26 -> BFT | C26: =Source!C26 ->  | D26: =Source!D26 -> Holding Companies | E26: =Source!E26 -> 9.595 | F26: =Source!F26 -> 19.5662 | G26: =Source!G26 -> 14.92 | H26: =Source!H26 -> 15.05 | Q26: -1 | R26: -1 | W26: -1 | X26: -1 | AC26: -1 | AD26: -1 | AG26: =IF(#REF!=0,0,IF(#REF!=#REF!,#REF!-#REF!,0)) ->  | AH26: 5000 | AI26: 0 | AJ26: 0 | AK26: 0 | AL26: 0 | AM26: 0 | AN26: 0 | AO26: 0 | AP26: 0 | AQ26: 0 | AR26: 0 | AS26: 0 | AT26: 0 | AU26: 0
A27: =Source!A27 -> ZYX Electric Cars | B27: =Source!B27 -> BLNK | C27: =Source!C27 ->  | D27: =Source!D27 -> Electrical Utilities & IPPs | E27: =Source!E27 -> 1.25 | F27: =Source!F27 -> 64.5 | G27: =Source!G27 -> 41.4 | H27: =Source!H27 -> 39.345 | Q27: -1 | R27: -1 | W27: -1 | X27: -1 | AC27: -1 | AD27: -1 | AG27: =IF(#REF!=0,0,IF(#REF!=#REF!,#REF!-#REF!,0)) ->  | AH27: 5000 | AI27: 0 | AJ27: 0 | AK27: 0 | AL27: 0 | AM27: 0 | AN27: 0 | AO27: 0 | AP27: 0 | AQ27: 0 | AR27: 0 | AS27: 0 | AT27: 0 | AU27: 0
A28: =Source!A28 -> ZYX Signal Limited | B28: =Source!B28 -> BMBL | C28: =Source!C28 -> BMBL | D28: =Source!D28 ->  | E28: =Source!E28 ->  | F28: =Source!F28 ->  | G28: =Source!G28 ->  | H28: =Source!H28 -> 70.31 | I28: 52 | J28: 61.56 | L28: 0.2 | M28: 42.68 | N28: 42.93 | O28: 73 | P28: 81 | Q28: 0.0382591381 | R28: 0.1520409615 | S28: 0.4038461538 | T28: 0.5576923077 | W28: -1 | X28: -1 | Y28: -1 | Z28: -1 | AC28: -1 | AD28: -1 | AE28: -1 | AF28: -1 | AG28: =IF(#REF!=0,0,IF(#REF!=#REF!,#REF!-#REF!,0)) ->  | AH28: 5000 | AI28: 1000 | AJ28: 300 | AK28: 4 | AL28: 250 | AM28: 3 | AN28: 200 | AO28: 2 | AP28: 150 | AQ28: 2 | AR28: 70 | AS28: 0 | AT28: 30 | AU28: 0
A29: =Source!A29 -> ZYX Core Portfolio | B29: =Source!B29 -> BMY | C29: =Source!C29 ->  | D29: =Source!D29 -> Pharmaceuticals | E29: =Source!E29 -> 45.76 | F29: =Source!F29 -> 67.1599 | G29: =Source!G29 -> 60.35 | H29: =Source!H29 -> 60.755 | I29: 57.7 | J29: 60.77 | K29: 0.25 | L29: 0.4 | O29: 100 | P29: 110 | Q29: 0.6459550654 | R29: 0.810550572 | S29: 0.733102253 | T29: 0.9064124783 | W29: -1 | X29: -1 | Y29: -1 | Z29: -1 | AC29: -1 | AD29: -1 | AE29: -1 | AF29: -1 | AG29: =IF(#REF!=0,0,IF(#REF!=#REF!,#REF!-#REF!,0)) ->  | AH29: 5000 | AI29: 2000 | AJ29: 600 | AK29: 9 | AL29: 500 | AM29: 8 | AN29: 400 | AO29: 6 | AP29: 300 | AQ29: 4 | AR29: 140 | AS29: 2 | AT29: 60 | AU29: 0
A30: =Source!A30 -> ZYX Signal Limited | B30: =Source!B30 -> BNGO | C30: =Source!C30 ->  | D30: =Source!D30 -> Healthcare Equipment & Supplies | E30: =Source!E30 -> 0.25 | F30: =Source!F30 -> 15.69 | G30: =Source!G30 -> 9.53 | H30: =Source!H30 -> 9.15 | Q30: -1 | R30: -1 | W30: -1 | X30: -1 | AC30: -1 | AD30: -1 | AH30: 5000 | AI30: 0 | AJ30: 0 | AK30: 0 | AL30: 0 | AM30: 0 | AN30: 0 | AO30: 0 | AP30: 0 | AQ30: 0 | AR30: 0 | AS30: 0 | AT30: 0 | AU30: 0
A31: =Source!A31 -> ZYX Core Portfolio | B31: =Source!B31 -> BSX | C31: =Source!C31 ->  | D31: =Source!D31 -> Healthcare Equipment & Supplies | E31: =Source!E31 -> 24.1 | F31: =Source!F31 -> 42.37 | G31: =Source!G31 -> 38.65 | H31: =Source!H31 -> 38.74 | I31: 32.87 | J31: 35.11 | K31: 0.25 | L31: 0.4 | O31: 57 | P31: 62 | Q31: 0.4713474445 | R31: 0.6004130098 | S31: 0.7341040462 | T31: 0.8862184363 | W31: -1 | X31: -1 | Y31: -1 | Z31: -1 | AC31: -1 | AD31: -1 | AE31: -1 | AF31: -1 | AG31: =IF(#REF!=0,0,IF(#REF!=#REF!,#REF!-#REF!,0)) ->  | AH31: 5000 | AI31: 2000 | AJ31: 600 | AK31: 15 | AL31: 500 | AM31: 12 | AN31: 400 | AO31: 10 | AP31: 300 | AQ31: 7 | AR31: 140 | AS31: 3 | AT31: 60 | AU31: 1
A32: =Source!A32 -> ZYX Trade Around | B32: =Source!B32 -> CAPA | C32: =Source!C32 ->  | D32: =Source!D32 -> Holding Companies | E32: =Source!E32 -> 9.88 | F32: =Source!F32 -> 25 | G32: =Source!G32 -> 13.64 | H32: =Source!H32 -> 13.2 | I32: 10 | J32: 13.35 | L32: 0.2 | M32: 9 | N32: 9.43 | O32: 28 | P32: 33 | Q32: 1.121212121 | R32: 1.5 | S32: 1.8 | T32: 2.3 | U32: 58 | V32: 62 | W32: 3.393939394 | X32: 3.696969697 | Y32: 4.8 | Z32: 5.2 | AA32: 107 | AB32: 125 | AC32: 7.106060606 | AD32: 8.46969697 | AE32: 9.7 | AF32: 11.5 | AG32: =IF(#REF!=0,0,IF(#REF!=#REF!,#REF!-#REF!,0)) ->  | AH32: 5000 | AI32: 1000 | AJ32: 300 | AK32: 22 | AL32: 250 | AM32: 18 | AN32: 200 | AO32: 15 | AP32: 150 | AQ32: 11 | AR32: 70 | AS32: 5 | AT32: 30 | AU32: 2
A33: =Source!A33 -> ZYX Signal Limited | B33: =Source!B33 -> CAPA | C33: =Source!C33 ->  | D33: =Source!D33 -> Holding Companies | E33: =Source!E33 -> 9.88 | F33: =Source!F33 -> 25 | G33: =Source!G33 -> 13.64 | H33: =Source!H33 -> 13.2 | I33: 10 | J33: 13.35 | L33: 0.2 | M33: 9 | N33: 9.43 | O33: 28 | P33: 33 | Q33: 1.121212121 | R33: 1.5 | S33: 1.8 | T33: 2.3 | U33: 58 | V33: 62 | W33: 3.393939394 | X33: 3.696969697 | Y33: 4.8 | Z33: 5.2 | AA33: 107 | AB33: 125 | AC33: 7.106060606 | AD33: 8.46969697 | AE33: 9.7 | AF33: 11.5 | AG33: =IF(#REF!=0,0,IF(#REF!=#REF!,#REF!-#REF!,0)) ->  | AH33: 5000 | AI33: 1000 | AJ33: 300 | AK33: 22 | AL33: 250 | AM33: 18 | AN33: 200 | AO33: 15 | AP33: 150 | AQ33: 11 | AR33: 70 | AS33: 5 | AT33: 30 | AU33: 2
A34: =Source!A34 -> ZYX Core Portfolio | B34: =Source!B34 -> CCL | C34: =Source!C34 ->  | D34: =Source!D34 -> Hotels & Entertainment Services | E34: =Source!E34 -> 7.8 | F34: =Source!F34 -> 29.59 | G34: =Source!G34 -> 27.47 | H34: =Source!H34 -> 27.925 | I34: 17.11 | J34: 21.56 | K34: 0.35 | L34: 0.55 | O34: 67 | P34: 75 | Q34: 1.399283796 | R34: 1.685765443 | S34: 2.915838691 | T34: 3.38340152 | W34: -1 | X34: -1 | Y34: -1 | Z34: -1 | AC34: -1 | AD34: -1 | AE34: -1 | AF34: -1 | AG34: =IF(#REF!=0,0,IF(#REF!=#REF!,#REF!-#REF!,0)) ->  | AH34: 5000 | AI34: 2750 | AJ34: 825 | AK34: 29 | AL34: 687 | AM34: 24 | AN34: 550 | AO34: 19 | AP34: 412 | AQ34: 14 | AR34: 192 | AS34: 6 | AT34: 82 | AU34: 2
A35: =Source!A35 -> ZYX Signal Limited | B35: =Source!B35 -> CERT | C35: =Source!C35 ->  | D35: =Source!D35 -> Software & IT Services | E35: =Source!E35 -> 24.9 | F35: =Source!F35 -> 41.79 | G35: =Source!G35 -> 27 | H35: =Source!H35 -> 26.83 | Q35: -1 | R35: -1 | W35: -1 | X35: -1 | AC35: -1 | AD35: -1 | AG35: =IF(#REF!=0,0,IF(#REF!=#REF!,#REF!-#REF!,0)) ->  | AH35: 5000 | AI35: 0 | AJ35: 0 | AK35: 0 | AL35: 0 | AM35: 0 | AN35: 0 | AO35: 0 | AP35: 0 | AQ35: 0 | AR35: 0 | AS35: 0 | AT35: 0 | AU35: 0
A36: =Source!A36 -> ZYX Pot | B36: =Source!B36 -> CGC | C36: =Source!C36 ->  | D36: =Source!D36 -> Pharmaceuticals | E36: =Source!E36 -> 9 | F36: =Source!F36 -> 56.4965 | G36: =Source!G36 -> 34.28 | H36: =Source!H36 -> 33.2199 | I36: 27.26 | J36: 34.51 | K36: 0.2 | L36: 0.4 | O36: 117 | P36: 130 | Q36: 2.521985316 | R36: 2.913317018 | S36: 3.292002935 | T36: 3.76889215 | W36: -1 | X36: -1 | Y36: -1 | Z36: -1 | AC36: -1 | AD36: -1 | AE36: -1 | AF36: -1 | AG36: =IF(#REF!=0,0,IF(#REF!=#REF!,#REF!-#REF!,0)) ->  | AH36: 5000 | AI36: 2000 | AJ36: 600 | AK36: 18 | AL36: 500 | AM36: 15 | AN36: 400 | AO36: 12 | AP36: 300 | AQ36: 9 | AR36: 140 | AS36: 4 | AT36: 60 | AU36: 1
A37: =Source!A37 -> ZYX Core Portfolio | B37: =Source!B37 -> CGC | C37: =Source!C37 ->  | D37: =Source!D37 -> Pharmaceuticals | E37: =Source!E37 -> 9 | F37: =Source!F37 -> 56.4965 | G37: =Source!G37 -> 34.28 | H37: =Source!H37 -> 33.2199 | I37: 26.13 | J37: 30.31 | K37: 0.2 | L37: 0.4 | O37: 66 | P37: 74 | Q37: =SUM(O37-$H37)/$H37 -> 0.9867609475 | R37: 1.227580456 | S37: =SUM(O37-$I37)/$I37 -> 1.525832377 | T37: 1.831993877 | W37: =SUM(U37-$H37)/$H37 -> -1 | X37: -1 | Y37: =SUM(U37-$I37)/$I37 -> -1 | Z37: -1 | AC37: =SUM(AA37-$H37)/$H37 -> -1 | AD37: -1 | AE37: =SUM(AA37-$I37)/$I37 -> -1 | AF37: -1 | AG37: =IF(#REF!=0,0,IF(#REF!=#REF!,#REF!-#REF!,0)) ->  | AH37: 5000 | AI37: 2000 | AJ37: 600 | AK37: 18 | AL37: 500 | AM37: 15 | AN37: 400 | AO37: 12 | AP37: 300 | AQ37: 9 | AR37: 140 | AS37: 4 | AT37: 60 | AU37: 1
A38: =Source!A38 -> ZYX Core Portfolio | B38: =Source!B38 -> CIEN | C38: =Source!C38 ->  | D38: =Source!D38 -> Communications & Networking | E38: =Source!E38 -> 30.58 | F38: =Source!F38 -> 61.515 | G38: =Source!G38 -> 53.26 | H38: =Source!H38 -> 53.5 | I38: 42.52 | J38: 47.63 | K38: 0.25 | L38: 0.4 | M38: 28 | N38: 29.43 | O38: 76 | P38: 82 | Q38: 0.4205607477 | R38: 0.5327102804 | S38: 0.7873941675 | T38: 0.9285042333 | W38: -1 | X38: -1 | Y38: -1 | Z38: -1 | AC38: -1 | AD38: -1 | AE38: -1 | AF38: -1 | AG38: =IF(#REF!=0,0,IF(#REF!=#REF!,#REF!-#REF!,0)) ->  | AH38: 5000 | AI38: 2000 | AJ38: 600 | AK38: 11 | AL38: 500 | AM38: 9 | AN38: 400 | AO38: 7 | AP38: 300 | AQ38: 5 | AR38: 140 | AS38: 2 | AT38: 60 | AU38: 1
A39: =Source!A39 -> ZYX Core Portfolio | B39: =Source!B39 -> CLF | C39: =Source!C39 ->  | D39: =Source!D39 -> Metals & Mining | E39: =Source!E39 -> 2.63 | F39: =Source!F39 -> 18.77 | G39: =Source!G39 -> 16.9 | H39: =Source!H39 -> 17.08 | I39: 10.13 | J39: 12.57 | K39: 0.15 | L39: 0.25 | M39: 8.73 | N39: 9.18 | O39: 22 | P39: 26 | Q39: 0.2880562061 | R39: 0.5222482436 | S39: 1.171767029 | T39: 1.566633761 | W39: -1 | X39: -1 | Y39: -1 | Z39: -1 | AC39: -1 | AD39: -1 | AE39: -1 | AF39: -1 | AG39: =IF(#REF!=0,0,IF(#REF!=#REF!,#REF!-#REF!,0)) ->  | AH39: 5000 | AI39: 1250 | AJ39: 375 | AK39: 21 | AL39: 312 | AM39: 18 | AN39: 250 | AO39: 14 | AP39: 187 | AQ39: 10 | AR39: 87 | AS39: 5 | AT39: 37 | AU39: 2
A40: =Source!A40 -> ZYX Electric Cars | B40: =Source!B40 -> CLII | C40: =Source!C40 ->  | D40: =Source!D40 -> Holding Companies | E40: =Source!E40 -> 9.746 | F40: =Source!F40 -> 24.34 | G40: =Source!G40 -> 14.36 | H40: =Source!H40 -> 13.95 | Q40: -1 | R40: -1 | W40: -1 | X40: -1 | AC40: -1 | AD40: -1 | AG40: =IF(#REF!=0,0,IF(#REF!=#REF!,#REF!-#REF!,0)) ->  | AH40: 5000 | AI40: 0 | AJ40: 0 | AK40: 0 | AL40: 0 | AM40: 0 | AN40: 0 | AO40: 0 | AP40: 0 | AQ40: 0 | AR40: 0 | AS40: 0 | AT40: 0 | AU40: 0
A41: =Source!A41 -> ZYX Signal Limited | B41: =Source!B41 -> CLVS | C41: =Source!C41 ->  | D41: =Source!D41 -> Biotechnology & Medical Research | E41: =Source!E41 -> 3.62 | F41: =Source!F41 -> 11.1 | G41: =Source!G41 -> 6.25 | H41: =Source!H41 -> 6.0589 | Q41: -1 | R41: -1 | W41: -1 | X41: -1 | AC41: -1 | AD41: -1 | AG41: =IF(#REF!=0,0,IF(#REF!=#REF!,#REF!-#REF!,0)) ->  | AH41: 5000 | AI41: 0 | AJ41: 0 | AK41: 0 | AL41: 0 | AM41: 0 | AN41: 0 | AO41: 0 | AP41: 0 | AQ41: 0 | AR41: 0 | AS41: 0 | AT41: 0 | AU41: 0
A42: =Source!A42 -> ZYX Core Portfolio | B42: =Source!B42 -> CNC | C42: =Source!C42 ->  | D42: =Source!D42 -> Healthcare Providers & Services | E42: =Source!E42 -> 43.96 | F42: =Source!F42 -> 74.7 | G42: =Source!G42 -> 61.89 | H42: =Source!H42 -> 62.11 | I42: 57.31 | J42: 62.36 | K42: 0.25 | L42: 0.5 | O42: 105 | P42: 114 | Q42: 0.6905490259 | R42: 0.8354532281 | S42: 0.8321409876 | T42: 0.9891816437 | W42: -1 | X42: -1 | Y42: -1 | Z42: -1 | AC42: -1 | AD42: -1 | AE42: -1 | AF42: -1 | AG42: =IF(#REF!=0,0,IF(#REF!=#REF!,#REF!-#REF!,0)) ->  | AH42: 5000 | AI42: 2500 | AJ42: 750 | AK42: 12 | AL42: 625 | AM42: 10 | AN42: 500 | AO42: 8 | AP42: 375 | AQ42: 6 | AR42: 175 | AS42: 2 | AT42: 75 | AU42: 1
A43: =Source!A43 -> ZYX Signal Limited | B43: =Source!B43 -> COIN | C43: =Source!C43 -> COIN | D43: =Source!D43 ->  | E43: =Source!E43 ->  | F43: =Source!F43 ->  | G43: =Source!G43 ->  | H43: =Source!H43 ->  | L43: 0.5 | AG43: =IF(#REF!=0,0,IF(#REF!=#REF!,#REF!-#REF!,0)) ->  | AH43: 5000 | AI43: 2500 | AJ43: 750 | AL43: 625 | AN43: 500 | AP43: 375 | AR43: 175 | AT43: 75
A44: =Source!A44 -> ZYX Pot | B44: =Source!B44 -> CRLBF | C44: =Source!C44 ->  | D44: =Source!D44 -> Pharmaceuticals | E44: =Source!E44 -> 1.94 | F44: =Source!F44 -> 17.4911 | G44: =Source!G44 -> 13.4278 | H44: =Source!H44 -> 13.2525 | I44: 10.36 | J44: 12.78 | K44: 0.15 | L44: 0.3 | O44: 23 | P44: 26 | Q44: 0.7355215997 | R44: 0.9618939823 | S44: 1.22007722 | T44: 1.50965251 | W44: -1 | X44: -1 | Y44: -1 | Z44: -1 | AC44: -1 | AD44: -1 | AE44: -1 | AF44: -1 | AG44: =IF(#REF!=0,0,IF(#REF!=#REF!,#REF!-#REF!,0)) ->  | AH44: 5000 | AI44: 1500 | AJ44: 450 | AK44: 33 | AL44: 375 | AM44: 28 | AN44: 300 | AO44: 22 | AP44: 225 | AQ44: 16 | AR44: 105 | AS44: 7 | AT44: 45 | AU44: 3
A45: =Source!A45 -> ZYX Pot | B45: =Source!B45 -> CRON | C45: =Source!C45 ->  | D45: =Source!D45 -> Pharmaceuticals | E45: =Source!E45 -> 4 | F45: =Source!F45 -> 15.83 | G45: =Source!G45 -> 10.48 | H45: =Source!H45 -> 10.14 | I45: 8.62 | J45: 10.51 | K45: 0.15 | L45: 0.2 | O45: 31 | P45: 33 | Q45: 2.057199211 | R45: 2.25443787 | S45: 2.596287703 | T45: 2.828306265 | W45: -1 | X45: -1 | Y45: -1 | Z45: -1 | AC45: -1 | AD45: -1 | AE45: -1 | AF45: -1 | AG45: =IF(#REF!=0,0,IF(#REF!=#REF!,#REF!-#REF!,0)) ->  | AH45: 5000 | AI45: 1000 | AJ45: 300 | AK45: 29 | AL45: 250 | AM45: 24 | AN45: 200 | AO45: 19 | AP45: 150 | AQ45: 14 | AR45: 70 | AS45: 6 | AT45: 30 | AU45: 2
A46: =Source!A46 -> ZYX Pot | B46: =Source!B46 -> CURLF | C46: =Source!C46 ->  | D46: =Source!D46 -> Pharmaceuticals | E46: =Source!E46 -> 2.54 | F46: =Source!F46 -> 18.38 | G46: =Source!G46 -> 15.6 | H46: =Source!H46 -> 15.53 | I46: 11.52 | J46: 14.51 | K46: 0.15 | L46: 0.25 | O46: 34 | P46: 38 | Q46: 1.189311011 | R46: 1.446877012 | S46: 1.951388889 | T46: 2.298611111 | W46: -1 | X46: -1 | Y46: -1 | Z46: -1 | AC46: -1 | AD46: -1 | AE46: -1 | AF46: -1 | AG46: =IF(#REF!=0,0,IF(#REF!=#REF!,#REF!-#REF!,0)) ->  | AH46: 5000 | AI46: 1250 | AJ46: 375 | AK46: 24 | AL46: 312 | AM46: 20 | AN46: 250 | AO46: 16 | AP46: 187 | AQ46: 12 | AR46: 87 | AS46: 5 | AT46: 37 | AU46: 2
A47: =Source!A47 -> ZYX Signal Limited | B47: =Source!B47 -> DASH | C47: =Source!C47 ->  | D47: =Source!D47 -> Software & IT Services | E47: =Source!E47 -> 130 | F47: =Source!F47 -> 256.09 | G47: =Source!G47 -> 144.97 | H47: =Source!H47 -> 141.44 | Q47: -1 | R47: -1 | W47: -1 | X47: -1 | AC47: -1 | AD47: -1 | AG47: =IF(#REF!=0,0,IF(#REF!=#REF!,#REF!-#REF!,0)) ->  | AH47: 5000 | AI47: 0 | AJ47: 0 | AK47: 0 | AL47: 0 | AM47: 0 | AN47: 0 | AO47: 0 | AP47: 0 | AQ47: 0 | AR47: 0 | AS47: 0 | AT47: 0 | AU47: 0
A48: =Source!A48 -> ZYX Core Portfolio | B48: =Source!B48 -> DIS | C48: =Source!C48 ->  | D48: =Source!D48 -> Media & Publishing | E48: =Source!E48 -> 79.07 | F48: =Source!F48 -> 203.02 | G48: =Source!G48 -> 196.75 | H48: =Source!H48 -> 195.62 | I48: 149.02 | J48: 168.88 | K48: 0.35 | L48: 0.65 | O48: 310 | P48: 325 | Q48: 0.5847050404 | R48: 0.6613843165 | S48: 1.080257684 | T48: 1.180915313 | W48: -1 | X48: -1 | Y48: -1 | Z48: -1 | AC48: -1 | AD48: -1 | AE48: -1 | AF48: -1 | AG48: =IF(#REF!=0,0,IF(#REF!=#REF!,#REF!-#REF!,0)) ->  | AH48: 5000 | AI48: 3250 | AJ48: 975 | AK48: 4 | AL48: 812 | AM48: 4 | AN48: 650 | AO48: 3 | AP48: 487 | AQ48: 2 | AR48: 227 | AS48: 1 | AT48: 97 | AU48: 0
A49: =Source!A49 -> ZYX Signal Limited | B49: =Source!B49 -> DIS | C49: =Source!C49 ->  | D49: =Source!D49 -> Media & Publishing | E49: =Source!E49 -> 79.07 | F49: =Source!F49 -> 203.02 | G49: =Source!G49 -> 196.75 | H49: =Source!H49 -> 195.62 | I49: 149.02 | J49: 168.88 | K49: 0.35 | L49: 0.65 | O49: 310 | P49: 325 | Q49: 0.5847050404 | R49: 0.6613843165 | S49: 1.080257684 | T49: 1.180915313 | W49: -1 | X49: -1 | Y49: -1 | Z49: -1 | AC49: -1 | AD49: -1 | AE49: -1 | AF49: -1 | AG49: =IF(#REF!=0,0,IF(#REF!=#REF!,#REF!-#REF!,0)) ->  | AH49: 5000 | AI49: 3250 | AJ49: 975 | AK49: 4 | AL49: 812 | AM49: 4 | AN49: 650 | AO49: 3 | AP49: 487 | AQ49: 2 | AR49: 227 | AS49: 1 | AT49: 97 | AU49: 0
A50: =Source!A50 -> ZYX Signal Limited | B50: =Source!B50 -> DNN | C50: =Source!C50 ->  | D50: =Source!D50 -> Uranium | E50: =Source!E50 -> 0.19 | F50: =Source!F50 -> 1.805 | G50: =Source!G50 -> 1.04 | H50: =Source!H50 -> 1.055 | I50: 0.91 | J50: 1.13 | L50: 0.05 | M50: 0.78 | N50: 0.88 | O50: 1.5 | P50: 3 | Q50: 0.4218009479 | R50: 1.843601896 | S50: 0.6483516484 | T50: 2.296703297 | W50: -1 | X50: -1 | Y50: -1 | Z50: -1 | AC50: -1 | AD50: -1 | AE50: -1 | AF50: -1 | AG50: =IF(#REF!=0,0,IF(#REF!=#REF!,#REF!-#REF!,0)) ->  | AH50: 5000 | AI50: 250 | AJ50: 75 | AK50: 71 | AL50: 62 | AM50: 58 | AN50: 50 | AO50: 47 | AP50: 37 | AQ50: 35 | AR50: 17 | AS50: 16 | AT50: 7 | AU50: 6
A51: =Source!A51 -> ZYX Core Portfolio | B51: =Source!B51 -> EA | C51: =Source!C51 ->  | D51: =Source!D51 -> Software & IT Services | E51: =Source!E51 -> 85.69 | F51: =Source!F51 -> 150.3 | G51: =Source!G51 -> 131.34 | H51: =Source!H51 -> 130.39 | I51: 121.34 | J51: 132.87 | K51: 0.2 | L51: 0.35 | O51: 215 | P51: 226 | Q51: 0.6488994555 | R51: 0.7332617532 | S51: 0.7718806659 | T51: 0.8625350255 | W51: -1 | X51: -1 | Y51: -1 | Z51: -1 | AC51: -1 | AD51: -1 | AE51: -1 | AF51: -1 | AG51: =IF(#REF!=0,0,IF(#REF!=#REF!,#REF!-#REF!,0)) ->  | AH51: 5000 | AI51: 1750 | AJ51: 525 | AK51: 4 | AL51: 437 | AM51: 3 | AN51: 350 | AO51: 2 | AP51: 262 | AQ51: 2 | AR51: 122 | AS51: 0 | AT51: 52 | AU51: 0
A52: =Source!A52 -> Motley Fool | B52: =Source!B52 -> ESTC | C52: =Source!C52 ->  | D52: =Source!D52 -> Software & IT Services | E52: =Source!E52 -> 39.01 | F52: =Source!F52 -> 176.49 | G52: =Source!G52 -> 118.67 | H52: =Source!H52 -> 116.39 | Q52: -1 | R52: -1 | W52: -1 | X52: -1 | AC52: -1 | AD52: -1 | AG52: =IF(#REF!=0,0,IF(#REF!=#REF!,#REF!-#REF!,0)) ->  | AH52: 5000 | AI52: 0 | AJ52: 0 | AK52: 0 | AL52: 0 | AM52: 0 | AN52: 0 | AO52: 0 | AP52: 0 | AQ52: 0 | AR52: 0 | AS52: 0 | AT52: 0 | AU52: 0
A53: =Source!A53 -> ZYX Signal Limited | B53: =Source!B53 -> EVRG | C53: =Source!C53 ->  | D53: =Source!D53 -> Electrical Utilities & IPPs | E53: =Source!E53 -> 42.0101 | F53: =Source!F53 -> 65.43 | G53: =Source!G53 -> 56.76 | H53: =Source!H53 -> 57.21 | Q53: -1 | R53: -1 | W53: -1 | X53: -1 | AC53: -1 | AD53: -1 | AG53: =IF(#REF!=0,0,IF(#REF!=#REF!,#REF!-#REF!,0)) ->  | AH53: 5000 | AI53: 0 | AJ53: 0 | AK53: 0 | AL53: 0 | AM53: 0 | AN53: 0 | AO53: 0 | AP53: 0 | AQ53: 0 | AR53: 0 | AS53: 0 | AT53: 0 | AU53: 0
A54: =Source!A54 -> ZYX Signal Limited | B54: =Source!B54 -> EXPC | C54: =Source!C54 ->  | D54: =Source!D54 -> Holding Companies | E54: =Source!E54 -> 9.28 | F54: =Source!F54 -> 19.88 | G54: =Source!G54 -> 13.4 | H54: =Source!H54 -> 12.72 | Q54: -1 | R54: -1 | W54: -1 | X54: -1 | AC54: -1 | AD54: -1 | AG54: =IF(#REF!=0,0,IF(#REF!=#REF!,#REF!-#REF!,0)) ->  | AH54: 5000 | AI54: 0 | AJ54: 0 | AK54: 0 | AL54: 0 | AM54: 0 | AN54: 0 | AO54: 0 | AP54: 0 | AQ54: 0 | AR54: 0 | AS54: 0 | AT54: 0 | AU54: 0
A55: =Source!A55 -> ZYX Signal Limited | B55: =Source!B55 -> F | C55: =Source!C55 ->  | D55: =Source!D55 -> Automobiles & Auto Parts | E55: =Source!E55 -> 3.96 | F55: =Source!F55 -> 13.0594 | G55: =Source!G55 -> 12.81 | H55: =Source!H55 -> 12.915 | Q55: -1 | R55: -1 | W55: -1 | X55: -1 | AC55: -1 | AD55: -1 | AG55: =IF(#REF!=0,0,IF(#REF!=#REF!,#REF!-#REF!,0)) ->  | AH55: 5000 | AI55: 0 | AJ55: 0 | AK55: 0 | AL55: 0 | AM55: 0 | AN55: 0 | AO55: 0 | AP55: 0 | AQ55: 0 | AR55: 0 | AS55: 0 | AT55: 0 | AU55: 0
A56: =Source!A56 -> ZYX Core Portfolio | B56: =Source!B56 -> FB | C56: =Source!C56 ->  | D56: =Source!D56 -> Software & IT Services | E56: =Source!E56 -> 137.1006 | F56: =Source!F56 -> 304.67 | G56: =Source!G56 -> 273.88 | H56: =Source!H56 -> 267.26 | I56: Suspended | J56: Suspended | K56: 0.3 | L56: 0.5 | O56: 360 | P56: 385 | Q56: 0.3470029185 | R56: 0.4405447878 | W56: -1 | X56: -1 | AC56: -1 | AD56: -1 | AG56: =IF(#REF!=0,0,IF(#REF!=#REF!,#REF!-#REF!,0)) ->  | AH56: 5000 | AI56: 2500 | AJ56: 750 | AK56: 2 | AL56: 625 | AM56: 2 | AN56: 500 | AO56: 1 | AP56: 375 | AQ56: 1 | AR56: 175 | AS56: 0 | AT56: 75 | AU56: 0
A57: =Source!A57 -> ZYX Electric Cars | B57: =Source!B57 -> FCEL | C57: =Source!C57 ->  | D57: =Source!D57 -> Renewable Energy | E57: =Source!E57 -> 1 | F57: =Source!F57 -> 29.4396 | G57: =Source!G57 -> 18.36 | H57: =Source!H57 -> 17.53 | Q57: -1 | R57: -1 | W57: -1 | X57: -1 | AC57: -1 | AD57: -1 | AG57: =IF(#REF!=0,0,IF(#REF!=#REF!,#REF!-#REF!,0)) ->  | AH57: 5000 | AI57: 0 | AJ57: 0 | AK57: 0 | AL57: 0 | AM57: 0 | AN57: 0 | AO57: 0 | AP57: 0 | AQ57: 0 | AR57: 0 | AS57: 0 | AT57: 0 | AU57: 0
A58: =Source!A58 -> ZYX Core Portfolio | B58: =Source!B58 -> FCX | C58: =Source!C58 ->  | D58: =Source!D58 -> Metals & Mining | E58: =Source!E58 -> 4.82 | F58: =Source!F58 -> 39.1 | G58: =Source!G58 -> 37.47 | H58: =Source!H58 -> 37.1 | I58: 16 | J58: 22.87 | K58: 0.15 | L58: 0.25 | O58: 33 | P58: 37.5 | Q58: -0.1105121294 | R58: 0.01078167116 | S58: 1.0625 | T58: 1.34375 | W58: -1 | X58: -1 | Y58: -1 | Z58: -1 | AC58: -1 | AD58: -1 | AE58: -1 | AF58: -1 | AG58: =IF(#REF!=0,0,IF(#REF!=#REF!,#REF!-#REF!,0)) ->  | AH58: 5000 | AI58: 1250 | AJ58: 375 | AK58: 10 | AL58: 312 | AM58: 8 | AN58: 250 | AO58: 6 | AP58: 187 | AQ58: 5 | AR58: 87 | AS58: 2 | AT58: 37 | AU58: 0
A59: =Source!A59 -> ZYX Core Portfolio | B59: =Source!B59 -> FFXDF | C59: =Source!C59 ->  | D59: =Source!D59 -> Holding Companies | E59: =Source!E59 -> 5.3706 | F59: =Source!F59 -> 13.26 | G59: =Source!G59 -> 12.494 | H59: =Source!H59 -> 12.548 | I59: 7.57 | J59: 9.31 | K59: 0.25 | L59: 0.35 | O59: 18 | P59: 22 | Q59: 0.4344915524 | R59: 0.753267453 | S59: 1.377807133 | T59: 1.906208719 | W59: -1 | X59: -1 | Y59: -1 | Z59: -1 | AC59: -1 | AD59: -1 | AE59: -1 | AF59: -1 | AG59: =IF(#REF!=0,0,IF(#REF!=#REF!,#REF!-#REF!,0)) ->  | AH59: 5000 | AI59: 1750 | AJ59: 525 | AK59: 41 | AL59: 437 | AM59: 34 | AN59: 350 | AO59: 27 | AP59: 262 | AQ59: 20 | AR59: 122 | AS59: 9 | AT59: 52 | AU59: 4
A60: =Source!A60 -> Motley Fool | B60: =Source!B60 -> FSLY | C60: =Source!C60 ->  | D60: =Source!D60 -> Software & IT Services | E60: =Source!E60 -> 10.63 | F60: =Source!F60 -> 136.5 | G60: =Source!G60 -> 75.44 | H60: =Source!H60 -> 73.25 | Q60: -1 | R60: -1 | W60: -1 | X60: -1 | AC60: -1 | AD60: -1 | AG60: =IF(#REF!=0,0,IF(#REF!=#REF!,#REF!-#REF!,0)) ->  | AH60: 5000 | AI60: 0 | AJ60: 0 | AK60: 0 | AL60: 0 | AM60: 0 | AN60: 0 | AO60: 0 | AP60: 0 | AQ60: 0 | AR60: 0 | AS60: 0 | AT60: 0 | AU60: 0
A61: =Source!A61 -> ZYX Core Portfolio | B61: =Source!B61 -> GAN | C61: =Source!C61 ->  | D61: =Source!D61 -> Software & IT Services | E61: =Source!E61 -> 0.65 | F61: =Source!F61 -> 3.35 | G61: =Source!G61 -> 2.9 | H61: =Source!H61 -> 2.85 | I61: 13.56 | J61: 17.67 | K61: 0.2 | L61: 0.35 | O61: 73 | P61: 78 | Q61: 24.61403509 | R61: 26.36842105 | S61: 4.383480826 | T61: 4.752212389 | W61: -1 | X61: -1 | Y61: -1 | Z61: -1 | AC61: -1 | AD61: -1 | AE61: -1 | AF61: -1 | AG61: =IF(#REF!=0,0,IF(#REF!=#REF!,#REF!-#REF!,0)) ->  | AH61: 5000 | AI61: 1750 | AJ61: 525 | AK61: 184 | AL61: 437 | AM61: 153 | AN61: 350 | AO61: 122 | AP61: 262 | AQ61: 91 | AR61: 122 | AS61: 42 | AT61: 52 | AU61: 18
A62: =Source!A62 -> ZYX Signal Limited | B62: =Source!B62 -> GBT | C62: =Source!C62 ->  | D62: =Source!D62 -> Biotechnology & Medical Research | E62: =Source!E62 -> 36.49 | F62: =Source!F62 -> 83.69 | G62: =Source!G62 -> 42.9 | H62: =Source!H62 -> 43.12 | Q62: -1 | R62: -1 | W62: -1 | X62: -1 | AC62: -1 | AD62: -1 | AG62: =IF(#REF!=0,0,IF(#REF!=#REF!,#REF!-#REF!,0)) ->  | AH62: 5000 | AI62: 0 | AJ62: 0 | AK62: 0 | AL62: 0 | AM62: 0 | AN62: 0 | AO62: 0 | AP62: 0 | AQ62: 0 | AR62: 0 | AS62: 0 | AT62: 0 | AU62: 0
A63: =Source!A63 -> ZYX Electric Cars | B63: =Source!B63 -> GEVO | C63: =Source!C63 ->  | D63: =Source!D63 -> Renewable Energy | E63: =Source!E63 -> 0.46 | F63: =Source!F63 -> 15.57 | G63: =Source!G63 -> 9.65 | H63: =Source!H63 -> 9.52 | Q63: -1 | R63: -1 | W63: -1 | X63: -1 | AC63: -1 | AD63: -1 | AG63: =IF(#REF!=0,0,IF(#REF!=#REF!,#REF!-#REF!,0)) ->  | AH63: 5000 | AI63: 0 | AJ63: 0 | AK63: 0 | AL63: 0 | AM63: 0 | AN63: 0 | AO63: 0 | AP63: 0 | AQ63: 0 | AR63: 0 | AS63: 0 | AT63: 0 | AU63: 0
A64: =Source!A64 -> ZYX Signal Limited | B64: =Source!B64 -> GIK | C64: =Source!C64 ->  | D64: =Source!D64 -> Holding Companies | E64: =Source!E64 -> 9.794 | F64: =Source!F64 -> 17.36 | G64: =Source!G64 -> 11.57 | H64: =Source!H64 -> 12.28 | I64: 11.28 | J64: 13.66 | L64: 0.2 | M64: 9.43 | N64: 10.38 | O64: 15.43 | P64: 17.36 | Q64: 0.256514658 | R64: 0.4136807818 | S64: 0.3679078014 | T64: 0.5390070922 | U64: 27 | V64: 32 | W64: 1.198697068 | X64: 1.605863192 | Y64: 1.393617021 | Z64: 1.836879433 | AC64: -1 | AD64: -1 | AE64: -1 | AF64: -1 | AG64: =IF(#REF!=0,0,IF(#REF!=#REF!,#REF!-#REF!,0)) ->  | AH64: 5000 | AI64: 1000 | AJ64: 300 | AK64: 24 | AL64: 250 | AM64: 20 | AN64: 200 | AO64: 16 | AP64: 150 | AQ64: 12 | AR64: 70 | AS64: 5 | AT64: 30 | AU64: 2
A65: =Source!A65 -> ZYX Core Portfolio | B65: =Source!B65 -> GILD | C65: =Source!C65 ->  | D65: =Source!D65 -> Biotechnology & Medical Research | E65: =Source!E65 -> 56.56 | F65: =Source!F65 -> 85.97 | G65: =Source!G65 -> 62.38 | H65: =Source!H65 -> 62.26 | I65: 54 | J65: 60.81 | K65: 0.25 | L65: 0.4 | O65: 110 | P65: 130 | Q65: 0.7667844523 | R65: 1.088017989 | S65: 1.037037037 | T65: 1.407407407 | W65: -1 | X65: -1 | Y65: -1 | Z65: -1 | AC65: -1 | AD65: -1 | AE65: -1 | AF65: -1 | AG65: =IF(#REF!=0,0,IF(#REF!=#REF!,#REF!-#REF!,0)) ->  | AH65: 5000 | AI65: 2000 | AJ65: 600 | AK65: 9 | AL65: 500 | AM65: 8 | AN65: 400 | AO65: 6 | AP65: 300 | AQ65: 4 | AR65: 140 | AS65: 2 | AT65: 60 | AU65: 0
A66: =Source!A66 -> ZYX Signal Limited | B66: =Source!B66 -> GLUU | C66: =Source!C66 ->  | D66: =Source!D66 -> Software & IT Services | E66: =Source!E66 -> 3.98 | F66: =Source!F66 -> 12.95 | G66: =Source!G66 -> 12.47 | H66: =Source!H66 -> 12.435 | Q66: -1 | R66: -1 | W66: -1 | X66: -1 | AC66: -1 | AD66: -1 | AG66: =IF(#REF!=0,0,IF(#REF!=#REF!,#REF!-#REF!,0)) ->  | AH66: 5000 | AI66: 0 | AJ66: 0 | AK66: 0 | AL66: 0 | AM66: 0 | AN66: 0 | AO66: 0 | AP66: 0 | AQ66: 0 | AR66: 0 | AS66: 0 | AT66: 0 | AU66: 0
A67: =Source!A67 -> ZYX Core Portfolio | B67: =Source!B67 -> GOOG | C67: =Source!C67 ->  | D67: =Source!D67 -> Software & IT Services | E67: =Source!E67 -> 1013.5361 | F67: =Source!F67 -> 2152.68 | G67: =Source!G67 -> 2114.77 | H67: =Source!H67 -> 2075.83 | I67: 1502 | J67: 1631.78 | K67: 0.2 | L67: 0.3 | O67: 2340 | P67: 2420 | Q67: 0.1272599394 | R67: 0.1657987407 | S67: 0.5579227696 | T67: 0.6111850866 | W67: -1 | X67: -1 | Y67: -1 | Z67: -1 | AC67: -1 | AD67: -1 | AE67: -1 | AF67: -1 | AG67: =IF(#REF!=0,0,IF(#REF!=#REF!,#REF!-#REF!,0)) ->  | AH67: 5000 | AI67: 1500 | AJ67: 450 | AK67: 0 | AL67: 375 | AM67: 0 | AN67: 300 | AO67: 0 | AP67: 225 | AQ67: 0 | AR67: 105 | AS67: 0 | AT67: 45 | AU67: 0
A68: =Source!A68 -> ZYX Pot | B68: =Source!B68 -> GRWG | C68: =Source!C68 ->  | D68: =Source!D68 -> Chemicals | E68: =Source!E68 -> 2.62 | F68: =Source!F68 -> 67.75 | G68: =Source!G68 -> 48.74 | H68: =Source!H68 -> 46.88 | I68: 18.31 | J68: 24.56 | K68: 0.05 | L68: 0.15 | M68: 14 | N68: 16.43 | O68: 78 | P68: 83 | Q68: 0.6638225256 | R68: 0.7704778157 | S68: 3.259967231 | T68: 3.533042054 | W68: -1 | X68: -1 | Y68: -1 | Z68: -1 | AC68: -1 | AD68: -1 | AE68: -1 | AF68: -1 | AG68: =IF(#REF!=0,0,IF(#REF!=#REF!,#REF!-#REF!,0)) ->  | AH68: 5000 | AI68: 750 | AJ68: 225 | AK68: 4 | AL68: 187 | AM68: 3 | AN68: 150 | AO68: 3 | AP68: 112 | AQ68: 2 | AR68: 52 | AS68: 1 | AT68: 22 | AU68: 0
A69: =Source!A69 -> ZYX Pot | B69: =Source!B69 -> GTBIF | C69: =Source!C69 ->  | D69: =Source!D69 -> Pharmaceuticals | E69: =Source!E69 -> 3.6934 | F69: =Source!F69 -> 39.11 | G69: =Source!G69 -> 32.75 | H69: =Source!H69 -> 31.5401 | I69: 22.37 | J69: 28.78 | K69: 0.2 | L69: 0.3 | O69: 78 | P69: 87 | Q69: =SUM(O69-$H69)/$H69 -> 1.473042254 | R69: 1.758393283 | S69: =SUM(O69-$I69)/$I69 -> 2.486812696 | T69: 2.889137237 | W69: =SUM(U69-$H69)/$H69 -> -1 | X69: -1 | Y69: =SUM(U69-$I69)/$I69 -> -1 | Z69: -1 | AC69: =SUM(AA69-$H69)/$H69 -> -1 | AD69: -1 | AE69: =SUM(AA69-$I69)/$I69 -> -1 | AF69: -1 | AG69: =IF(#REF!=0,0,IF(#REF!=#REF!,#REF!-#REF!,0)) ->  | AH69: 5000 | AI69: =ROUNDDOWN(SUM($L69*$AH69),0) -> 1500 | AJ69: =ROUNDDOWN(SUM($AI69*AJ$3),0) -> 450 | AK69: =ROUNDDOWN(SUM(AJ69/$H69),0) -> 14 | AL69: =ROUNDDOWN(SUM($AI69*AL$3),0) -> 375 | AM69: =ROUNDDOWN(SUM(AL69/$H69),0) -> 11 | AN69: =ROUNDDOWN(SUM($AI69*AN$3),0) -> 300 | AO69: =ROUNDDOWN(SUM(AN69/$H69),0) -> 9 | AP69: =ROUNDDOWN(SUM($AI69*AP$3),0) -> 225 | AQ69: =ROUNDDOWN(SUM(AP69/$H69),0) -> 7 | AR69: =ROUNDDOWN(SUM($AI69*AR$3),0) -> 105 | AS69: =ROUNDDOWN(SUM(AR69/$H69),0) -> 3 | AT69: =ROUNDDOWN(SUM($AI69*AT$3),0) -> 45 | AU69: =ROUNDDOWN(SUM(AT69/$H69),0) -> 1
A70: =Source!A70 -> ZYX Pot | B70: =Source!B70 -> GWPH | C70: =Source!C70 ->  | D70: =Source!D70 -> Biotechnology & Medical Research | E70: =Source!E70 -> 67.98 | F70: =Source!F70 -> 217.5 | G70: =Source!G70 -> 215.01 | H70: =Source!H70 -> 215.16 | I70: Suspended | J70: Suspended | K70: 0.05 | L70: 0.15 | M70: 180 | N70: 183 | O70: 220 | P70: 240 | Q70: 0.02249488753 | R70: 0.1154489682 | W70: -1 | X70: -1 | AC70: -1 | AD70: -1 | AG70: =IF(#REF!=0,0,IF(#REF!=#REF!,#REF!-#REF!,0)) ->  | AH70: =$AH$5 -> 5000 | AI70: 750 | AJ70: 225 | AK70: 1 | AL70: 187 | AM70: 0 | AN70: 150 | AO70: 0 | AP70: 112 | AQ70: 0 | AR70: 52 | AS70: 0 | AT70: 22 | AU70: 0
A71: =Source!A71 -> ZYX Core Portfolio | B71: =Source!B71 -> HDGE | C71: =Source!C71 ->  | D71: =Source!D71 ->  | E71: =Source!E71 -> 24.83 | F71: =Source!F71 -> 79.5 | G71: =Source!G71 -> 24.84 | H71: =Source!H71 -> 24.971 | I71: 2.4 | J71: 3.26 | K71: Hedge | L71: Hedge | O71: Hedge | P71: Hedge | W71: -1 | X71: -1 | Y71: -1 | Z71: -1 | AC71: -1 | AD71: -1 | AE71: -1 | AF71: -1 | AG71: =IF(#REF!=0,0,IF(#REF!=#REF!,#REF!-#REF!,0)) ->  | AH71: 5000
A72: =Source!A72 -> ZYX Signal Limited | B72: =Source!B72 -> HMPT | C72: =Source!C72 -> HMPT | D72: =Source!D72 ->  | E72: =Source!E72 ->  | F72: =Source!F72 ->  | G72: =Source!G72 ->  | H72: =Source!H72 -> 11.94 | I72: 8.5 | J72: 10.5 | K72: 0.2 | L72: 0.35 | M72: 7.35 | N72: 8.18 | O72: 12.43 | P72: 12.93 | Q72: 0.04103852596 | R72: 0.08291457286 | S72: 0.4623529412 | T72: 0.5211764706 | U72: 14.83 | V72: 17.33 | W72: 0.2420435511 | X72: 0.4514237856 | Y72: 0.7447058824 | Z72: 1.038823529 | AC72: -1 | AD72: -1 | AE72: -1 | AF72: -1 | AG72: =IF(#REF!=0,0,IF(#REF!=#REF!,#REF!-#REF!,0)) ->  | AH72: 5000 | AI72: 1750 | AJ72: 525 | AK72: 43 | AL72: 437 | AM72: 36 | AN72: 350 | AO72: 29 | AP72: 262 | AQ72: 21 | AR72: 122 | AS72: 10 | AT72: 52 | AU72: 4
A73: =Source!A73 -> ZYX Core Portfolio | B73: =Source!B73 -> HOLX | C73: =Source!C73 ->  | D73: =Source!D73 -> Healthcare Equipment & Supplies | E73: =Source!E73 -> 26.49 | F73: =Source!F73 -> 85 | G73: =Source!G73 -> 71.03 | H73: =Source!H73 -> 70.24 | I73: Suspended | J73: Suspended | K73: 0.3 | L73: 0.5 | O73: 121 | P73: 134 | Q73: 0.7226651481 | R73: 0.9077448747 | W73: -1 | X73: -1 | AC73: -1 | AD73: -1 | AG73: =IF(#REF!=0,0,IF(#REF!=#REF!,#REF!-#REF!,0)) ->  | AH73: 5000 | AI73: 2500 | AJ73: 750 | AK73: 10 | AL73: 625 | AM73: 8 | AN73: 500 | AO73: 7 | AP73: 375 | AQ73: 5 | AR73: 175 | AS73: 2 | AT73: 75 | AU73: 1
A74: =Source!A74 -> ZYX Pot | B74: =Source!B74 -> HYFM | C74: =Source!C74 ->  | D74: =Source!D74 -> Machinery, Equipment & Components | E74: =Source!E74 -> 41.59 | F74: =Source!F74 -> 95.48 | G74: =Source!G74 -> 58.42 | H74: =Source!H74 -> 56.89 | I74: 34 | J74: 42.88 | K74: 0.05 | L74: 0.15 | M74: 26 | N74: 28.63 | O74: 112 | P74: 122 | Q74: 0.9687115486 | R74: 1.144489365 | S74: 2.294117647 | T74: 2.588235294 | W74: -1 | X74: -1 | Y74: -1 | Z74: -1 | AC74: -1 | AD74: -1 | AE74: -1 | AF74: -1 | AG74: =IF(#REF!=0,0,IF(#REF!=#REF!,#REF!-#REF!,0)) ->  | AH74: 5000 | AI74: 750 | AJ74: 225 | AK74: 3 | AL74: 187 | AM74: 3 | AN74: 150 | AO74: 2 | AP74: 112 | AQ74: 1 | AR74: 52 | AS74: 0 | AT74: 22 | AU74: 0
A75: =Source!A75 -> ZYX Signal Limited | B75: =Source!B75 -> JD | C75: =Source!C75 ->  | D75: =Source!D75 -> Diversified Retail | E75: =Source!E75 -> 32.7 | F75: =Source!F75 -> 108.29 | G75: =Source!G75 -> 90.01 | H75: =Source!H75 -> 84.2026 | Q75: -1 | R75: -1 | W75: -1 | X75: -1 | AC75: -1 | AD75: -1 | AG75: =IF(#REF!=0,0,IF(#REF!=#REF!,#REF!-#REF!,0)) ->  | AH75: 5000 | AI75: 0 | AJ75: 0 | AK75: 0 | AL75: 0 | AM75: 0 | AN75: 0 | AO75: 0 | AP75: 0 | AQ75: 0 | AR75: 0 | AS75: 0 | AT75: 0 | AU75: 0
A76: =Source!A76 -> ZYX Core Portfolio | B76: =Source!B76 -> JPM | C76: =Source!C76 ->  | D76: =Source!D76 -> Banking Services | E76: =Source!E76 -> 76.91 | F76: =Source!F76 -> 157.63 | G76: =Source!G76 -> 154.32 | H76: =Source!H76 -> 156.6 | I76: 104 | J76: 113.87 | K76: 0.2 | L76: 0.4 | O76: 185 | P76: 215 | Q76: 0.1813537676 | R76: 0.3729246488 | S76: 0.7788461538 | T76: 1.067307692 | W76: -1 | X76: -1 | Y76: -1 | Z76: -1 | AC76: -1 | AD76: -1 | AE76: -1 | AF76: -1 | AG76: =IF(#REF!=0,0,IF(#REF!=#REF!,#REF!-#REF!,0)) ->  | AH76: 5000 | AI76: 2000 | AJ76: 600 | AK76: 3 | AL76: 500 | AM76: 3 | AN76: 400 | AO76: 2 | AP76: 300 | AQ76: 1 | AR76: 140 | AS76: 0 | AT76: 60 | AU76: 0
A77: =Source!A77 -> ZYX Core Portfolio | B77: =Source!B77 -> KBH | C77: =Source!C77 ->  | D77: =Source!D77 -> Homebuilding & Construction Supplies | E77: =Source!E77 -> 9.82 | F77: =Source!F77 -> 45.59 | G77: =Source!G77 -> 44.43 | H77: =Source!H77 -> 43.22 | I77: 30 | J77: 34.66 | K77: 0.3 | L77: 0.4 | O77: 56 | P77: 61 | Q77: 0.2956964368 | R77: 0.4113836187 | S77: 0.8666666667 | T77: 1.033333333 | W77: -1 | X77: -1 | Y77: -1 | Z77: -1 | AC77: -1 | AD77: -1 | AE77: -1 | AF77: -1 | AG77: =IF(#REF!=0,0,IF(#REF!=#REF!,#REF!-#REF!,0)) ->  | AH77: 5000 | AI77: 2000 | AJ77: 600 | AK77: 13 | AL77: 500 | AM77: 11 | AN77: 400 | AO77: 9 | AP77: 300 | AQ77: 6 | AR77: 140 | AS77: 3 | AT77: 60 | AU77: 1
A78: =Source!A78 -> ZYX Core Portfolio | B78: =Source!B78 -> KKR | C78: =Source!C78 ->  | D78: =Source!D78 -> Investment Banking & Investment Services | E78: =Source!E78 -> 15.55 | F78: =Source!F78 -> 49.29 | G78: =Source!G78 -> 48.21 | H78: =Source!H78 -> 47.92 | I78: 32.31 | J78: 35.76 | K78: 0.3 | L78: 0.35 | O78: 58 | P78: 63 | Q78: 0.2103505843 | R78: 0.3146911519 | S78: 0.7951098731 | T78: 0.9498607242 | W78: -1 | X78: -1 | Y78: -1 | Z78: -1 | AC78: -1 | AD78: -1 | AE78: -1 | AF78: -1 | AG78: =IF(#REF!=0,0,IF(#REF!=#REF!,#REF!-#REF!,0)) ->  | AH78: 5000 | AI78: 1750 | AJ78: 525 | AK78: 10 | AL78: 437 | AM78: 9 | AN78: 350 | AO78: 7 | AP78: 262 | AQ78: 5 | AR78: 122 | AS78: 2 | AT78: 52 | AU78: 1
A79: =Source!A79 -> ZYX Signal Limited | B79: =Source!B79 -> KSU | C79: =Source!C79 ->  | D79: =Source!D79 -> Freight & Logistics Services | E79: =Source!E79 -> 92.86 | F79: =Source!F79 -> 223.59 | G79: =Source!G79 -> 214.86 | H79: =Source!H79 -> 215.19 | Q79: -1 | R79: -1 | W79: -1 | X79: -1 | AC79: -1 | AD79: -1 | AG79: =IF(#REF!=0,0,IF(#REF!=#REF!,#REF!-#REF!,0)) ->  | AH79: 5000 | AI79: 0 | AJ79: 0 | AK79: 0 | AL79: 0 | AM79: 0 | AN79: 0 | AO79: 0 | AP79: 0 | AQ79: 0 | AR79: 0 | AS79: 0 | AT79: 0 | AU79: 0
A80: =Source!A80 -> ZYX Electric Cars | B80: =Source!B80 -> LAC | C80: =Source!C80 ->  | D80: =Source!D80 -> Metals & Mining | E80: =Source!E80 -> 1.92 | F80: =Source!F80 -> 28.75 | G80: =Source!G80 -> 17.37 | H80: =Source!H80 -> 17.02 | Q80: -1 | R80: -1 | W80: -1 | X80: -1 | AC80: -1 | AD80: -1 | AG80: =IF(#REF!=0,0,IF(#REF!=#REF!,#REF!-#REF!,0)) ->  | AH80: 5000 | AI80: 0 | AJ80: 0 | AK80: 0 | AL80: 0 | AM80: 0 | AN80: 0 | AO80: 0 | AP80: 0 | AQ80: 0 | AR80: 0 | AS80: 0 | AT80: 0 | AU80: 0
A81: =Source!A81 -> ZYX Signal Limited | B81: =Source!B81 -> LMNX | C81: =Source!C81 ->  | D81: =Source!D81 -> Healthcare Equipment & Supplies | E81: =Source!E81 -> 20.61 | F81: =Source!F81 -> 41.69 | G81: =Source!G81 -> 32.45 | H81: =Source!H81 -> 32.05 | I81: 25.31 | J81: 32.52 | L81: 0.5 | M81: 19.18 | N81: 19.78 | O81: 38 | P81: 42 | Q81: 0.1856474259 | R81: 0.3104524181 | S81: 0.5013828526 | T81: 0.6594231529 | W81: -1 | X81: -1 | Y81: -1 | Z81: -1 | AC81: -1 | AD81: -1 | AE81: -1 | AF81: -1 | AG81: =IF(#REF!=0,0,IF(#REF!=#REF!,#REF!-#REF!,0)) ->  | AH81: 5000 | AI81: 2500 | AJ81: 750 | AK81: 23 | AL81: 625 | AM81: 19 | AN81: 500 | AO81: 15 | AP81: 375 | AQ81: 11 | AR81: 175 | AS81: 5 | AT81: 75 | AU81: 2
A82: =Source!A82 -> ZYX Core Portfolio | B82: =Source!B82 -> LOW | C82: =Source!C82 ->  | D82: =Source!D82 -> Specialty Retailers | E82: =Source!E82 -> 60 | F82: =Source!F82 -> 180.67 | G82: =Source!G82 -> 170.75 | H82: =Source!H82 -> 171.22 | I82: 138.62 | J82: 157.86 | K82: 0.25 | L82: 0.35 | O82: 210 | P82: 220 | Q82: 0.2264922322 | R82: 0.2848966242 | S82: 0.5149329101 | T82: 0.5870725725 | W82: -1 | X82: -1 | Y82: -1 | Z82: -1 | AC82: -1 | AD82: -1 | AE82: -1 | AF82: -1 | AG82: =IF(#REF!=0,0,IF(#REF!=#REF!,#REF!-#REF!,0)) ->  | AH82: 5000 | AI82: 1750 | AJ82: 525 | AK82: 3 | AL82: 437 | AM82: 2 | AN82: 350 | AO82: 2 | AP82: 262 | AQ82: 1 | AR82: 122 | AS82: 0 | AT82: 52 | AU82: 0
A83: =Source!A83 -> ZYX Core Portfolio | B83: =Source!B83 -> LTHM | C83: =Source!C83 ->  | D83: =Source!D83 -> Chemicals | E83: =Source!E83 -> 3.95 | F83: =Source!F83 -> 23.9899 | G83: =Source!G83 -> 19.17 | H83: =Source!H83 -> 18.97 | I83: 13.31 | J83: 16.87 | K83: 0.15 | L83: 0.3 | O83: 33 | P83: 36 | Q83: 0.7395888245 | R83: 0.897733263 | S83: 1.479338843 | T83: 1.704733283 | W83: -1 | X83: -1 | Y83: -1 | Z83: -1 | AC83: -1 | AD83: -1 | AE83: -1 | AF83: -1 | AG83: =IF(#REF!=0,0,IF(#REF!=#REF!,#REF!-#REF!,0)) ->  | AH83: 5000 | AI83: 1500 | AJ83: 450 | AK83: 23 | AL83: 375 | AM83: 19 | AN83: 300 | AO83: 15 | AP83: 225 | AQ83: 11 | AR83: 105 | AS83: 5 | AT83: 45 | AU83: 2
A84: =Source!A84 -> ZYX Space | B84: =Source!B84 -> MAXR | C84: =Source!C84 ->  | D84: =Source!D84 -> Communications & Networking | E84: =Source!E84 -> 7.18 | F84: =Source!F84 -> 58.75 | G84: =Source!G84 -> 47 | H84: =Source!H84 -> 46.94 | I84: 36.26 | J84: 44.57 | K84: 0.05 | L84: 0.15 | M84: 29 | N84: 31.73 | O84: 135 | Q84: 1.87601193 | R84: -1 | S84: 2.723110866 | T84: -1 | W84: -1 | X84: -1 | Y84: -1 | Z84: -1 | AC84: -1 | AD84: -1 | AE84: -1 | AF84: -1 | AG84: =IF(#REF!=0,0,IF(#REF!=#REF!,#REF!-#REF!,0)) ->  | AH84: 5000 | AI84: 750 | AJ84: 225 | AK84: 4 | AL84: 187 | AM84: 3 | AN84: 150 | AO84: 3 | AP84: 112 | AQ84: 2 | AR84: 52 | AS84: 1 | AT84: 22 | AU84: 0
A85: =Source!A85 -> ZYX Signal Limited | B85: =Source!B85 -> MDB | C85: =Source!C85 ->  | D85: =Source!D85 -> Software & IT Services | E85: =Source!E85 -> 93.81 | F85: =Source!F85 -> 428.965 | G85: =Source!G85 -> 327.26 | H85: =Source!H85 -> 319.33 | Q85: -1 | R85: -1 | W85: -1 | X85: -1 | AC85: -1 | AD85: -1 | AG85: =IF(#REF!=0,0,IF(#REF!=#REF!,#REF!-#REF!,0)) ->  | AH85: 5000 | AI85: 0 | AJ85: 0 | AK85: 0 | AL85: 0 | AM85: 0 | AN85: 0 | AO85: 0 | AP85: 0 | AQ85: 0 | AR85: 0 | AS85: 0 | AT85: 0 | AU85: 0
A86: =Source!A86 -> ZYX Signal Limited | B86: =Source!B86 -> MRVI | C86: =Source!C86 ->  | D86: =Source!D86 -> Biotechnology & Medical Research | E86: =Source!E86 -> 23.62 | F86: =Source!F86 -> 40.24 | G86: =Source!G86 -> 36.52 | H86: =Source!H86 -> 36.35 | I86: 33 | J86: 38.47 | L86: 0.3 | M86: 24 | N86: 26.43 | O86: 48 | P86: 52 | Q86: 0.3204951857 | R86: 0.4305364512 | S86: 0.4545454545 | T86: 0.5757575758 | U86: 73 | V86: 78 | W86: 1.008253095 | X86: 1.145804677 | Y86: 1.212121212 | Z86: 1.363636364 | AC86: -1 | AD86: -1 | AE86: -1 | AF86: -1 | AG86: =IF(#REF!=0,0,IF(#REF!=#REF!,#REF!-#REF!,0)) ->  | AH86: 5000 | AI86: 1500 | AJ86: 450 | AK86: 12 | AL86: 375 | AM86: 10 | AN86: 300 | AO86: 8 | AP86: 225 | AQ86: 6 | AR86: 105 | AS86: 2 | AT86: 45 | AU86: 1
A87: =Source!A87 -> ZYX Trade Around | B87: =Source!B87 -> MRVL | C87: =Source!C87 ->  | D87: =Source!D87 -> Semiconductors & Semiconductor Equipment | E87: =Source!E87 -> 16.45 | F87: =Source!F87 -> 55.7 | G87: =Source!G87 -> 46.3 | H87: =Source!H87 -> 46.335 | I87: 39.31 | J87: 43.56 | L87: 0.35 | M87: 33.31 | N87: 34.13 | O87: 49 | P87: 54.38 | Q87: 0.05751591669 | R87: 0.173626848 | S87: 0.2465021623 | T87: 0.383363012 | W87: -1 | X87: -1 | Y87: -1 | Z87: -1 | AC87: -1 | AD87: -1 | AE87: -1 | AF87: -1 | AG87: =IF(#REF!=0,0,IF(#REF!=#REF!,#REF!-#REF!,0)) ->  | AH87: 5000 | AI87: 1750 | AJ87: 525 | AK87: 11 | AL87: 437 | AM87: 9 | AN87: 350 | AO87: 7 | AP87: 262 | AQ87: 5 | AR87: 122 | AS87: 2 | AT87: 52 | AU87: 1
A88: =Source!A88 -> ZYX Core Portfolio | B88: =Source!B88 -> MSFT | C88: =Source!C88 ->  | D88: =Source!D88 -> Software & IT Services | E88: =Source!E88 -> 132.52 | F88: =Source!F88 -> 246.13 | G88: =Source!G88 -> 237.13 | H88: =Source!H88 -> 235.25 | I88: 181.53 | J88: 202.84 | K88: 0.2 | L88: 0.25 | O88: 285 | P88: 315 | Q88: 0.211477152 | R88: 0.3390010627 | S88: 0.5699884317 | T88: 0.7352503718 | W88: -1 | X88: -1 | Y88: -1 | Z88: -1 | AC88: -1 | AD88: -1 | AE88: -1 | AF88: -1 | AG88: =IF(#REF!=0,0,IF(#REF!=#REF!,#REF!-#REF!,0)) ->  | AH88: 5000 | AI88: 1250 | AJ88: 375 | AK88: 1 | AL88: 312 | AM88: 1 | AN88: 250 | AO88: 1 | AP88: 187 | AQ88: 0 | AR88: 87 | AS88: 0 | AT88: 37 | AU88: 0
A89: =Source!A89 -> ZYX Signal Limited | B89: =Source!B89 -> MU | C89: =Source!C89 ->  | D89: =Source!D89 -> Semiconductors & Semiconductor Equipment | E89: =Source!E89 -> 31.13 | F89: =Source!F89 -> 95.75 | G89: =Source!G89 -> 89.31 | H89: =Source!H89 -> 88.13 | Q89: -1 | R89: -1 | W89: -1 | X89: -1 | AC89: -1 | AD89: -1 | AG89: =IF(#REF!=0,0,IF(#REF!=#REF!,#REF!-#REF!,0)) ->  | AH89: 5000 | AI89: 0 | AJ89: 0 | AK89: 0 | AL89: 0 | AM89: 0 | AN89: 0 | AO89: 0 | AP89: 0 | AQ89: 0 | AR89: 0 | AS89: 0 | AT89: 0 | AU89: 0
A90: =Source!A90 -> ZYX Pot | B90: =Source!B90 -> NBEV | C90: =Source!C90 ->  | D90: =Source!D90 -> Beverages | E90: =Source!E90 -> 0.981 | F90: =Source!F90 -> 4.55 | G90: =Source!G90 -> 2.96 | H90: =Source!H90 -> 2.93 | I90: 1.6 | J90: 1.81 | K90: 0.15 | L90: 0.35 | O90: 13 | P90: 15 | Q90: 3.436860068 | R90: 4.119453925 | S90: 7.125 | T90: 8.375 | W90: -1 | X90: -1 | Y90: -1 | Z90: -1 | AC90: -1 | AD90: -1 | AE90: -1 | AF90: -1 | AG90: =IF(#REF!=0,0,IF(#REF!=#REF!,#REF!-#REF!,0)) ->  | AH90: 5000 | AI90: 1750 | AJ90: 525 | AK90: 179 | AL90: 437 | AM90: 149 | AN90: 350 | AO90: 119 | AP90: 262 | AQ90: 89 | AR90: 122 | AS90: 41 | AT90: 52 | AU90: 17
A91: =Source!A91 -> ZYX Core Portfolio | B91: =Source!B91 -> NEM | C91: =Source!C91 ->  | D91: =Source!D91 -> Metals & Mining | E91: =Source!E91 -> 33 | F91: =Source!F91 -> 72.22 | G91: =Source!G91 -> 58.45 | H91: =Source!H91 -> 58.36 | I91: 57 | J91: 64.56 | K91: 0.3 | L91: 0.5 | O91: 135 | P91: 155 | Q91: 1.313228239 | R91: 1.655928718 | S91: 1.368421053 | T91: 1.719298246 | W91: -1 | X91: -1 | Y91: -1 | Z91: -1 | AC91: -1 | AD91: -1 | AE91: -1 | AF91: -1 | AG91: =IF(#REF!=0,0,IF(#REF!=#REF!,#REF!-#REF!,0)) ->  | AH91: 5000 | AI91: 2500 | AJ91: 750 | AK91: 12 | AL91: 625 | AM91: 10 | AN91: 500 | AO91: 8 | AP91: 375 | AQ91: 6 | AR91: 175 | AS91: 2 | AT91: 75 | AU91: 1
A92: =Source!A92 -> ZYX Electric Cars | B92: =Source!B92 -> NGAC | C92: =Source!C92 ->  | D92: =Source!D92 -> Holding Companies | E92: =Source!E92 -> 9.7 | F92: =Source!F92 -> 16 | G92: =Source!G92 -> 10.62 | H92: =Source!H92 -> 10.525 | Q92: -1 | R92: -1 | W92: -1 | X92: -1 | AC92: -1 | AD92: -1 | AG92: =IF(#REF!=0,0,IF(#REF!=#REF!,#REF!-#REF!,0)) ->  | AH92: 5000 | AI92: 0 | AJ92: 0 | AK92: 0 | AL92: 0 | AM92: 0 | AN92: 0 | AO92: 0 | AP92: 0 | AQ92: 0 | AR92: 0 | AS92: 0 | AT92: 0 | AU92: 0
A93: =Source!A93 -> ZYX Core Portfolio | B93: =Source!B93 -> NMR | C93: =Source!C93 ->  | D93: =Source!D93 -> Investment Banking & Investment Services | E93: =Source!E93 -> 3.55 | F93: =Source!F93 -> 6.36 | G93: =Source!G93 -> 6.22 | H93: =Source!H93 -> 6.22 | I93: 4.14 | J93: 5.18 | K93: 0.1 | L93: 0.2 | O93: 8.6 | P93: 10.11 | Q93: 0.3826366559 | R93: 0.6254019293 | S93: 1.077294686 | T93: 1.442028986 | W93: -1 | X93: -1 | Y93: -1 | Z93: -1 | AC93: -1 | AD93: -1 | AE93: -1 | AF93: -1 | AG93: =IF(#REF!=0,0,IF(#REF!=#REF!,#REF!-#REF!,0)) ->  | AH93: 5000 | AI93: 1000 | AJ93: 300 | AK93: 48 | AL93: 250 | AM93: 40 | AN93: 200 | AO93: 32 | AP93: 150 | AQ93: 24 | AR93: 70 | AS93: 11 | AT93: 30 | AU93: 4
A94: =Source!A94 -> ZYX Space | B94: =Source!B94 -> NPA | C94: =Source!C94 ->  | D94: =Source!D94 -> Holding Companies | E94: =Source!E94 -> 9.5 | F94: =Source!F94 -> 25.37 | G94: =Source!G94 -> 13.3 | H94: =Source!H94 -> 12.9399 | I94: 12.56 | J94: 14.31 | K94: 0.05 | L94: 0.1 | M94: 8 | N94: 8.73 | O94: 110 | Q94: 7.500838492 | R94: -1 | S94: 7.757961783 | T94: -1 | W94: -1 | X94: -1 | Y94: -1 | Z94: -1 | AC94: -1 | AD94: -1 | AE94: -1 | AF94: -1 | AG94: =IF(#REF!=0,0,IF(#REF!=#REF!,#REF!-#REF!,0)) ->  | AH94: 5000 | AI94: 500 | AJ94: 150 | AK94: 11 | AL94: 125 | AM94: 9 | AN94: 100 | AO94: 7 | AP94: 75 | AQ94: 5 | AR94: 35 | AS94: 2 | AT94: 15 | AU94: 1
A95: =Source!A95 -> ZYX Core Portfolio | B95: =Source!B95 -> NXPI | C95: =Source!C95 ->  | D95: =Source!D95 -> Semiconductors & Semiconductor Equipment | E95: =Source!E95 -> 58.41 | F95: =Source!F95 -> 200.19 | G95: =Source!G95 -> 187.9375 | H95: =Source!H95 -> 185.22 | I95: 125.31 | J95: 141.56 | K95: 0.25 | L95: 0.35 | O95: 235 | P95: 255 | Q95: 0.2687614728 | R95: 0.3767411727 | S95: 0.8753491341 | T95: 1.034953316 | W95: -1 | X95: -1 | Y95: -1 | Z95: -1 | AC95: -1 | AD95: -1 | AE95: -1 | AF95: -1 | AG95: =IF(#REF!=0,0,IF(#REF!=#REF!,#REF!-#REF!,0)) ->  | AH95: 5000 | AI95: 1750 | AJ95: 525 | AK95: 2 | AL95: 437 | AM95: 2 | AN95: 350 | AO95: 1 | AP95: 262 | AQ95: 1 | AR95: 122 | AS95: 0 | AT95: 52 | AU95: 0
A96: =Source!A96 -> ZYX Space | B96: =Source!B96 -> ORBC | C96: =Source!C96 ->  | D96: =Source!D96 -> Telecommunications Services | E96: =Source!E96 -> 1.24 | F96: =Source!F96 -> 9.25 | G96: =Source!G96 -> 8.09 | H96: =Source!H96 -> 7.98 | I96: 6.32 | J96: 7.68 | K96: 0.15 | L96: 0.3 | M96: 4.38 | N96: 5.43 | O96: 25 | Q96: 2.13283208 | R96: -1 | S96: 2.955696203 | T96: -1 | W96: -1 | X96: -1 | Y96: -1 | Z96: -1 | AC96: -1 | AD96: -1 | AE96: -1 | AF96: -1 | AG96: =IF(#REF!=0,0,IF(#REF!=#REF!,#REF!-#REF!,0)) ->  | AH96: 5000 | AI96: 1500 | AJ96: 450 | AK96: 56 | AL96: 375 | AM96: 46 | AN96: 300 | AO96: 37 | AP96: 225 | AQ96: 28 | AR96: 105 | AS96: 13 | AT96: 45 | AU96: 5
A97: =Source!A97 -> ZYX Signal Limited | B97: =Source!B97 -> PACE | C97: =Source!C97 ->  | D97: =Source!D97 -> Holding Companies | E97: =Source!E97 -> 9.7 | F97: =Source!F97 -> 12.5 | G97: =Source!G97 -> 10.32 | H97: =Source!H97 -> 10.27 | I97: 10 | J97: 12 | L97: 0.15 | M97: 8.43 | N97: 8.78 | O97: 14.43 | P97: 15.88 | Q97: 0.4050632911 | R97: 0.5462512171 | S97: 0.443 | T97: 0.588 | U97: 18 | V97: 22 | W97: 0.752677702 | X97: 1.142161636 | Y97: 0.8 | Z97: 1.2 | AA97: 28 | AB97: 33 | AC97: 1.726387537 | AD97: 2.213242454 | AE97: 1.8 | AF97: 2.3 | AG97: =IF(#REF!=0,0,IF(#REF!=#REF!,#REF!-#REF!,0)) ->  | AH97: 5000 | AI97: 750 | AJ97: 225 | AK97: 21 | AL97: 187 | AM97: 18 | AN97: 150 | AO97: 14 | AP97: 112 | AQ97: 10 | AR97: 52 | AS97: 5 | AT97: 22 | AU97: 2
A98: =Source!A98 -> ZYX Core Portfolio | B98: =Source!B98 -> PCG | C98: =Source!C98 ->  | D98: =Source!D98 -> Electrical Utilities & IPPs | E98: =Source!E98 -> 6.25 | F98: =Source!F98 -> 13.34 | G98: =Source!G98 -> 11.45 | H98: =Source!H98 -> 11.415 | I98: 9.78 | J98: 11.18 | K98: 0.25 | L98: 0.45 | O98: 22 | P98: 24 | Q98: 0.9272886553 | R98: 1.102496715 | S98: 1.249488753 | T98: 1.45398773 | W98: -1 | X98: -1 | Y98: -1 | Z98: -1 | AC98: -1 | AD98: -1 | AE98: -1 | AF98: -1 | AG98: =IF(#REF!=0,0,IF(#REF!=#REF!,#REF!-#REF!,0)) ->  | AH98: 5000 | AI98: 2250 | AJ98: 675 | AK98: 59 | AL98: 562 | AM98: 49 | AN98: 450 | AO98: 39 | AP98: 337 | AQ98: 29 | AR98: 157 | AS98: 13 | AT98: 67 | AU98: 5
A99: =Source!A99 -> ZYX Signal Limited | B99: =Source!B99 -> PHUN | C99: =Source!C99 ->  | D99: =Source!D99 -> Software & IT Services | E99: =Source!E99 -> 0.54 | F99: =Source!F99 -> 3.3376 | G99: =Source!G99 -> 1.93 | H99: =Source!H99 -> 2.03 | I99: 2.4 | J99: 2.81 | L99: 0.15 | M99: 2.06 | N99: 2.18 | O99: 18 | P99: 23 | Q99: 7.866995074 | R99: 10.33004926 | S99: 6.5 | T99: 8.583333333 | W99: -1 | X99: -1 | Y99: -1 | Z99: -1 | AC99: -1 | AD99: -1 | AE99: -1 | AF99: -1 | AG99: =IF(#REF!=0,0,IF(#REF!=#REF!,#REF!-#REF!,0)) ->  | AH99: 5000 | AI99: 750 | AJ99: 225 | AK99: 110 | AL99: 187 | AM99: 92 | AN99: 150 | AO99: 73 | AP99: 112 | AQ99: 55 | AR99: 52 | AS99: 25 | AT99: 22 | AU99: 10
A100: =Source!A100 -> ZYX Signal Limited | B100: =Source!B100 -> PLTR | C100: =Source!C100 ->  | D100: =Source!D100 -> Software & IT Services | E100: =Source!E100 -> 8.9 | F100: =Source!F100 -> 45 | G100: =Source!G100 -> 26.73 | H100: =Source!H100 -> 26.125 | I100: 26.13 | J100: 29.58 | L100: 0.2 | M100: 21.23 | N100: 23.34 | O100: 33.43 | P100: 35.31 | Q100: 0.2796172249 | R100: 0.3515789474 | S100: 0.2793723689 | T100: 0.3513203215 | U100: 36.6 | V100: 43.38 | W100: 0.4009569378 | X100: 0.6604784689 | Y100: 0.4006888634 | Z100: 0.6601607348 | AC100: -1 | AD100: -1 | AE100: -1 | AF100: -1 | AG100: =IF(#REF!=0,0,IF(#REF!=#REF!,#REF!-#REF!,0)) ->  | AH100: 5000 | AI100: 1000 | AJ100: 300 | AK100: 11 | AL100: 250 | AM100: 9 | AN100: 200 | AO100: 7 | AP100: 150 | AQ100: 5 | AR100: 70 | AS100: 2 | AT100: 30 | AU100: 1
A101: =Source!A101 -> ZYX Signal Limited | B101: =Source!B101 -> PLUG | C101: =Source!C101 ->  | D101: =Source!D101 -> Renewable Energy | E101: =Source!E101 -> 2.53 | F101: =Source!F101 -> 75.49 | G101: =Source!G101 -> 48.16 | H101: =Source!H101 -> 46.4 | Q101: =SUM(O101-$H101)/$H101 -> -1 | R101: -1 | S101: =SUM(O101-$I101)/$I101 ->  | W101: =SUM(U101-$H101)/$H101 -> -1 | X101: -1 | Y101: =SUM(U101-$I101)/$I101 ->  | AC101: =SUM(AA101-$H101)/$H101 -> -1 | AD101: -1 | AE101: =SUM(AA101-$I101)/$I101 ->  | AG101: =IF(#REF!=0,0,IF(#REF!=#REF!,#REF!-#REF!,0)) ->  | AH101: 5000 | AI101: 0 | AJ101: 0 | AK101: 0 | AL101: 0 | AM101: 0 | AN101: 0 | AO101: 0 | AP101: 0 | AQ101: 0 | AR101: 0 | AS101: 0 | AT101: 0 | AU101: 0
A102: =Source!A102 -> Oil | B102: =Source!B102 -> PRT | C102: =Source!C102 ->  | D102: =Source!D102 ->  | E102: =Source!E102 -> 1 | F102: =Source!F102 -> 5.35 | G102: =Source!G102 -> 5.22 | H102: =Source!H102 -> 5.1501 | Q102: -1 | R102: -1 | W102: -1 | X102: -1 | AC102: -1 | AD102: -1 | AG102: =IF(#REF!=0,0,IF(#REF!=#REF!,#REF!-#REF!,0)) ->  | AH102: 5000 | AI102: 0 | AJ102: 0 | AK102: 0 | AL102: 0 | AM102: 0 | AN102: 0 | AO102: 0 | AP102: 0 | AQ102: 0 | AR102: 0 | AS102: 0 | AT102: 0 | AU102: 0
A103: =Source!A103 -> ZYX Core Portfolio | B103: =Source!B103 -> PSQ | C103: =Source!C103 ->  | D103: =Source!D103 ->  | E103: =Source!E103 -> 13.29 | F103: =Source!F103 -> 29.7 | G103: =Source!G103 -> 14.02 | H103: =Source!H103 -> 14.18 | I103: 13.26 | J103: 15.31 | K103: Hedge | L103: Hedge | O103: Hedge | P103: Hedge | W103: -1 | X103: -1 | Y103: -1 | Z103: -1 | AC103: -1 | AD103: -1 | AE103: -1 | AF103: -1 | AG103: =IF(#REF!=0,0,IF(#REF!=#REF!,#REF!-#REF!,0)) ->  | AH103: 5000
A104: =Source!A104 -> ZYX Core Portfolio | B104: =Source!B104 -> QCOM | C104: =Source!C104 ->  | D104: =Source!D104 -> Semiconductors & Semiconductor Equipment | E104: =Source!E104 -> 58 | F104: =Source!F104 -> 167.94 | G104: =Source!G104 -> 131.74 | H104: =Source!H104 -> 129.4725 | I104: 127 | J104: 145.76 | K104: 0.3 | L104: 0.65 | O104: 232 | P104: 256 | Q104: 0.7918863079 | R104: 0.977253857 | S104: 0.8267716535 | T104: 1.015748031 | W104: -1 | X104: -1 | Y104: -1 | Z104: -1 | AC104: -1 | AD104: -1 | AE104: -1 | AF104: -1 | AG104: =IF(#REF!=0,0,IF(#REF!=#REF!,#REF!-#REF!,0)) ->  | AH104: 5000 | AI104: 3250 | AJ104: 975 | AK104: 7 | AL104: 812 | AM104: 6 | AN104: 650 | AO104: 5 | AP104: 487 | AQ104: 3 | AR104: 227 | AS104: 1 | AT104: 97 | AU104: 0
A105: =Source!A105 -> ZYX Signal Limited | B105: =Source!B105 -> QCOM | C105: =Source!C105 ->  | D105: =Source!D105 -> Semiconductors & Semiconductor Equipment | E105: =Source!E105 -> 58 | F105: =Source!F105 -> 167.94 | G105: =Source!G105 -> 131.74 | H105: =Source!H105 -> 129.4725 | Q105: -1 | R105: -1 | W105: -1 | X105: -1 | AC105: -1 | AD105: -1 | AG105: =IF(#REF!=0,0,IF(#REF!=#REF!,#REF!-#REF!,0)) ->  | AH105: 5000 | AI105: 0 | AJ105: 0 | AK105: 0 | AL105: 0 | AM105: 0 | AN105: 0 | AO105: 0 | AP105: 0 | AQ105: 0 | AR105: 0 | AS105: 0 | AT105: 0 | AU105: 0
A106: =Source!A106 -> ZYX Core Portfolio | B106: =Source!B106 -> QQQJ | C106: =Source!C106 ->  | D106: =Source!D106 ->  | E106: =Source!E106 -> 24.669 | F106: =Source!F106 -> 35.18 | G106: =Source!G106 -> 33.22 | H106: =Source!H106 -> 32.84 | I106: 24.13 | J106: 28.76 | K106: 0.15 | L106: 0.4 | O106: 42 | P106: 46 | Q106: 0.2789281364 | R106: 0.4007308161 | S106: 0.7405719022 | T106: 0.9063406548 | W106: -1 | X106: -1 | Y106: -1 | Z106: -1 | AC106: -1 | AD106: -1 | AE106: -1 | AF106: -1 | AG106: =IF(#REF!=0,0,IF(#REF!=#REF!,#REF!-#REF!,0)) ->  | AH106: 5000 | AI106: 2000 | AJ106: 600 | AK106: 18 | AL106: 500 | AM106: 15 | AN106: 400 | AO106: 12 | AP106: 300 | AQ106: 9 | AR106: 140 | AS106: 4 | AT106: 60 | AU106: 1
A107: =Source!A107 -> ZYX Core Portfolio | B107: =Source!B107 -> QRVO | C107: =Source!C107 ->  | D107: =Source!D107 -> Semiconductors & Semiconductor Equipment | E107: =Source!E107 -> 67.54 | F107: =Source!F107 -> 191.825 | G107: =Source!G107 -> 174.95 | H107: =Source!H107 -> 171.9301 | I107: 127.26 | J107: 151.77 | K107: 0.2 | L107: 0.4 | O107: 255 | P107: 265 | Q107: 0.4831608892 | R107: 0.5413240613 | S107: 1.003771806 | T107: 1.082351092 | W107: -1 | X107: -1 | Y107: -1 | Z107: -1 | AC107: -1 | AD107: -1 | AE107: -1 | AF107: -1 | AG107: =IF(#REF!=0,0,IF(#REF!=#REF!,#REF!-#REF!,0)) ->  | AH107: 5000 | AI107: 2000 | AJ107: 600 | AK107: 3 | AL107: 500 | AM107: 2 | AN107: 400 | AO107: 2 | AP107: 300 | AQ107: 1 | AR107: 140 | AS107: 0 | AT107: 60 | AU107: 0
A108: =Source!A108 -> ZYX Signal Limited | B108: =Source!B108 -> QS | C108: =Source!C108 ->  | D108: =Source!D108 -> Automobiles & Auto Parts | E108: =Source!E108 -> 9.74 | F108: =Source!F108 -> 132.73 | G108: =Source!G108 -> 58.2 | H108: =Source!H108 -> 57.2099 | I108: 42.32 | J108: 51.94 | L108: 0.2 | M108: 37 | N108: 38.43 | O108: 107.33 | P108: 123.48 | Q108: 0.8760738963 | R108: 1.158367695 | S108: 1.536153119 | T108: 1.917769376 | U108: 168 | V108: 210 | W108: 1.936554687 | X108: 2.670693359 | Y108: 2.969754253 | Z108: 3.962192817 | AB108: 90 | AC108: -1 | AD108: 0.5731542967 | AE108: -1 | AF108: 1.126654064 | AG108: =IF(#REF!=0,0,IF(#REF!=#REF!,#REF!-#REF!,0)) ->  | AH108: 5000 | AI108: 1000 | AJ108: 300 | AK108: 5 | AL108: 250 | AM108: 4 | AN108: 200 | AO108: 3 | AP108: 150 | AQ108: 2 | AR108: 70 | AS108: 1 | AT108: 30 | AU108: 0
A109: =Source!A109 -> ZYX Core Portfolio | B109: =Source!B109 -> RDS-B | C109: =Source!C109 ->  | D109: =Source!D109 -> Oil & Gas | E109: =Source!E109 -> 19.19 | F109: =Source!F109 -> 42.27 | G109: =Source!G109 -> 41.72 | H109: =Source!H109 -> 42.06 | I109: 28.31 | J109: 32.52 | K109: 0.15 | L109: 0.3 | O109: 56 | P109: 62 | Q109: 0.3314312886 | R109: 0.474084641 | S109: 0.9780996114 | T109: 1.190038856 | W109: -1 | X109: -1 | Y109: -1 | Z109: -1 | AC109: -1 | AD109: -1 | AE109: -1 | AF109: -1 | AG109: =IF(#REF!=0,0,IF(#REF!=#REF!,#REF!-#REF!,0)) ->  | AH109: 5000 | AI109: 1500 | AJ109: 450 | AK109: 10 | AL109: 375 | AM109: 8 | AN109: 300 | AO109: 7 | AP109: 225 | AQ109: 5 | AR109: 105 | AS109: 2 | AT109: 45 | AU109: 1
A110: =Source!A110 -> Oil | B110: =Source!B110 -> RIG | C110: =Source!C110 ->  | D110: =Source!D110 -> Oil & Gas Related Equipment and Services | E110: =Source!E110 -> 0.65 | F110: =Source!F110 -> 4.81 | G110: =Source!G110 -> 4.55 | H110: =Source!H110 -> 4.54 | I110: 4 | J110: 4 | Q110: -1 | R110: -1 | S110: -1 | T110: -1 | W110: -1 | X110: -1 | Y110: -1 | Z110: -1 | AC110: -1 | AD110: -1 | AE110: -1 | AF110: -1 | AG110: =IF(#REF!=0,0,IF(#REF!=#REF!,#REF!-#REF!,0)) ->  | AH110: 5000 | AI110: 0 | AJ110: 0 | AK110: 0 | AL110: 0 | AM110: 0 | AN110: 0 | AO110: 0 | AP110: 0 | AQ110: 0 | AR110: 0 | AS110: 0 | AT110: 0 | AU110: 0
A111: =Source!A111 -> ZYX Signal Limited | B111: =Source!B111 -> RLX | C111: =Source!C111 ->  | D111: =Source!D111 -> Food & Tobacco | E111: =Source!E111 -> 13.7 | F111: =Source!F111 -> 35 | G111: =Source!G111 -> 18.8 | H111: =Source!H111 -> 17.48 | Q111: -1 | R111: -1 | W111: -1 | X111: -1 | AC111: -1 | AD111: -1 | AG111: =IF(#REF!=0,0,IF(#REF!=#REF!,#REF!-#REF!,0)) ->  | AH111: 5000 | AI111: 0 | AJ111: 0 | AK111: 0 | AL111: 0 | AM111: 0 | AN111: 0 | AO111: 0 | AP111: 0 | AQ111: 0 | AR111: 0 | AS111: 0 | AT111: 0 | AU111: 0
A112: =Source!A112 -> Motley Fool | B112: =Source!B112 -> ROKU | C112: =Source!C112 ->  | D112: =Source!D112 -> Media & Publishing | E112: =Source!E112 -> 58.22 | F112: =Source!F112 -> 486.72 | G112: =Source!G112 -> 363.34 | H112: =Source!H112 -> 356.005 | Q112: -1 | R112: -1 | W112: -1 | X112: -1 | AC112: -1 | AD112: -1 | AG112: =IF(#REF!=0,0,IF(#REF!=#REF!,#REF!-#REF!,0)) ->  | AH112: 5000 | AI112: 0 | AJ112: 0 | AK112: 0 | AL112: 0 | AM112: 0 | AN112: 0 | AO112: 0 | AP112: 0 | AQ112: 0 | AR112: 0 | AS112: 0 | AT112: 0 | AU112: 0
A113: =Source!A113 -> ZYX Signal Limited | B113: =Source!B113 -> SAVE | C113: =Source!C113 ->  | D113: =Source!D113 -> Passenger Transportation Services | E113: =Source!E113 -> 7.01 | F113: =Source!F113 -> 39.14 | G113: =Source!G113 -> 36.51 | H113: =Source!H113 -> 37.37 | I113: 25.06 | J113: 27.31 | L113: 0.3 | M113: 23.43 | N113: 24.43 | O113: 42.38 | P113: 47.43 | Q113: 0.1340647578 | R113: 0.269199893 | S113: 0.691141261 | T113: 0.8926576217 | U113: 58 | V113: 67 | W113: 0.5520470966 | X113: 0.7928819909 | Y113: 1.314445331 | Z113: 1.6735834 | AC113: -1 | AD113: -1 | AE113: -1 | AF113: -1 | AG113: =IF(#REF!=0,0,IF(#REF!=#REF!,#REF!-#REF!,0)) ->  | AH113: 5000 | AI113: 1500 | AJ113: 450 | AK113: 12 | AL113: 375 | AM113: 10 | AN113: 300 | AO113: 8 | AP113: 225 | AQ113: 6 | AR113: 105 | AS113: 2 | AT113: 45 | AU113: 1
A114: =Source!A114 -> ZYX Electric Cars | B114: =Source!B114 -> SBE | C114: =Source!C114 ->  | D114: =Source!D114 -> Electrical Utilities & IPPs | E114: =Source!E114 -> 9.38 | F114: =Source!F114 -> 49.48 | G114: =Source!G114 -> 30.43 | H114: =Source!H114 -> 27.588 | Q114: -1 | R114: -1 | W114: -1 | X114: -1 | AC114: -1 | AD114: -1 | AG114: =IF(#REF!=0,0,IF(#REF!=#REF!,#REF!-#REF!,0)) ->  | AH114: 5000 | AI114: 0 | AJ114: 0 | AK114: 0 | AL114: 0 | AM114: 0 | AN114: 0 | AO114: 0 | AP114: 0 | AQ114: 0 | AR114: 0 | AS114: 0 | AT114: 0 | AU114: 0
A115: =Source!A115 -> ZYX Signal Limited | B115: =Source!B115 -> SFIX | C115: =Source!C115 ->  | D115: =Source!D115 -> Software & IT Services | E115: =Source!E115 -> 10.9 | F115: =Source!F115 -> 113.7594 | G115: =Source!G115 -> 50.93 | H115: =Source!H115 -> 51.0341 | Q115: -1 | R115: -1 | W115: -1 | X115: -1 | AC115: -1 | AD115: -1 | AG115: =IF(#REF!=0,0,IF(#REF!=#REF!,#REF!-#REF!,0)) ->  | AH115: 5000 | AI115: 0 | AJ115: 0 | AK115: 0 | AL115: 0 | AM115: 0 | AN115: 0 | AO115: 0 | AP115: 0 | AQ115: 0 | AR115: 0 | AS115: 0 | AT115: 0 | AU115: 0
A116: =Source!A116 -> ZYX Signal Limited | B116: =Source!B116 -> SKLZ | C116: =Source!C116 ->  | D116: =Source!D116 -> Holding Companies | E116: =Source!E116 -> 9.81 | F116: =Source!F116 -> 46.298 | G116: =Source!G116 -> 27.78 | H116: =Source!H116 -> 27.84 | I116: 22.02 | J116: 25.38 | L116: 0.2 | M116: 19.32 | N116: 21.23 | O116: 27.73 | P116: 30.16 | Q116: -0.003951149425 | R116: 0.08333333333 | S116: 0.2593097184 | T116: 0.3696639419 | U116: 32.43 | V116: 36.42 | W116: 0.1648706897 | X116: 0.3081896552 | Y116: 0.4727520436 | Z116: 0.6539509537 | AC116: -1 | AD116: -1 | AE116: -1 | AF116: -1 | AG116: =IF(#REF!=0,0,IF(#REF!=#REF!,#REF!-#REF!,0)) ->  | AH116: 5000 | AI116: 1000 | AJ116: 300 | AK116: 10 | AL116: 250 | AM116: 8 | AN116: 200 | AO116: 7 | AP116: 150 | AQ116: 5 | AR116: 70 | AS116: 2 | AT116: 30 | AU116: 1
A117: =Source!A117 -> ZYX Signal Limited | B117: =Source!B117 -> SKT | C117: =Source!C117 ->  | D117: =Source!D117 -> Residential & Commercial REIT | E117: =Source!E117 -> 4.05 | F117: =Source!F117 -> 22.4 | G117: =Source!G117 -> 16.92 | H117: =Source!H117 -> 17.015 | I117: 16.31 | J117: 18.51 | L117: 0.2 | M117: 15.48 | N117: 15.83 | O117: 20 | P117: 22 | Q117: 0.1754334411 | R117: 0.2929767852 | S117: 0.2262415696 | T117: 0.3488657265 | U117: 27 | V117: 32 | W117: 0.5868351455 | X117: 0.8806935057 | Y117: 0.6554261189 | Z117: 0.9619865113 | AC117: -1 | AD117: -1 | AE117: -1 | AF117: -1 | AG117: =IF(#REF!=0,0,IF(#REF!=#REF!,#REF!-#REF!,0)) ->  | AH117: 5000 | AI117: 1000 | AJ117: 300 | AK117: 17 | AL117: 250 | AM117: 14 | AN117: 200 | AO117: 11 | AP117: 150 | AQ117: 8 | AR117: 70 | AS117: 4 | AT117: 30 | AU117: 1
A118: =Source!A118 -> ZYX Core Portfolio | B118: =Source!B118 -> SLV | C118: =Source!C118 ->  | D118: =Source!D118 ->  | E118: =Source!E118 -> 10.86 | F118: =Source!F118 -> 27.98 | G118: =Source!G118 -> 24.25 | H118: =Source!H118 -> 23.8464 | I118: 20.5 | J118: 23.88 | K118: 0.15 | L118: 0.35 | O118: 46 | P118: 50 | Q118: 0.9290123457 | R118: 1.09675255 | S118: 1.243902439 | T118: 1.43902439 | W118: -1 | X118: -1 | Y118: -1 | Z118: -1 | AC118: -1 | AD118: -1 | AE118: -1 | AF118: -1 | AG118: =IF(#REF!=0,0,IF(#REF!=#REF!,#REF!-#REF!,0)) ->  | AH118: 5000 | AI118: 1750 | AJ118: 525 | AK118: 22 | AL118: 437 | AM118: 18 | AN118: 350 | AO118: 14 | AP118: 262 | AQ118: 10 | AR118: 122 | AS118: 5 | AT118: 52 | AU118: 2
A119: =Source!A119 -> ZYX Signal Limited | B119: =Source!B119 -> SLV | C119: =Source!C119 ->  | D119: =Source!D119 ->  | E119: =Source!E119 -> 10.86 | F119: =Source!F119 -> 27.98 | G119: =Source!G119 -> 24.25 | H119: =Source!H119 -> 23.8464 | Q119: -1 | R119: -1 | W119: -1 | X119: -1 | AC119: -1 | AD119: -1 | AG119: =IF(#REF!=0,0,IF(#REF!=#REF!,#REF!-#REF!,0)) ->  | AH119: 5000 | AI119: 0 | AJ119: 0 | AK119: 0 | AL119: 0 | AM119: 0 | AN119: 0 | AO119: 0 | AP119: 0 | AQ119: 0 | AR119: 0 | AS119: 0 | AT119: 0 | AU119: 0
A120: =Source!A120 -> ZYX Space | B120: =Source!B120 -> SPCE | C120: =Source!C120 ->  | D120: =Source!D120 -> Aerospace & Defense | E120: =Source!E120 -> 9.06 | F120: =Source!F120 -> 62.8 | G120: =Source!G120 -> 33.58 | H120: =Source!H120 -> 32.82 | I120: 24.13 | J120: 28.63 | K120: 0.1 | L120: 0.2 | M120: 18 | N120: 21.34 | O120: 52 | Q120: 0.5843997562 | R120: -1 | S120: 1.154993784 | T120: -1 | W120: -1 | X120: -1 | Y120: -1 | Z120: -1 | AC120: -1 | AD120: -1 | AE120: -1 | AF120: -1 | AG120: =IF(#REF!=0,0,IF(#REF!=#REF!,#REF!-#REF!,0)) ->  | AH120: 5000 | AI120: 1000 | AJ120: 300 | AK120: 9 | AL120: 250 | AM120: 7 | AN120: 200 | AO120: 6 | AP120: 150 | AQ120: 4 | AR120: 70 | AS120: 2 | AT120: 30 | AU120: 0
A121: =Source!A121 -> ZYX Core Portfolio | B121: =Source!B121 -> SPR | C121: =Source!C121 ->  | D121: =Source!D121 -> Aerospace & Defense | E121: =Source!E121 -> 13.69 | F121: =Source!F121 -> 51.56 | G121: =Source!G121 -> 49.83 | H121: =Source!H121 -> 50.625 | I121: 28.16 | J121: 35.13 | K121: 0.2 | L121: 0.3 | O121: 73 | P121: 78 | Q121: 0.4419753086 | R121: 0.5407407407 | S121: 1.592329545 | T121: 1.769886364 | W121: -1 | X121: -1 | Y121: -1 | Z121: -1 | AC121: -1 | AD121: -1 | AE121: -1 | AF121: -1 | AG121: =IF(#REF!=0,0,IF(#REF!=#REF!,#REF!-#REF!,0)) ->  | AH121: 5000 | AI121: 1500 | AJ121: 450 | AK121: 8 | AL121: 375 | AM121: 7 | AN121: 300 | AO121: 5 | AP121: 225 | AQ121: 4 | AR121: 105 | AS121: 2 | AT121: 45 | AU121: 0
A122: =Source!A122 -> ZYX Signal Limited | B122: =Source!B122 -> SPR | C122: =Source!C122 ->  | D122: =Source!D122 -> Aerospace & Defense | E122: =Source!E122 -> 13.69 | F122: =Source!F122 -> 51.56 | G122: =Source!G122 -> 49.83 | H122: =Source!H122 -> 50.625 | Q122: -1 | R122: -1 | W122: -1 | X122: -1 | AC122: -1 | AD122: -1 | AG122: =IF(#REF!=0,0,IF(#REF!=#REF!,#REF!-#REF!,0)) ->  | AH122: 5000 | AI122: 0 | AJ122: 0 | AK122: 0 | AL122: 0 | AM122: 0 | AN122: 0 | AO122: 0 | AP122: 0 | AQ122: 0 | AR122: 0 | AS122: 0 | AT122: 0 | AU122: 0
A123: =Source!A123 -> ZYX Signal Limited | B123: =Source!B123 -> SQQQ | C123: =Source!C123 ->  | D123: =Source!D123 ->  | E123: =Source!E123 -> 11.76 | F123: =Source!F123 -> 162.15 | G123: =Source!G123 -> 13.49 | H123: =Source!H123 -> 13.995 | Q123: -1 | R123: -1 | W123: -1 | X123: -1 | AC123: -1 | AD123: -1 | AG123: =IF(#REF!=0,0,IF(#REF!=#REF!,#REF!-#REF!,0)) ->  | AH123: 5000 | AI123: 0 | AJ123: 0 | AK123: 0 | AL123: 0 | AM123: 0 | AN123: 0 | AO123: 0 | AP123: 0 | AQ123: 0 | AR123: 0 | AS123: 0 | AT123: 0 | AU123: 0
A124: =Source!A124 -> ZYX Space | B124: =Source!B124 -> SRACU | C124: =Source!C124 ->  | D124: =Source!D124 ->  | E124: =Source!E124 -> 9.3 | F124: =Source!F124 -> 35 | G124: =Source!G124 -> 16.54 | H124: =Source!H124 -> 19.27 | I124: 15.38 | J124: 18.68 | K124: 0.15 | L124: 0.3 | M124: 9 | N124: 12.18 | O124: 105 | Q124: 4.448884276 | R124: -1 | S124: 5.827048114 | T124: -1 | W124: -1 | X124: -1 | Y124: -1 | Z124: -1 | AC124: -1 | AD124: -1 | AE124: -1 | AF124: -1 | AG124: =IF(#REF!=0,0,IF(#REF!=#REF!,#REF!-#REF!,0)) ->  | AH124: 5000 | AI124: 1500 | AJ124: 450 | AK124: 23 | AL124: 375 | AM124: 19 | AN124: 300 | AO124: 15 | AP124: 225 | AQ124: 11 | AR124: 105 | AS124: 5 | AT124: 45 | AU124: 2
A125: =Source!A125 -> ZYX Signal Limited | B125: =Source!B125 -> SRACU | C125: =Source!C125 ->  | D125: =Source!D125 ->  | E125: =Source!E125 -> 9.3 | F125: =Source!F125 -> 35 | G125: =Source!G125 -> 16.54 | H125: =Source!H125 -> 19.27 | Q125: -1 | R125: -1 | W125: -1 | X125: -1 | AC125: -1 | AD125: -1 | AG125: =IF(#REF!=0,0,IF(#REF!=#REF!,#REF!-#REF!,0)) ->  | AH125: 5000 | AI125: 0 | AJ125: 0 | AK125: 0 | AL125: 0 | AM125: 0 | AN125: 0 | AO125: 0 | AP125: 0 | AQ125: 0 | AR125: 0 | AS125: 0 | AT125: 0 | AU125: 0
A126: =Source!A126 -> ZYX Signal Limited | B126: =Source!B126 -> SSYS | C126: =Source!C126 ->  | D126: =Source!D126 -> Electronic Equipment & Parts | E126: =Source!E126 -> 11.89 | F126: =Source!F126 -> 56.95 | G126: =Source!G126 -> 28.14 | H126: =Source!H126 -> 27.49 | I126: 26.38 | J126: 28.57 | L126: 0.25 | M126: 24.43 | N126: 25.38 | O126: 31.43 | P126: 34 | Q126: 0.1433248454 | R126: 0.2368133867 | S126: 0.1914329037 | T126: 0.2888551933 | U126: 36 | V126: 42 | W126: 0.3095671153 | X126: 0.5278283012 | Y126: 0.3646702047 | Z126: 0.5921152388 | AC126: -1 | AD126: -1 | AE126: -1 | AF126: -1 | AG126: =IF(#REF!=0,0,IF(#REF!=#REF!,#REF!-#REF!,0)) ->  | AH126: 5000 | AI126: 1250 | AJ126: 375 | AK126: 13 | AL126: 312 | AM126: 11 | AN126: 250 | AO126: 9 | AP126: 187 | AQ126: 6 | AR126: 87 | AS126: 3 | AT126: 37 | AU126: 1
A127: =Source!A127 -> ZYX Signal Limited | B127: =Source!B127 -> THCB | C127: =Source!C127 ->  | D127: =Source!D127 -> Holding Companies | E127: =Source!E127 -> 9.16 | F127: =Source!F127 -> 25.2 | G127: =Source!G127 -> 14.68 | H127: =Source!H127 -> 14.5575 | Q127: -1 | R127: -1 | W127: -1 | X127: -1 | AC127: -1 | AD127: -1 | AG127: =IF(#REF!=0,0,IF(#REF!=#REF!,#REF!-#REF!,0)) ->  | AH127: 5000 | AI127: 0 | AJ127: 0 | AK127: 0 | AL127: 0 | AM127: 0 | AN127: 0 | AO127: 0 | AP127: 0 | AQ127: 0 | AR127: 0 | AS127: 0 | AT127: 0 | AU127: 0
A128: =Source!A128 -> ZYX Pot | B128: =Source!B128 -> TLRY | C128: =Source!C128 ->  | D128: =Source!D128 -> Pharmaceuticals | E128: =Source!E128 -> 2.43 | F128: =Source!F128 -> 67 | G128: =Source!G128 -> 28.195 | H128: =Source!H128 -> 26.42 | I128: 13.37 | J128: 21.88 | K128: 0.05 | L128: 0.1 | O128: Suspended | P128: Suspended | W128: -1 | X128: -1 | Y128: -1 | Z128: -1 | AC128: -1 | AD128: -1 | AE128: -1 | AF128: -1 | AG128: =IF(#REF!=0,0,IF(#REF!=#REF!,#REF!-#REF!,0)) ->  | AH128: 5000 | AI128: 500 | AJ128: 150 | AK128: 5 | AL128: 125 | AM128: 4 | AN128: 100 | AO128: 3 | AP128: 75 | AQ128: 2 | AR128: 35 | AS128: 1 | AT128: 15 | AU128: 0
A129: =Source!A129 -> ZYX Core Portfolio | B129: =Source!B129 -> TMUS | C129: =Source!C129 ->  | D129: =Source!D129 -> Telecommunications Services | E129: =Source!E129 -> 63.5 | F129: =Source!F129 -> 135.54 | G129: =Source!G129 -> 125.99 | H129: =Source!H129 -> 126.23 | I129: 105.26 | J129: 118.88 | K129: 0.3 | L129: 0.5 | O129: 165 | P129: 185 | Q129: 0.3071377644 | R129: 0.4655787055 | S129: 0.5675470264 | T129: 0.7575527266 | W129: -1 | X129: -1 | Y129: -1 | Z129: -1 | AC129: -1 | AD129: -1 | AE129: -1 | AF129: -1 | AG129: =IF(#REF!=0,0,IF(#REF!=#REF!,#REF!-#REF!,0)) ->  | AH129: 5000 | AI129: 2500 | AJ129: 750 | AK129: 5 | AL129: 625 | AM129: 4 | AN129: 500 | AO129: 3 | AP129: 375 | AQ129: 2 | AR129: 175 | AS129: 1 | AT129: 75 | AU129: 0
A130: =Source!A130 -> ZYX Electric Cars | B130: =Source!B130 -> TPGY | C130: =Source!C130 ->  | D130: =Source!D130 -> Holding Companies | E130: =Source!E130 -> 9.76 | F130: =Source!F130 -> 34.28 | G130: =Source!G130 -> 18.18 | H130: =Source!H130 -> 17.87 | Q130: -1 | R130: -1 | W130: -1 | X130: -1 | AC130: -1 | AD130: -1 | AG130: =IF(#REF!=0,0,IF(#REF!=#REF!,#REF!-#REF!,0)) ->  | AH130: 5000 | AI130: 0 | AJ130: 0 | AK130: 0 | AL130: 0 | AM130: 0 | AN130: 0 | AO130: 0 | AP130: 0 | AQ130: 0 | AR130: 0 | AS130: 0 | AT130: 0 | AU130: 0
A131: =Source!A131 -> ZYX Electric Cars | B131: =Source!B131 -> TSLA | C131: =Source!C131 ->  | D131: =Source!D131 -> Automobiles & Auto Parts | E131: =Source!E131 -> 70.102 | F131: =Source!F131 -> 900.4 | G131: =Source!G131 -> 699.6 | H131: =Source!H131 -> 681.5188 | Q131: -1 | R131: -1 | W131: -1 | X131: -1 | AC131: -1 | AD131: -1 | AG131: =IF(#REF!=0,0,IF(#REF!=#REF!,#REF!-#REF!,0)) ->  | AH131: 5000 | AI131: 0 | AJ131: 0 | AK131: 0 | AL131: 0 | AM131: 0 | AN131: 0 | AO131: 0 | AP131: 0 | AQ131: 0 | AR131: 0 | AS131: 0 | AT131: 0 | AU131: 0
A132: =Source!A132 -> ZYX Core Portfolio | B132: =Source!B132 -> TSM | C132: =Source!C132 ->  | D132: =Source!D132 -> Semiconductors & Semiconductor Equipment | E132: =Source!E132 -> 42.7 | F132: =Source!F132 -> 142.195 | G132: =Source!G132 -> 120.58 | H132: =Source!H132 -> 118.79 | I132: 93.11 | J132: 105.81 | K132: 0.25 | L132: 0.35 | O132: 167 | P132: 178 | Q132: 0.4058422426 | R132: 0.4984426299 | S132: 0.793577489 | T132: 0.9117173236 | W132: -1 | X132: -1 | Y132: -1 | Z132: -1 | AC132: -1 | AD132: -1 | AE132: -1 | AF132: -1 | AG132: =IF(#REF!=0,0,IF(#REF!=#REF!,#REF!-#REF!,0)) ->  | AH132: 5000 | AI132: 1750 | AJ132: 525 | AK132: 4 | AL132: 437 | AM132: 3 | AN132: 350 | AO132: 2 | AP132: 262 | AQ132: 2 | AR132: 122 | AS132: 1 | AT132: 52 | AU132: 0
A133: =Source!A133 -> ZYX Signal Limited | B133: =Source!B133 -> TWM | C133: =Source!C133 ->  | D133: =Source!D133 ->  | E133: =Source!E133 -> 13.615 | F133: =Source!F133 -> 120.3008 | G133: =Source!G133 -> 13.66 | H133: =Source!H133 -> 13.6313 | Q133: =SUM(O133-$H133)/$H133 -> -1 | R133: -1 | S133: =SUM(O133-$I133)/$I133 ->  | W133: =SUM(U133-$H133)/$H133 -> -1 | X133: -1 | Y133: =SUM(U133-$I133)/$I133 ->  | AC133: =SUM(AA133-$H133)/$H133 -> -1 | AD133: -1 | AE133: =SUM(AA133-$I133)/$I133 ->  | AG133: =IF(#REF!=0,0,IF(#REF!=#REF!,#REF!-#REF!,0)) ->  | AH133: 5000 | AI133: =ROUNDDOWN(SUM($L133*$AH133),0) -> 0 | AJ133: =ROUNDDOWN(SUM($AI133*AJ$3),0) -> 0 | AK133: =ROUNDDOWN(SUM(AJ133/$H133),0) -> 0 | AL133: =ROUNDDOWN(SUM($AI133*AL$3),0) -> 0 | AM133: =ROUNDDOWN(SUM(AL133/$H133),0) -> 0 | AN133: =ROUNDDOWN(SUM($AI133*AN$3),0) -> 0 | AO133: =ROUNDDOWN(SUM(AN133/$H133),0) -> 0 | AP133: =ROUNDDOWN(SUM($AI133*AP$3),0) -> 0 | AQ133: =ROUNDDOWN(SUM(AP133/$H133),0) -> 0 | AR133: =ROUNDDOWN(SUM($AI133*AR$3),0) -> 0 | AS133: =ROUNDDOWN(SUM(AR133/$H133),0) -> 0 | AT133: =ROUNDDOWN(SUM($AI133*AT$3),0) -> 0 | AU133: =ROUNDDOWN(SUM(AT133/$H133),0) -> 0
A134: =Source!A134 -> ZYX Core Portfolio | B134: =Source!B134 -> TWTR | C134: =Source!C134 ->  | D134: =Source!D134 -> Software & IT Services | E134: =Source!E134 -> 20 | F134: =Source!F134 -> 80.75 | G134: =Source!G134 -> 68.46 | H134: =Source!H134 -> 67.75 | I134: 52.39 | J134: 60.56 | K134: 0.2 | L134: 0.35 | O134: 94 | P134: 102 | Q134: 0.3874538745 | R134: 0.5055350554 | S134: 0.7942355411 | T134: 0.9469364383 | U134: 140 | V134: 156 | W134: 1.066420664 | X134: 1.302583026 | Y134: 1.6722657 | Z134: 1.977667494 | AC134: -1 | AD134: -1 | AE134: -1 | AF134: -1 | AG134: =IF(#REF!=0,0,IF(#REF!=#REF!,#REF!-#REF!,0)) ->  | AH134: =$AH$5 -> 5000 | AI134: 1750 | AJ134: 525 | AK134: 7 | AL134: 437 | AM134: 6 | AN134: 350 | AO134: 5 | AP134: 262 | AQ134: 3 | AR134: 122 | AS134: 1 | AT134: 52 | AU134: 0
A135: =Source!A135 -> Oil | B135: =Source!B135 -> TYG | C135: =Source!C135 ->  | D135: =Source!D135 ->  | E135: =Source!E135 -> 4.6 | F135: =Source!F135 -> 25.46 | G135: =Source!G135 -> 25.18 | H135: =Source!H135 -> 25.02 | Q135: -1 | R135: -1 | W135: -1 | X135: -1 | AC135: -1 | AD135: -1 | AG135: =IF(#REF!=0,0,IF(#REF!=#REF!,#REF!-#REF!,0)) ->  | AH135: 5000 | AI135: 0 | AJ135: 0 | AK135: 0 | AL135: 0 | AM135: 0 | AN135: 0 | AO135: 0 | AP135: 0 | AQ135: 0 | AR135: 0 | AS135: 0 | AT135: 0 | AU135: 0
A136: =Source!A136 -> ZYX Core Portfolio | B136: =Source!B136 -> UBER | C136: =Source!C136 ->  | D136: =Source!D136 -> Software & IT Services | E136: =Source!E136 -> 13.71 | F136: =Source!F136 -> 64.05 | G136: =Source!G136 -> 58.95 | H136: =Source!H136 -> 58.25 | I136: 40.37 | J136: 45.62 | K136: 0.2 | L136: 0.35 | O136: 116 | P136: 124 | Q136: 0.991416309 | R136: 1.128755365 | S136: 1.873420857 | T136: 2.071587813 | W136: -1 | X136: -1 | Y136: -1 | Z136: -1 | AC136: -1 | AD136: -1 | AE136: -1 | AF136: -1 | AG136: =IF(#REF!=0,0,IF(#REF!=#REF!,#REF!-#REF!,0)) ->  | AH136: 5000 | AI136: 1750 | AJ136: 525 | AK136: 9 | AL136: 437 | AM136: 7 | AN136: 350 | AO136: 6 | AP136: 262 | AQ136: 4 | AR136: 122 | AS136: 2 | AT136: 52 | AU136: 0
A137: =Source!A137 -> ZYX Signal Limited | B137: =Source!B137 -> UNFI | C137: =Source!C137 ->  | D137: =Source!D137 -> Food & Drug Retailing | E137: =Source!E137 -> 5.055 | F137: =Source!F137 -> 40.24 | G137: =Source!G137 -> 39.24 | H137: =Source!H137 -> 39.19 | I137: 27 | J137: 29.76 | L137: 0.2 | M137: 24.06 | N137: 25.43 | O137: 36 | P137: 42 | Q137: -0.0813983159 | R137: 0.07170196479 | S137: 0.3333333333 | T137: 0.5555555556 | U137: 58 | V137: 75 | W137: 0.4799693799 | X137: 0.9137535085 | Y137: 1.148148148 | Z137: 1.777777778 | AC137: -1 | AD137: -1 | AE137: -1 | AF137: -1 | AG137: =IF(#REF!=0,0,IF(#REF!=#REF!,#REF!-#REF!,0)) ->  | AH137: 5000 | AI137: 1000 | AJ137: 300 | AK137: 7 | AL137: 250 | AM137: 6 | AN137: 200 | AO137: 5 | AP137: 150 | AQ137: 3 | AR137: 70 | AS137: 1 | AT137: 30 | AU137: 0
A138: =Source!A138 -> ZYX Signal Limited | B138: =Source!B138 -> VACQ | C138: =Source!C138 ->  | D138: =Source!D138 -> Holding Companies | E138: =Source!E138 -> 9.72 | F138: =Source!F138 -> 15.15 | G138: =Source!G138 -> 12.41 | H138: =Source!H138 -> 12.2 | I138: 10.41 | J138: 12.18 | L138: 0.2 | M138: 8.38 | N138: 8.68 | O138: 15.02 | P138: 16.73 | Q138: 0.231147541 | R138: 0.3713114754 | S138: 0.4428434198 | T138: 0.6071085495 | U138: 19.13 | V138: 22.5 | W138: 0.5680327869 | X138: 0.8442622951 | Y138: 0.8376560999 | Z138: 1.161383285 | AA138: 28 | AB138: 34 | AC138: 1.295081967 | AD138: 1.786885246 | AE138: 1.689721422 | AF138: 2.266090298 | AG138: =IF(#REF!=0,0,IF(#REF!=#REF!,#REF!-#REF!,0)) ->  | AH138: 5000 | AI138: 1000 | AJ138: 300 | AK138: 24 | AL138: 250 | AM138: 20 | AN138: 200 | AO138: 16 | AP138: 150 | AQ138: 12 | AR138: 70 | AS138: 5 | AT138: 30 | AU138: 2
A139: =Source!A139 -> ZYX Signal Limited | B139: =Source!B139 -> VSPR | C139: =Source!C139 ->  | D139: =Source!D139 -> Holding Companies | E139: =Source!E139 -> 10.01 | F139: =Source!F139 -> 12.84 | G139: =Source!G139 -> 10.81 | H139: =Source!H139 -> 10.58 | Q139: -1 | R139: -1 | W139: -1 | X139: -1 | AC139: -1 | AD139: -1 | AG139: =IF(#REF!=0,0,IF(#REF!=#REF!,#REF!-#REF!,0)) ->  | AH139: 5000 | AI139: 0 | AJ139: 0 | AK139: 0 | AL139: 0 | AM139: 0 | AN139: 0 | AO139: 0 | AP139: 0 | AQ139: 0 | AR139: 0 | AS139: 0 | AT139: 0 | AU139: 0
A140: =Source!A140 -> ZYX Signal Limited | B140: =Source!B140 -> VTRS | C140: =Source!C140 ->  | D140: =Source!D140 -> Pharmaceuticals | E140: =Source!E140 -> 12.75 | F140: =Source!F140 -> 19.24 | G140: =Source!G140 -> 14.1 | H140: =Source!H140 -> 14.235 | Q140: -1 | R140: -1 | W140: -1 | X140: -1 | AC140: -1 | AD140: -1 | AG140: =IF(#REF!=0,0,IF(#REF!=#REF!,#REF!-#REF!,0)) ->  | AH140: 5000 | AI140: 0 | AJ140: 0 | AK140: 0 | AL140: 0 | AM140: 0 | AN140: 0 | AO140: 0 | AP140: 0 | AQ140: 0 | AR140: 0 | AS140: 0 | AT140: 0 | AU140: 0
A141: =Source!A141 -> ZYX Signal Limited | B141: =Source!B141 -> WIFI | C141: =Source!C141 ->  | D141: =Source!D141 -> Telecommunications Services | E141: =Source!E141 -> 6.66 | F141: =Source!F141 -> 15.92 | G141: =Source!G141 -> 14.11 | H141: =Source!H141 -> 14.13 | I141: 13 | J141: 14 | L141: 0.1 | M141: 13.18 | N141: 13.38 | O141: 15 | P141: 16 | Q141: 0.06157112527 | R141: 0.1323425336 | S141: 0.1538461538 | T141: 0.2307692308 | W141: -1 | X141: -1 | Y141: -1 | Z141: -1 | AC141: -1 | AD141: -1 | AE141: -1 | AF141: -1 | AG141: =IF(#REF!=0,0,IF(#REF!=#REF!,#REF!-#REF!,0)) ->  | AH141: 5000 | AI141: 500 | AJ141: 150 | AK141: 10 | AL141: 125 | AM141: 8 | AN141: 100 | AO141: 7 | AP141: 75 | AQ141: 5 | AR141: 35 | AS141: 2 | AT141: 15 | AU141: 1
A142: =Source!A142 -> ZYX Core Portfolio | B142: =Source!B142 -> WMT | C142: =Source!C142 ->  | D142: =Source!D142 -> Food & Drug Retailing | E142: =Source!E142 -> 102 | F142: =Source!F142 -> 153.6597 | G142: =Source!G142 -> 132.13 | H142: =Source!H142 -> 132.7607 | I142: 125.24 | J142: 138.27 | K142: 0.2 | L142: 0.4 | O142: 211 | P142: 226 | Q142: 0.5893257568 | R142: 0.7023110002 | S142: 0.6847652507 | T142: 0.8045352922 | W142: -1 | X142: -1 | Y142: -1 | Z142: -1 | AC142: -1 | AD142: -1 | AE142: -1 | AF142: -1 | AG142: =IF(#REF!=0,0,IF(#REF!=#REF!,#REF!-#REF!,0)) ->  | AH142: 5000 | AI142: 2000 | AJ142: 600 | AK142: 4 | AL142: 500 | AM142: 3 | AN142: 400 | AO142: 3 | AP142: 300 | AQ142: 2 | AR142: 140 | AS142: 1 | AT142: 60 | AU142: 0
A143: =Source!A143 -> ZYX Signal Limited | B143: =Source!B143 -> WOW | C143: =Source!C143 ->  | D143: =Source!D143 -> Media & Publishing | E143: =Source!E143 -> 2.9453 | F143: =Source!F143 -> 18.2 | G143: =Source!G143 -> 16.87 | H143: =Source!H143 -> 17.15 | Q143: -1 | R143: -1 | W143: -1 | X143: -1 | AC143: -1 | AD143: -1 | AG143: =IF(#REF!=0,0,IF(#REF!=#REF!,#REF!-#REF!,0)) ->  | AH143: 5000 | AI143: 0 | AJ143: 0 | AK143: 0 | AL143: 0 | AM143: 0 | AN143: 0 | AO143: 0 | AP143: 0 | AQ143: 0 | AR143: 0 | AS143: 0 | AT143: 0 | AU143: 0
A144: =Source!A144 -> ZYX Signal Limited | B144: =Source!B144 -> XL | C144: =Source!C144 ->  | D144: =Source!D144 -> Automobiles & Auto Parts | E144: =Source!E144 -> 9.5 | F144: =Source!F144 -> 35 | G144: =Source!G144 -> 12.73 | H144: =Source!H144 -> 12.4327 | Q144: -1 | R144: -1 | W144: -1 | X144: -1 | AC144: -1 | AD144: -1 | AG144: =IF(#REF!=0,0,IF(#REF!=#REF!,#REF!-#REF!,0)) ->  | AH144: 5000 | AI144: 0 | AJ144: 0 | AK144: 0 | AL144: 0 | AM144: 0 | AN144: 0 | AO144: 0 | AP144: 0 | AQ144: 0 | AR144: 0 | AS144: 0 | AT144: 0 | AU144: 0
A145: =Source!A145 -> ZYX Signal Limited | B145: =Source!B145 -> XSPA | C145: =Source!C145 ->  | D145: =Source!D145 -> Personal & Household Products & Services | E145: =Source!E145 -> 0.15 | F145: =Source!F145 -> 8.82 | G145: =Source!G145 -> 1.95 | H145: =Source!H145 -> 1.94 | Q145: -1 | R145: -1 | W145: -1 | X145: -1 | AC145: -1 | AD145: -1 | AG145: =IF(#REF!=0,0,IF(#REF!=#REF!,#REF!-#REF!,0)) ->  | AH145: 5000 | AI145: 0 | AJ145: 0 | AK145: 0 | AL145: 0 | AM145: 0 | AN145: 0 | AO145: 0 | AP145: 0 | AQ145: 0 | AR145: 0 | AS145: 0 | AT145: 0 | AU145: 0
A146: =Source!A146 -> ZYX Signal Limited | B146: =Source!B146 -> YQ | C146: =Source!C146 ->  | D146: =Source!D146 ->  | E146: =Source!E146 -> 10 | F146: =Source!F146 -> 23.93 | G146: =Source!G146 -> 11.51 | H146: =Source!H146 -> 11.16 | Q146: -1 | R146: -1 | W146: -1 | X146: -1 | AC146: -1 | AD146: -1 | AG146: =IF(#REF!=0,0,IF(#REF!=#REF!,#REF!-#REF!,0)) ->  | AH146: 5000 | AI146: 0 | AJ146: 0 | AK146: 0 | AL146: 0 | AM146: 0 | AN146: 0 | AO146: 0 | AP146: 0 | AQ146: 0 | AR146: 0 | AS146: 0 | AT146: 0 | AU146: 0
A147: =Source!A147 -> ZYX Signal Limited | B147: =Source!B147 -> YUMC | C147: =Source!C147 ->  | D147: =Source!D147 -> Hotels & Entertainment Services | E147: =Source!E147 -> 38.33 | F147: =Source!F147 -> 64.64 | G147: =Source!G147 -> 61.65 | H147: =Source!H147 -> 61.08 | Q147: -1 | R147: -1 | W147: -1 | X147: -1 | AC147: -1 | AD147: -1 | AG147: =IF(#REF!=0,0,IF(#REF!=#REF!,#REF!-#REF!,0)) ->  | AH147: 5000 | AI147: 0 | AJ147: 0 | AK147: 0 | AL147: 0 | AM147: 0 | AN147: 0 | AO147: 0 | AP147: 0 | AQ147: 0 | AR147: 0 | AS147: 0 | AT147: 0 | AU147: 0
A148: =Source!A148 -> Motley Fool | B148: =Source!B148 -> ZM | C148: =Source!C148 ->  | D148: =Source!D148 -> Software & IT Services | E148: =Source!E148 -> 102 | F148: =Source!F148 -> 588.84 | G148: =Source!G148 -> 355.17 | H148: =Source!H148 -> 347.29 | Q148: -1 | R148: -1 | W148: -1 | X148: -1 | AC148: -1 | AD148: -1 | AG148: =IF(#REF!=0,0,IF(#REF!=#REF!,#REF!-#REF!,0)) ->  | AH148: 5000 | AI148: 0 | AJ148: 0 | AK148: 0 | AL148: 0 | AM148: 0 | AN148: 0 | AO148: 0 | AP148: 0 | AQ148: 0 | AR148: 0 | AS148: 0 | AT148: 0 | AU148: 0
